BODY,BODY NAME,Service Label,SERVICE CODE,ORGANISATIONAL UNIT,ORGANISATIONAL UNIT CODE,EXPENDITURE CATEGORY,EXPENDITURE CODE,DATE (POSTING DATE),TRANSACTION NUMBER,AMOUNT,SUPPLIER NAME,SUPPLIER ID
WARRINGTON BOROUGH COUNCIL,http://statistics.data.gov.uk/id/local-authority/00EU,Neighbourhood & Community Services,NCS,Neighbourhood Co-o East,51306,Payment of Grants,470050,21-Aug-12,1900096890,700,A Monk Anglers Association,110742
WARRINGTON BOROUGH COUNCIL,http://statistics.data.gov.uk/id/local-authority/00EU,Neighbourhood & Community Services,NCS,Care Purchase - PD,54440,CP-Nursing Care-External,441200,07-Aug-12,1900095991,"4,136.00",Abbey Lawns Care Home Ltd,101816
WARRINGTON BOROUGH COUNCIL,http://statistics.data.gov.uk/id/local-authority/00EU,Neighbourhood & Community Services,NCS,Care Purchase - Learning Disability,54450,CP-Nursing Care-External,441200,29-Aug-12,1900097732,"4,136.00",Abbey Lawns Care Home Ltd,101816
WARRINGTON BOROUGH COUNCIL,http://statistics.data.gov.uk/id/local-authority/00EU,Children & Young People,CHL,EIG Funding - 2 Year Old,31601,Payment of Grants,470050,02-Aug-12,1900095754,"2,056.40",Abc 123 Day Nursery Ltd,400152
WARRINGTON BOROUGH COUNCIL,http://statistics.data.gov.uk/id/local-authority/00EU,Children & Young People,CHL,DSG Early Years PVI Settings,32417,Private & Voluntary 3 Year Olds,470100,24-Aug-12,1900097864,"11,615.35",Abc 123 Day Nursery Ltd,400152
WARRINGTON BOROUGH COUNCIL,http://statistics.data.gov.uk/id/local-authority/00EU,Children & Young People,CHL,EIG Funding - 2 Year Old,31601,Payment of Grants,470050,24-Aug-12,1900097944,"3,802.40",Abc 123 Day Nursery Ltd,400152
WARRINGTON BOROUGH COUNCIL,http://statistics.data.gov.uk/id/local-authority/00EU,Children & Young People,CHL,DSG Early Years PVI Settings,32417,Private & Voluntary 3 Year Olds,470100,24-Aug-12,1900097865,"10,102.43",Abc Pre-School Limited,400009
WARRINGTON BOROUGH COUNCIL,http://statistics.data.gov.uk/id/local-authority/00EU,Environment & Regeneration,ENO,Housing Projects,82008,Disabled Persons Grant 1996,554000,24-Aug-12,1900097069,"12,000.00",Acorn Building Projects Ltd,105557
WARRINGTON BOROUGH COUNCIL,http://statistics.data.gov.uk/id/local-authority/00EU,Neighbourhood & Community Services,NCS,Care Purchase -OP & OT East,54430,CP-LongStayExternal,441150,29-Aug-12,1900097740,"2,440.00",Adriana Ltd Ta The Priory,110286
WARRINGTON BOROUGH COUNCIL,http://statistics.data.gov.uk/id/local-authority/00EU,Environment & Regeneration,ER0,Traffic Management,44310,Consult.& Prof. Serv,440000,01-Aug-12,1900095707,"3,432.00",Aecom Ltd,106088
WARRINGTON BOROUGH COUNCIL,http://statistics.data.gov.uk/id/local-authority/00EU,Environment & Regeneration,ENP,Environment & Regeneration,82000,Equipment Purchase & Contract,400000,23-Aug-12,1900097005,"3,084.00",Airspace Solutions Ltd,110127
WARRINGTON BOROUGH COUNCIL,http://statistics.data.gov.uk/id/local-authority/00EU,Assistant Chief Executive,CEX,Coroners Service,11100,Hire Of Mortuaries,220200,08-Aug-12,1900096187,554,Alder Hey Children�s NHS Foundation,106199
WARRINGTON BOROUGH COUNCIL,http://statistics.data.gov.uk/id/local-authority/00EU,Children & Young People,CYP,Primary,81001,Contract Works,492550,24-Aug-12,1900097141,"1,092.00",Aliquis UK Ltd,110738
WARRINGTON BOROUGH COUNCIL,http://statistics.data.gov.uk/id/local-authority/00EU,Neighbourhood & Community Services,NCS,Care Purchase - OP & OT Central,54420,CP-Domicil.External,440950,15-Aug-12,1900096625,561.4,Allied Healthcare Group Ltd,100796
WARRINGTON BOROUGH COUNCIL,http://statistics.data.gov.uk/id/local-authority/00EU,Neighbourhood & Community Services,NCS,Care Purchase - OP & OT Central,54420,CP-Domicil.External,440950,15-Aug-12,1900096628,502.2,Allied Healthcare Group Ltd,100796
WARRINGTON BOROUGH COUNCIL,http://statistics.data.gov.uk/id/local-authority/00EU,Neighbourhood & Community Services,NCS,Care Purchase -OP & OT East,54430,CP-Domicil.External,440950,15-Aug-12,1900096629,582.9,Allied Healthcare Group Ltd,100796
WARRINGTON BOROUGH COUNCIL,http://statistics.data.gov.uk/id/local-authority/00EU,Neighbourhood & Community Services,NCS,Care Purchase - PD,54440,CP-Domicil.External,440950,15-Aug-12,1900096637,"1,319.70",Allied Healthcare Group Ltd,100796
WARRINGTON BOROUGH COUNCIL,http://statistics.data.gov.uk/id/local-authority/00EU,Neighbourhood & Community Services,NCS,Care Purchase - PD,54440,Supporting People - External,441250,16-Aug-12,1900096764,718.4,Allied Healthcare Group Ltd,100796
WARRINGTON BOROUGH COUNCIL,http://statistics.data.gov.uk/id/local-authority/00EU,Neighbourhood & Community Services,NCS,Care Purchase - PD,54440,CP-Domicil.External,440950,16-Aug-12,1900096764,"4,259.98",Allied Healthcare Group Ltd,100796
WARRINGTON BOROUGH COUNCIL,http://statistics.data.gov.uk/id/local-authority/00EU,Neighbourhood & Community Services,NCS,Care Purchase - PD,54440,Supporting People - External,441250,16-Aug-12,1900096765,718.4,Allied Healthcare Group Ltd,100796
WARRINGTON BOROUGH COUNCIL,http://statistics.data.gov.uk/id/local-authority/00EU,Neighbourhood & Community Services,NCS,Care Purchase - PD,54440,CP-Domicil.External,440950,16-Aug-12,1900096765,"4,166.89",Allied Healthcare Group Ltd,100796
WARRINGTON BOROUGH COUNCIL,http://statistics.data.gov.uk/id/local-authority/00EU,Neighbourhood & Community Services,NCS,Support Services,52101,Car Leasing Charges,350000,10-Aug-12,1900096327,"2,197.39",Alphabet UK Fleet Management,106080
WARRINGTON BOROUGH COUNCIL,http://statistics.data.gov.uk/id/local-authority/00EU,Neighbourhood & Community Services,NCS,Intermediate Care at Home,54520,Car Leasing Charges,350000,10-Aug-12,1900096328,"1,872.08",Alphabet UK Fleet Management,106080
WARRINGTON BOROUGH COUNCIL,http://statistics.data.gov.uk/id/local-authority/00EU,Children & Young People,CHL,CiC Team 2,31101,Car Leasing Charges,350000,10-Aug-12,1900096329,"2,329.71",Alphabet UK Fleet Management,106080
WARRINGTON BOROUGH COUNCIL,http://statistics.data.gov.uk/id/local-authority/00EU,Environment & Regeneration,ER0,Head of Service - Regen & Devpt,43910,Car Leasing Charges,350000,10-Aug-12,1900096356,"1,509.42",Alphabet UK Fleet Management,106080
WARRINGTON BOROUGH COUNCIL,http://statistics.data.gov.uk/id/local-authority/00EU,Neighbourhood & Community Services,NCS,Care Purchase - Learning Disability,54450,CP-Domicil.External,440950,01-Aug-12,1900095589,"6,326.48",Alternative Futures Group,104468
WARRINGTON BOROUGH COUNCIL,http://statistics.data.gov.uk/id/local-authority/00EU,Neighbourhood & Community Services,NCS,Supporting People Grant Payments,53260,Sheltd/Xtra Care Hsing and Comm Alarms,535050,07-Aug-12,1900096043,"1,266.45",Anchor Ha,100886
WARRINGTON BOROUGH COUNCIL,http://statistics.data.gov.uk/id/local-authority/00EU,Environment & Regeneration,ER0,Estates & Valuation,43520,Agency Supply - GF,180000,31-Aug-12,1900097969,588.13,Anderselite,100563
WARRINGTON BOROUGH COUNCIL,http://statistics.data.gov.uk/id/local-authority/00EU,Neighbourhood & Community Services,NCS,Care Purchase - Mental Health Team 1,54230,CP-LongStayExternal,441150,01-Aug-12,1900095595,"1,520.00",Applecroft Residential Care Home,101471
WARRINGTON BOROUGH COUNCIL,http://statistics.data.gov.uk/id/local-authority/00EU,Neighbourhood & Community Services,NCS,Care Purchase - Mental Health Team 1,54230,CP-LongStayExternal,441150,29-Aug-12,1900097729,"1,520.00",Applecroft Residential Care Home,101471
WARRINGTON BOROUGH COUNCIL,http://statistics.data.gov.uk/id/local-authority/00EU,Children & Young People,CHL,DSG Early Years PVI Settings,32417,Private & Voluntary 3 Year Olds,470100,24-Aug-12,1900097866,"3,029.38",Appleton Thorn Pre School,400111
WARRINGTON BOROUGH COUNCIL,http://statistics.data.gov.uk/id/local-authority/00EU,Environment & Regeneration,ENP,Environment & Regeneration,82000,Specific Work,200200,02-Aug-12,1900095785,"365,000.00",Arena Housing,102199
WARRINGTON BOROUGH COUNCIL,http://statistics.data.gov.uk/id/local-authority/00EU,Neighbourhood & Community Services,NCS,Supporting People Grant Payments,53260,Sheltd/Xtra Care Hsing and Comm Alarms,535050,07-Aug-12,1900096042,"18,242.25",Arena Housing,102199
WARRINGTON BOROUGH COUNCIL,http://statistics.data.gov.uk/id/local-authority/00EU,Neighbourhood & Community Services,NCS,Care Purchase Budget,54490,CP ExternalOther Exp,440800,15-Aug-12,1900096681,"4,012.00",Arlington House,104491
WARRINGTON BOROUGH COUNCIL,http://statistics.data.gov.uk/id/local-authority/00EU,Neighbourhood & Community Services,NCS,Care Purchase Budget,54490,CP ExternalOther Exp,440800,16-Aug-12,1900096704,"22,000.00",Arlington House,104491
WARRINGTON BOROUGH COUNCIL,http://statistics.data.gov.uk/id/local-authority/00EU,Neighbourhood & Community Services,NCS,Care Purchase Budget,54490,CP ExternalOther Exp,440800,31-Aug-12,1900097844,"4,077.00",Arlington House,104491
WARRINGTON BOROUGH COUNCIL,http://statistics.data.gov.uk/id/local-authority/00EU,Environment & Regeneration,IT0,Printing & Graphics,23040,External Printing,430100,24-Aug-12,1900097109,582,Armin & Butler,101932
WARRINGTON BOROUGH COUNCIL,http://statistics.data.gov.uk/id/local-authority/00EU,Environment & Regeneration,ER0,Design and Adoption Staffing,44560,Car Leasing Charges,350000,10-Aug-12,1900096384,515.25,Arnold Clark Finance Ltd,103263
WARRINGTON BOROUGH COUNCIL,http://statistics.data.gov.uk/id/local-authority/00EU,Neighbourhood & Community Services,NCS,SM - Specialist Commissioning,53500,Car Leasing Charges,350000,15-Aug-12,1900096608,645.51,Arnold Clark Finance Ltd,103263
WARRINGTON BOROUGH COUNCIL,http://statistics.data.gov.uk/id/local-authority/00EU,Neighbourhood & Community Services,NCS,Contracting and Commissioning,53160,Car Leasing Charges,350000,29-Aug-12,1900097757,"2,648.16",Arnold Clark Finance Ltd,103263
WARRINGTON BOROUGH COUNCIL,http://statistics.data.gov.uk/id/local-authority/00EU,Children & Young People,CHL,Placement Support Team,31103,Car Leasing Charges,350000,29-Aug-12,1900097758,"4,267.68",Arnold Clark Finance Ltd,103263
WARRINGTON BOROUGH COUNCIL,http://statistics.data.gov.uk/id/local-authority/00EU,Environment & Regeneration,ENP,Environment & Regeneration,82000,Stationery Curriculum,430200,15-Aug-12,1900096622,"1,951.00",Asco Educational Supplies Ltd,104495
WARRINGTON BOROUGH COUNCIL,http://statistics.data.gov.uk/id/local-authority/00EU,Environment & Regeneration,ENP,Environment & Regeneration,82000,Equipment Purchase & Contract,400000,28-Aug-12,1900097628,563.04,Asco Educational Supplies Ltd,104495
WARRINGTON BOROUGH COUNCIL,http://statistics.data.gov.uk/id/local-authority/00EU,Neighbourhood & Community Services,NCS,Care Purchase Budget,54490,CP ExternalOther Exp,440800,08-Aug-12,1900096261,"5,970.86",Ashberry Healthcare Ltd,101061
WARRINGTON BOROUGH COUNCIL,http://statistics.data.gov.uk/id/local-authority/00EU,Neighbourhood & Community Services,NCS,Care Purchase Budget,54490,CP ExternalOther Exp,440800,14-Aug-12,1900096509,"7,877.97",Ashberry Healthcare Ltd,104776
WARRINGTON BOROUGH COUNCIL,http://statistics.data.gov.uk/id/local-authority/00EU,Neighbourhood & Community Services,NCS,Care Purchase Budget,54490,CP ExternalOther Exp,440800,16-Aug-12,1900096710,"135,000.00",Ashberry Healthcare Ltd,104776
WARRINGTON BOROUGH COUNCIL,http://statistics.data.gov.uk/id/local-authority/00EU,Neighbourhood & Community Services,NCS,Care Purchase Budget,54490,CP ExternalOther Exp,440800,16-Aug-12,1900096725,"51,000.00",Ashberry Healthcare Ltd,101061
WARRINGTON BOROUGH COUNCIL,http://statistics.data.gov.uk/id/local-authority/00EU,Children & Young People,CYP,Secondary,81002,Contract Works,492550,28-Aug-12,1900097640,"12,999.70",Atmostherm Service Ltd,107002
WARRINGTON BOROUGH COUNCIL,http://statistics.data.gov.uk/id/local-authority/00EU,Neighbourhood & Community Services,NCS,Care Purchase - Learning Disability,54450,CP-Day Care-External,441100,07-Aug-12,1900095975,"3,650.80",Autism Initiatives,104503
WARRINGTON BOROUGH COUNCIL,http://statistics.data.gov.uk/id/local-authority/00EU,Neighbourhood & Community Services,NCS,Care Purchase - Learning Disability,54450,CP-Domicil.External,440950,14-Aug-12,1900096494,642.64,Autism Initiatives,104503
WARRINGTON BOROUGH COUNCIL,http://statistics.data.gov.uk/id/local-authority/00EU,Neighbourhood & Community Services,NCS,Care Purchase - Learning Disability,54450,CP-Domicil.External,440950,15-Aug-12,1900096660,751.52,Autism Initiatives,104503
WARRINGTON BOROUGH COUNCIL,http://statistics.data.gov.uk/id/local-authority/00EU,Neighbourhood & Community Services,NCS,Care Purchase - Learning Disability,54450,CP-Domicil.External,440950,15-Aug-12,1900096661,751.52,Autism Initiatives,104503
WARRINGTON BOROUGH COUNCIL,http://statistics.data.gov.uk/id/local-authority/00EU,Neighbourhood & Community Services,NCS,Care Purchase - Learning Disability,54450,CP-Domicil.External,440950,15-Aug-12,1900096663,751.52,Autism Initiatives,104503
WARRINGTON BOROUGH COUNCIL,http://statistics.data.gov.uk/id/local-authority/00EU,Neighbourhood & Community Services,NCS,Care Purchase - Learning Disability,54450,CP-Domicil.External,440950,15-Aug-12,1900096665,751.52,Autism Initiatives,104503
WARRINGTON BOROUGH COUNCIL,http://statistics.data.gov.uk/id/local-authority/00EU,Neighbourhood & Community Services,NCS,Care Purchase - Learning Disability,54450,CP-Domicil.External,440950,15-Aug-12,1900096668,751.52,Autism Initiatives,104503
WARRINGTON BOROUGH COUNCIL,http://statistics.data.gov.uk/id/local-authority/00EU,Neighbourhood & Community Services,NCS,Care Purchase - Learning Disability,54450,CP-Domicil.External,440950,21-Aug-12,1900096884,751.52,Autism Initiatives,104503
WARRINGTON BOROUGH COUNCIL,http://statistics.data.gov.uk/id/local-authority/00EU,Neighbourhood & Community Services,NCS,Care Purchase - Learning Disability,54450,CP-LongStayExternal,441150,29-Aug-12,1900097709,"4,496.00",Autism Initiatives,104503
WARRINGTON BOROUGH COUNCIL,http://statistics.data.gov.uk/id/local-authority/00EU,Neighbourhood & Community Services,NCS,Care Purchase - Learning Disability,54450,CP-Day Care-External,441100,31-Aug-12,1900097841,"3,468.26",Autism Initiatives,104503
WARRINGTON BOROUGH COUNCIL,http://statistics.data.gov.uk/id/local-authority/00EU,Children & Young People,CHL,Ross Close,31102,Car Leasing Charges,350000,06-Aug-12,1900095914,688.7,Automotive Leasing Ltd,104504
WARRINGTON BOROUGH COUNCIL,http://statistics.data.gov.uk/id/local-authority/00EU,Children & Young People,CHL,Inclusion,32207,Car Leasing Charges,350000,07-Aug-12,1900096001,941.09,Automotive Leasing Ltd,104504
WARRINGTON BOROUGH COUNCIL,http://statistics.data.gov.uk/id/local-authority/00EU,Neighbourhood & Community Services,NCS,OP & OT - West,54350,Car Leasing Charges,350000,24-Aug-12,1900097097,"3,577.23",Automotive Leasing Ltd,104504
WARRINGTON BOROUGH COUNCIL,http://statistics.data.gov.uk/id/local-authority/00EU,Children & Young People,CHL,Strategic Director,30000,Car Leasing Charges,350000,24-Aug-12,1900097100,531.09,Automotive Leasing Ltd,104504
WARRINGTON BOROUGH COUNCIL,http://statistics.data.gov.uk/id/local-authority/00EU,Children & Young People,CHL,Strategic Director,30000,Car Leasing Charges,350000,24-Aug-12,1900097100,"5,310.88",Automotive Leasing Ltd,104504
WARRINGTON BOROUGH COUNCIL,http://statistics.data.gov.uk/id/local-authority/00EU,Neighbourhood & Community Services,NCS,Care Purchase - Learning Disability,54450,CP-LongStayExternal,441150,29-Aug-12,1900097730,"10,388.00",Bank Hall Farm,103693
WARRINGTON BOROUGH COUNCIL,http://statistics.data.gov.uk/id/local-authority/00EU,Neighbourhood & Community Services,NCS,Care Purchase - Mental Health Team 1,54230,CP-LongStayExternal,441150,14-Aug-12,1900096540,"1,540.00",Barchester Healthcare Ltd,104548
WARRINGTON BOROUGH COUNCIL,http://statistics.data.gov.uk/id/local-authority/00EU,Neighbourhood & Community Services,NCS,Care Purchase - OP & OT South,54480,CP-LongStayExternal,441150,14-Aug-12,1900096543,"2,080.36",Barchester Healthcare Ltd,104548
WARRINGTON BOROUGH COUNCIL,http://statistics.data.gov.uk/id/local-authority/00EU,Neighbourhood & Community Services,NCS,Care Purchase - OP & OT South,54480,CP-LongStayExternal,441150,14-Aug-12,1900096552,"1,540.00",Barchester Healthcare Ltd,104548
WARRINGTON BOROUGH COUNCIL,http://statistics.data.gov.uk/id/local-authority/00EU,Neighbourhood & Community Services,NCS,Care Purchase - OP & OT South,54480,CP-LongStayExternal,441150,14-Aug-12,1900096553,"1,540.00",Barchester Healthcare Ltd,104548
WARRINGTON BOROUGH COUNCIL,http://statistics.data.gov.uk/id/local-authority/00EU,Neighbourhood & Community Services,NCS,Care Purchase - OP & OT South,54480,CP-LongStayExternal,441150,14-Aug-12,1900096554,"1,540.00",Barchester Healthcare Ltd,104548
WARRINGTON BOROUGH COUNCIL,http://statistics.data.gov.uk/id/local-authority/00EU,Neighbourhood & Community Services,NCS,Care Purchase - OP & OT South,54480,CP-LongStayExternal,441150,14-Aug-12,1900096555,"1,099.29",Barchester Healthcare Ltd,104548
WARRINGTON BOROUGH COUNCIL,http://statistics.data.gov.uk/id/local-authority/00EU,Neighbourhood & Community Services,NCS,Care Purchase - OP & OT West,54470,CP-Nursing Care-External,441200,03-Aug-12,1900095857,"1,570.00",Barchester Homes Ltd,105246
WARRINGTON BOROUGH COUNCIL,http://statistics.data.gov.uk/id/local-authority/00EU,Neighbourhood & Community Services,NCS,Care Purchase Budget,54490,CP Free Nursing Care External,443500,07-Aug-12,1900095931,"17,897.23",Barchester Homes Ltd,105246
WARRINGTON BOROUGH COUNCIL,http://statistics.data.gov.uk/id/local-authority/00EU,Neighbourhood & Community Services,NCS,Care Purchase - OP & OT West,54470,CP-LongStayExternal,441150,08-Aug-12,1900096259,"1,540.00",Barchester Homes Ltd,105246
WARRINGTON BOROUGH COUNCIL,http://statistics.data.gov.uk/id/local-authority/00EU,Neighbourhood & Community Services,NCS,Care Purchase - Mental Health Team 1,54230,CP-Nursing Care-External,441200,08-Aug-12,1900096259,"1,712.00",Barchester Homes Ltd,105246
WARRINGTON BOROUGH COUNCIL,http://statistics.data.gov.uk/id/local-authority/00EU,Neighbourhood & Community Services,NCS,Care Purchase - PD,54440,CP-Nursing Care-External,441200,08-Aug-12,1900096259,"1,712.00",Barchester Homes Ltd,105246
WARRINGTON BOROUGH COUNCIL,http://statistics.data.gov.uk/id/local-authority/00EU,Neighbourhood & Community Services,NCS,Care Purchase - OP & OT South,54480,CP-Nursing Care-External,441200,08-Aug-12,1900096259,"1,712.00",Barchester Homes Ltd,105246
WARRINGTON BOROUGH COUNCIL,http://statistics.data.gov.uk/id/local-authority/00EU,Neighbourhood & Community Services,NCS,Care Purchase Budget,54490,CP - Cont Care - External,441350,08-Aug-12,1900096259,"8,933.20",Barchester Homes Ltd,105246
WARRINGTON BOROUGH COUNCIL,http://statistics.data.gov.uk/id/local-authority/00EU,Neighbourhood & Community Services,NCS,Care Purchase - OP & OT West,54470,CP-Nursing Care-External,441200,08-Aug-12,1900096259,"28,737.14",Barchester Homes Ltd,105246
WARRINGTON BOROUGH COUNCIL,http://statistics.data.gov.uk/id/local-authority/00EU,Neighbourhood & Community Services,NCS,Care Purchase Budget,54490,CP Free Nursing Care External,443500,08-Aug-12,1900096260,869.6,Barchester Homes Ltd,105246
WARRINGTON BOROUGH COUNCIL,http://statistics.data.gov.uk/id/local-authority/00EU,Neighbourhood & Community Services,NCS,Care Purchase - OP & OT West,54470,CP-Nursing Care-External,441200,31-Aug-12,1900097854,"1,520.00",Barchester Homes Ltd,105246
WARRINGTON BOROUGH COUNCIL,http://statistics.data.gov.uk/id/local-authority/00EU,Neighbourhood & Community Services,NCS,Care Purchase - PD,54440,CP-Nursing Care-External,441200,31-Aug-12,1900097859,661.42,Barchester Homes Ltd,105246
WARRINGTON BOROUGH COUNCIL,http://statistics.data.gov.uk/id/local-authority/00EU,Neighbourhood & Community Services,NCS,Care Purchase -OP & OT East,54430,CP-Nursing Care-External,441200,31-Aug-12,1900097859,"1,528.57",Barchester Homes Ltd,105246
WARRINGTON BOROUGH COUNCIL,http://statistics.data.gov.uk/id/local-authority/00EU,Neighbourhood & Community Services,NCS,Care Purchase - OP & OT West,54470,CP-LongStayExternal,441150,31-Aug-12,1900097859,"1,540.00",Barchester Homes Ltd,105246
WARRINGTON BOROUGH COUNCIL,http://statistics.data.gov.uk/id/local-authority/00EU,Neighbourhood & Community Services,NCS,Care Purchase - Mental Health Team 1,54230,CP-Nursing Care-External,441200,31-Aug-12,1900097859,"1,712.00",Barchester Homes Ltd,105246
WARRINGTON BOROUGH COUNCIL,http://statistics.data.gov.uk/id/local-authority/00EU,Neighbourhood & Community Services,NCS,Care Purchase - OP & OT South,54480,CP-Nursing Care-External,441200,31-Aug-12,1900097859,"2,568.00",Barchester Homes Ltd,105246
WARRINGTON BOROUGH COUNCIL,http://statistics.data.gov.uk/id/local-authority/00EU,Neighbourhood & Community Services,NCS,Care Purchase Budget,54490,CP - Cont Care - External,441350,31-Aug-12,1900097859,"8,933.20",Barchester Homes Ltd,105246
WARRINGTON BOROUGH COUNCIL,http://statistics.data.gov.uk/id/local-authority/00EU,Neighbourhood & Community Services,NCS,Care Purchase - OP & OT West,54470,CP-Nursing Care-External,441200,31-Aug-12,1900097859,"30,816.00",Barchester Homes Ltd,105246
WARRINGTON BOROUGH COUNCIL,http://statistics.data.gov.uk/id/local-authority/00EU,Neighbourhood & Community Services,NCS,OM - Contracts & Procurement,53110,Legal Costs Incurred,440200,08-Aug-12,1900096239,"3,882.00",Beachcroft LLP,108402
WARRINGTON BOROUGH COUNCIL,http://statistics.data.gov.uk/id/local-authority/00EU,Neighbourhood & Community Services,NCS,OM - Contracts & Procurement,53110,Legal Costs Incurred,440200,09-Aug-12,1900096311,"3,382.00",Beachcroft LLP,108402
WARRINGTON BOROUGH COUNCIL,http://statistics.data.gov.uk/id/local-authority/00EU,Children & Young People,CHL,Agency Placements,30904,CP ExternalOther Exp,440800,24-Aug-12,1900097046,550,Bed Space,103530
WARRINGTON BOROUGH COUNCIL,http://statistics.data.gov.uk/id/local-authority/00EU,Children & Young People,CHL,Agency Placements,30904,CP ExternalOther Exp,440800,24-Aug-12,1900097047,650,Bed Space,103530
WARRINGTON BOROUGH COUNCIL,http://statistics.data.gov.uk/id/local-authority/00EU,Children & Young People,CHL,Agency Placements,30904,CP ExternalOther Exp,440800,24-Aug-12,1900097048,650,Bed Space,103530
WARRINGTON BOROUGH COUNCIL,http://statistics.data.gov.uk/id/local-authority/00EU,Children & Young People,CHL,Agency Placements,30904,CP ExternalOther Exp,440800,24-Aug-12,1900097049,650,Bed Space,103530
WARRINGTON BOROUGH COUNCIL,http://statistics.data.gov.uk/id/local-authority/00EU,Children & Young People,CHL,Agency Placements,30904,CP ExternalOther Exp,440800,24-Aug-12,1900097050,550,Bed Space,103530
WARRINGTON BOROUGH COUNCIL,http://statistics.data.gov.uk/id/local-authority/00EU,Children & Young People,CHL,Agency Placements,30904,CP ExternalOther Exp,440800,24-Aug-12,1900097053,650,Bed Space,103530
WARRINGTON BOROUGH COUNCIL,http://statistics.data.gov.uk/id/local-authority/00EU,Neighbourhood & Community Services,NCS,Care Purchase - PD,54440,CP ExternalOther Exp,440800,24-Aug-12,1900097112,"1,200.00",Bed Space,103530
WARRINGTON BOROUGH COUNCIL,http://statistics.data.gov.uk/id/local-authority/00EU,Children & Young People,CHL,Agency Placements,30904,CP ExternalOther Exp,440800,30-Aug-12,1900097799,840,Bed Space,103530
WARRINGTON BOROUGH COUNCIL,http://statistics.data.gov.uk/id/local-authority/00EU,Children & Young People,CHL,DSG Early Years PVI Settings,32417,Private & Voluntary 3 Year Olds,470100,24-Aug-12,1900097867,"3,172.26",Birch Grove Day Nursery Ltd,101367
WARRINGTON BOROUGH COUNCIL,http://statistics.data.gov.uk/id/local-authority/00EU,Children & Young People,CHL,EIG Funding - 2 Year Old,31601,Payment of Grants,470050,24-Aug-12,1900097945,"4,277.70",Birch Grove Day Nursery Ltd,101367
WARRINGTON BOROUGH COUNCIL,http://statistics.data.gov.uk/id/local-authority/00EU,Children & Young People,CYP,Childrens Other,81004,Response Maintenance,200000,02-Aug-12,1900095740,"1,564.80",BIS ATG Limited,102270
WARRINGTON BOROUGH COUNCIL,http://statistics.data.gov.uk/id/local-authority/00EU,Children & Young People,CHL,DSG Early Years PVI Settings,32417,Private & Voluntary 3 Year Olds,470100,24-Aug-12,1900097868,"2,928.24",Bloomings Pre-School Day Nursery,400114
WARRINGTON BOROUGH COUNCIL,http://statistics.data.gov.uk/id/local-authority/00EU,Neighbourhood & Community Services,NCS,Care Purchase - Mental Health Team 1,54230,CP-Domicil.External,440950,07-Aug-12,1900095924,546.9,Bluebird Care Warrington,104094
WARRINGTON BOROUGH COUNCIL,http://statistics.data.gov.uk/id/local-authority/00EU,Neighbourhood & Community Services,NCS,Care Purchase - OPMH,54220,CP-Domicil.External,440950,07-Aug-12,1900095924,634.84,Bluebird Care Warrington,104094
WARRINGTON BOROUGH COUNCIL,http://statistics.data.gov.uk/id/local-authority/00EU,Neighbourhood & Community Services,NCS,Care Purchase - Mental Health Team 2,54240,CP-Domicil.External,440950,07-Aug-12,1900095924,806.26,Bluebird Care Warrington,104094
WARRINGTON BOROUGH COUNCIL,http://statistics.data.gov.uk/id/local-authority/00EU,Neighbourhood & Community Services,NCS,Care Purchase - Hospital Discharge Team,54280,CP-Domicil.External,440950,07-Aug-12,1900095924,"1,770.86",Bluebird Care Warrington,104094
WARRINGTON BOROUGH COUNCIL,http://statistics.data.gov.uk/id/local-authority/00EU,Neighbourhood & Community Services,NCS,Care Purchase Budget,54490,CP - Cont Care - External,441350,07-Aug-12,1900095924,"1,802.72",Bluebird Care Warrington,104094
WARRINGTON BOROUGH COUNCIL,http://statistics.data.gov.uk/id/local-authority/00EU,Neighbourhood & Community Services,NCS,Care Purchase - OP & OT Central,54420,CP-Domicil.External,440950,07-Aug-12,1900095924,"2,186.41",Bluebird Care Warrington,104094
WARRINGTON BOROUGH COUNCIL,http://statistics.data.gov.uk/id/local-authority/00EU,Neighbourhood & Community Services,NCS,Care Purchase - OP & OT West,54470,CP-Domicil.External,440950,07-Aug-12,1900095924,"8,725.69",Bluebird Care Warrington,104094
WARRINGTON BOROUGH COUNCIL,http://statistics.data.gov.uk/id/local-authority/00EU,Neighbourhood & Community Services,NCS,Care Purchase - PD,54440,CP-Domicil.External,440950,07-Aug-12,1900095924,"13,014.66",Bluebird Care Warrington,104094
WARRINGTON BOROUGH COUNCIL,http://statistics.data.gov.uk/id/local-authority/00EU,Neighbourhood & Community Services,NCS,Care Purchase - OP & OT South,54480,CP-Domicil.External,440950,07-Aug-12,1900095924,"13,194.69",Bluebird Care Warrington,104094
WARRINGTON BOROUGH COUNCIL,http://statistics.data.gov.uk/id/local-authority/00EU,Neighbourhood & Community Services,NCS,Care Purchase -OP & OT East,54430,CP-Domicil.External,440950,07-Aug-12,1900095924,"14,422.42",Bluebird Care Warrington,104094
WARRINGTON BOROUGH COUNCIL,http://statistics.data.gov.uk/id/local-authority/00EU,Children & Young People,CHL,DSG Inter Authority Recoupment,32009,Recoupment Charges,490700,22-Aug-12,1900096919,"7,453.66",Bolton Mbc,440106
WARRINGTON BOROUGH COUNCIL,http://statistics.data.gov.uk/id/local-authority/00EU,Neighbourhood & Community Services,NCS,Care Purchase - OP & OT South,54480,CP-LongStayExternal,441150,03-Aug-12,1900095856,"1,300.00",Bondcare (Spinney),102023
WARRINGTON BOROUGH COUNCIL,http://statistics.data.gov.uk/id/local-authority/00EU,Neighbourhood & Community Services,NCS,Care Purchase Budget,54490,CP ExternalOther Exp,440800,16-Aug-12,1900096731,"71,000.00",Bondcare St Andrews,109634
WARRINGTON BOROUGH COUNCIL,http://statistics.data.gov.uk/id/local-authority/00EU,Neighbourhood & Community Services,NCS,Care Purchase - OP & OT West,54470,CP-LongStayExternal,441150,10-Aug-12,1900096398,"1,784.00",Borough Care Ltd Cawood House,109513
WARRINGTON BOROUGH COUNCIL,http://statistics.data.gov.uk/id/local-authority/00EU,Children & Young People,CHL,DSG Early Years PVI Settings,32417,Private & Voluntary 3 Year Olds,470100,24-Aug-12,1900097869,"2,440.20",Bramble Lodge Day Nursery,400085
WARRINGTON BOROUGH COUNCIL,http://statistics.data.gov.uk/id/local-authority/00EU,Children & Young People,CHL,DSG Support for SEN,32013,Childrens Activities,492900,22-Aug-12,1900096914,"4,871.85",Bridgewater Community Healthcare,108932
WARRINGTON BOROUGH COUNCIL,http://statistics.data.gov.uk/id/local-authority/00EU,Children & Young People,CHL,DSG Support for SEN,32013,Childrens Activities,492900,22-Aug-12,1900096915,"4,355.97",Bridgewater Community Healthcare,108932
WARRINGTON BOROUGH COUNCIL,http://statistics.data.gov.uk/id/local-authority/00EU,Children & Young People,CHL,DSG Support for SEN,32013,Childrens Activities,492900,22-Aug-12,1900096916,"4,490.71",Bridgewater Community Healthcare,108932
WARRINGTON BOROUGH COUNCIL,http://statistics.data.gov.uk/id/local-authority/00EU,Children & Young People,CHL,Commissioning,33001,Payment of Grants,470050,24-Aug-12,1900097056,"7,252.50",Bridgewater Community Healthcare,108932
WARRINGTON BOROUGH COUNCIL,http://statistics.data.gov.uk/id/local-authority/00EU,Children & Young People,CHL,Commissioning,33001,Payment of Grants,470050,24-Aug-12,1900097059,"7,252.50",Bridgewater Community Healthcare,108932
WARRINGTON BOROUGH COUNCIL,http://statistics.data.gov.uk/id/local-authority/00EU,Children & Young People,CHL,Commissioning,33001,Payment of Grants,470050,24-Aug-12,1900097060,"7,400.00",Bridgewater Community Healthcare,108932
WARRINGTON BOROUGH COUNCIL,http://statistics.data.gov.uk/id/local-authority/00EU,Children & Young People,CHL,Commissioning,33001,Payment of Grants,470050,24-Aug-12,1900097063,"7,400.00",Bridgewater Community Healthcare,108932
WARRINGTON BOROUGH COUNCIL,http://statistics.data.gov.uk/id/local-authority/00EU,Environment & Regeneration,ENP,Environment & Regeneration,82000,Gas,210050,03-Aug-12,1900095854,765.54,British Gas,103508
WARRINGTON BOROUGH COUNCIL,http://statistics.data.gov.uk/id/local-authority/00EU,Neighbourhood & Community Services,NCS,Care Purchase - Mental Health Team 1,54230,CP-LongStayExternal,441150,08-Aug-12,1900096189,"2,581.43",Broadreach House Charity,108812
WARRINGTON BOROUGH COUNCIL,http://statistics.data.gov.uk/id/local-authority/00EU,Neighbourhood & Community Services,NCS,Care Purchase - Mental Health Team 1,54230,CP-LongStayExternal,441150,08-Aug-12,1900096196,"2,978.57",Broadreach House Charity,108812
WARRINGTON BOROUGH COUNCIL,http://statistics.data.gov.uk/id/local-authority/00EU,Neighbourhood & Community Services,NCS,Care Purchase - Mental Health Team 1,54230,CP-LongStayExternal,441150,08-Aug-12,1900096199,"3,077.86",Broadreach House Charity,108812
WARRINGTON BOROUGH COUNCIL,http://statistics.data.gov.uk/id/local-authority/00EU,Neighbourhood & Community Services,NCS,Care Purchase - Mental Health Team 1,54230,CP-LongStayExternal,441150,08-Aug-12,1900096201,"2,978.57",Broadreach House Charity,108812
WARRINGTON BOROUGH COUNCIL,http://statistics.data.gov.uk/id/local-authority/00EU,Neighbourhood & Community Services,NCS,Care Purchase Budget,54490,CP ExternalOther Exp,440800,16-Aug-12,1900096705,"188,000.00",Bupa Care Homes,104572
WARRINGTON BOROUGH COUNCIL,http://statistics.data.gov.uk/id/local-authority/00EU,Neighbourhood & Community Services,NCS,Care Purchase Budget,54490,CP ExternalOther Exp,440800,21-Aug-12,1900096870,"14,861.74",Bupa Care Homes,104572
WARRINGTON BOROUGH COUNCIL,http://statistics.data.gov.uk/id/local-authority/00EU,Neighbourhood & Community Services,NCS,Care Purchase - OP & OT Central,54420,CP-LongStayExternal,441150,01-Aug-12,1900095594,"1,764.00",Bupa Care Homes - Broadoak Manor,104546
WARRINGTON BOROUGH COUNCIL,http://statistics.data.gov.uk/id/local-authority/00EU,Neighbourhood & Community Services,NCS,Care Purchase - OP & OT Central,54420,CP-LongStayExternal,441150,29-Aug-12,1900097731,"1,764.00",Bupa Care Homes - Broadoak Manor,104546
WARRINGTON BOROUGH COUNCIL,http://statistics.data.gov.uk/id/local-authority/00EU,Children & Young People,CHL,DSG Early Years PVI Settings,32417,Private & Voluntary 3 Year Olds,470100,24-Aug-12,1900097870,"2,440.20",Burnett Nursery,440143
WARRINGTON BOROUGH COUNCIL,http://statistics.data.gov.uk/id/local-authority/00EU,Children & Young People,CHL,EIG Funding - 2 Year Old,31601,Payment of Grants,470050,24-Aug-12,1900097946,712.95,Burnett Nursery,440143
WARRINGTON BOROUGH COUNCIL,http://statistics.data.gov.uk/id/local-authority/00EU,Neighbourhood & Community Services,NCS,Care Purchase - OP & OT South,54480,CP-LongStayExternal,441150,10-Aug-12,1900096399,"1,583.56",Burrswood House Nursing & Residenti,109619
WARRINGTON BOROUGH COUNCIL,http://statistics.data.gov.uk/id/local-authority/00EU,Neighbourhood & Community Services,NCS,Care Purchase - OP & OT South,54480,CP-LongStayExternal,441150,31-Aug-12,1900097986,"1,583.56",Burrswood House Nursing & Residenti,109619
WARRINGTON BOROUGH COUNCIL,http://statistics.data.gov.uk/id/local-authority/00EU,Children & Young People,CHL,DSG Early Years PVI Settings,32417,Private & Voluntary 3 Year Olds,470100,24-Aug-12,1900097871,"12,103.39",Busy 0 To 5S (St Nicolas House),400119
WARRINGTON BOROUGH COUNCIL,http://statistics.data.gov.uk/id/local-authority/00EU,Children & Young People,CHL,EIG Funding - 2 Year Old,31601,Payment of Grants,470050,24-Aug-12,1900097947,"2,138.85",Busy 0 To 5S (St Nicolas House),400119
WARRINGTON BOROUGH COUNCIL,http://statistics.data.gov.uk/id/local-authority/00EU,Children & Young People,CHL,DSG Early Years PVI Settings,32417,Private & Voluntary 3 Year Olds,470100,07-Aug-12,1900096160,556.05,Busy Nought To Fives,400120
WARRINGTON BOROUGH COUNCIL,http://statistics.data.gov.uk/id/local-authority/00EU,Children & Young People,CHL,DSG Early Years PVI Settings,32417,Private & Voluntary 3 Year Olds,470100,24-Aug-12,1900097872,"24,548.41",Busy Nought To Fives,400120
WARRINGTON BOROUGH COUNCIL,http://statistics.data.gov.uk/id/local-authority/00EU,Children & Young People,CHL,DSG Early Years PVI Settings,32417,Private & Voluntary 4 Year Olds,470150,07-Aug-12,1900096153,606.6,Butterflys Nursery,107718
WARRINGTON BOROUGH COUNCIL,http://statistics.data.gov.uk/id/local-authority/00EU,Children & Young People,CHL,DSG Early Years PVI Settings,32417,Private & Voluntary 3 Year Olds,470100,24-Aug-12,1900097873,"6,344.52",Butterflys Nursery,107718
WARRINGTON BOROUGH COUNCIL,http://statistics.data.gov.uk/id/local-authority/00EU,Children & Young People,CHL,EIG Funding - 2 Year Old,31601,Payment of Grants,470050,24-Aug-12,1900097948,"2,851.80",Butterflys Nursery,107718
WARRINGTON BOROUGH COUNCIL,http://statistics.data.gov.uk/id/local-authority/00EU,Environment & Regeneration,IT0,ICT & Business Improvement,23020,ICT Comms - Line Rental,450200,28-Aug-12,1900097155,547.25,Cable & Wireless Communications,100023
WARRINGTON BOROUGH COUNCIL,http://statistics.data.gov.uk/id/local-authority/00EU,Environment & Regeneration,IT0,ICT & Business Improvement,23020,ICT Comms - Line Usage,450300,28-Aug-12,1900097155,"5,401.85",Cable & Wireless Communications,100023
WARRINGTON BOROUGH COUNCIL,http://statistics.data.gov.uk/id/local-authority/00EU,Environment & Regeneration,IT0,ICT & Business Improvement,23020,ICT Comms - Line Rental,450200,29-Aug-12,1900097737,"2,803.00",Cable & Wireless Communications,100023
WARRINGTON BOROUGH COUNCIL,http://statistics.data.gov.uk/id/local-authority/00EU,Environment & Regeneration,ENP,Environment & Regeneration,82000,Consult.& Prof. Serv,440000,07-Aug-12,1900096026,"3,200.00",Capita Symonds Ltd,102122
WARRINGTON BOROUGH COUNCIL,http://statistics.data.gov.uk/id/local-authority/00EU,Neighbourhood & Community Services,NCS,Care Purchase - OP & OT Central,54420,CP-Nursing Care-External,441200,01-Aug-12,1900095592,"1,628.00",Care First Health Care Ltd - Bedfor,104569
WARRINGTON BOROUGH COUNCIL,http://statistics.data.gov.uk/id/local-authority/00EU,Neighbourhood & Community Services,NCS,Care Purchase -OP & OT East,54430,CP-Nursing Care-External,441200,01-Aug-12,1900095593,"1,712.00",Care First Health Care Ltd - Bedfor,104569
WARRINGTON BOROUGH COUNCIL,http://statistics.data.gov.uk/id/local-authority/00EU,Neighbourhood & Community Services,NCS,Care Purchase -OP & OT East,54430,CP-Nursing Care-External,441200,29-Aug-12,1900097768,"1,712.00",Care First Health Care Ltd - Bedfor,104569
WARRINGTON BOROUGH COUNCIL,http://statistics.data.gov.uk/id/local-authority/00EU,Neighbourhood & Community Services,NCS,Care Purchase - OP & OT Central,54420,CP-Nursing Care-External,441200,29-Aug-12,1900097770,"1,628.00",Care First Health Care Ltd - Bedfor,104569
WARRINGTON BOROUGH COUNCIL,http://statistics.data.gov.uk/id/local-authority/00EU,Neighbourhood & Community Services,NCS,Care Purchase - Learning Disability,54450,CP-Domicil.External,440950,29-Aug-12,1900097772,885.12,Care First Health Care Ltd - Bedfor,104569
WARRINGTON BOROUGH COUNCIL,http://statistics.data.gov.uk/id/local-authority/00EU,Neighbourhood & Community Services,NCS,Care Purchase - Learning Disability,54450,CP-Day Care-External,441100,29-Aug-12,1900097772,"1,081.08",Care First Health Care Ltd - Bedfor,104569
WARRINGTON BOROUGH COUNCIL,http://statistics.data.gov.uk/id/local-authority/00EU,Neighbourhood & Community Services,NCS,Care Purchase - Learning Disability,54450,Supporting People - External,441250,14-Aug-12,1900096498,683.2,Care Uk Care Solutions Ltd,102263
WARRINGTON BOROUGH COUNCIL,http://statistics.data.gov.uk/id/local-authority/00EU,Neighbourhood & Community Services,NCS,Care Purchase - Learning Disability,54450,CP-Domicil.External,440950,14-Aug-12,1900096499,"1,220.00",Care Uk Care Solutions Ltd,102263
WARRINGTON BOROUGH COUNCIL,http://statistics.data.gov.uk/id/local-authority/00EU,Neighbourhood & Community Services,NCS,Care Purchase - Learning Disability,54450,CP-Domicil.External,440950,14-Aug-12,1900096500,"2,095.84",Care Uk Care Solutions Ltd,102263
WARRINGTON BOROUGH COUNCIL,http://statistics.data.gov.uk/id/local-authority/00EU,Neighbourhood & Community Services,NCS,Care Purchase - Learning Disability,54450,CP-Domicil.External,440950,14-Aug-12,1900096501,732,Care Uk Care Solutions Ltd,102263
WARRINGTON BOROUGH COUNCIL,http://statistics.data.gov.uk/id/local-authority/00EU,Neighbourhood & Community Services,NCS,Care Purchase - Learning Disability,54450,Supporting People - External,441250,14-Aug-12,1900096502,976,Care Uk Care Solutions Ltd,102263
WARRINGTON BOROUGH COUNCIL,http://statistics.data.gov.uk/id/local-authority/00EU,Neighbourhood & Community Services,NCS,Care Purchase - Learning Disability,54450,CP-Domicil.External,440950,14-Aug-12,1900096503,"3,294.00",Care Uk Care Solutions Ltd,102263
WARRINGTON BOROUGH COUNCIL,http://statistics.data.gov.uk/id/local-authority/00EU,Neighbourhood & Community Services,NCS,Care Purchase - Learning Disability,54450,CP-Domicil.External,440950,14-Aug-12,1900096504,"4,172.40",Care Uk Care Solutions Ltd,102263
WARRINGTON BOROUGH COUNCIL,http://statistics.data.gov.uk/id/local-authority/00EU,Neighbourhood & Community Services,NCS,Care Purchase - Learning Disability,54450,CP-Domicil.External,440950,14-Aug-12,1900096505,"3,952.80",Care Uk Care Solutions Ltd,102263
WARRINGTON BOROUGH COUNCIL,http://statistics.data.gov.uk/id/local-authority/00EU,Neighbourhood & Community Services,NCS,Care Purchase - Learning Disability,54450,Supporting People - External,441250,14-Aug-12,1900096516,"2,440.00",Care Uk Care Solutions Ltd,102263
WARRINGTON BOROUGH COUNCIL,http://statistics.data.gov.uk/id/local-authority/00EU,Neighbourhood & Community Services,NCS,Care Purchase - Learning Disability,54450,CP-Domicil.External,440950,14-Aug-12,1900096516,"3,077.64",Care Uk Care Solutions Ltd,102263
WARRINGTON BOROUGH COUNCIL,http://statistics.data.gov.uk/id/local-authority/00EU,Neighbourhood & Community Services,NCS,Care Purchase - Learning Disability,54450,CP-Domicil.External,440950,14-Aug-12,1900096518,"10,153.64",Care Uk Care Solutions Ltd,102263
WARRINGTON BOROUGH COUNCIL,http://statistics.data.gov.uk/id/local-authority/00EU,Neighbourhood & Community Services,NCS,Care Purchase - Learning Disability,54450,CP-Domicil.External,440950,14-Aug-12,1900096519,"2,144.64",Care Uk Care Solutions Ltd,102263
WARRINGTON BOROUGH COUNCIL,http://statistics.data.gov.uk/id/local-authority/00EU,Neighbourhood & Community Services,NCS,Care Purchase - Learning Disability,54450,CP-Domicil.External,440950,14-Aug-12,1900096520,"1,998.24",Care Uk Care Solutions Ltd,102263
WARRINGTON BOROUGH COUNCIL,http://statistics.data.gov.uk/id/local-authority/00EU,Neighbourhood & Community Services,NCS,Care Purchase - Learning Disability,54450,CP-Domicil.External,440950,14-Aug-12,1900096521,"1,865.32",Care Uk Care Solutions Ltd,102263
WARRINGTON BOROUGH COUNCIL,http://statistics.data.gov.uk/id/local-authority/00EU,Neighbourhood & Community Services,NCS,Care Purchase - Learning Disability,54450,Supporting People - External,441250,14-Aug-12,1900096524,707.6,Care Uk Care Solutions Ltd,102263
WARRINGTON BOROUGH COUNCIL,http://statistics.data.gov.uk/id/local-authority/00EU,Neighbourhood & Community Services,NCS,Care Purchase - Learning Disability,54450,CP-Domicil.External,440950,14-Aug-12,1900096524,"1,662.44",Care Uk Care Solutions Ltd,102263
WARRINGTON BOROUGH COUNCIL,http://statistics.data.gov.uk/id/local-authority/00EU,Neighbourhood & Community Services,NCS,Care Purchase - Learning Disability,54450,CP-Domicil.External,440950,14-Aug-12,1900096526,"4,050.40",Care Uk Care Solutions Ltd,102263
WARRINGTON BOROUGH COUNCIL,http://statistics.data.gov.uk/id/local-authority/00EU,Neighbourhood & Community Services,NCS,Care Purchase - Learning Disability,54450,Supporting People - External,441250,14-Aug-12,1900096532,927.2,Care Uk Care Solutions Ltd,102263
WARRINGTON BOROUGH COUNCIL,http://statistics.data.gov.uk/id/local-authority/00EU,Neighbourhood & Community Services,NCS,Care Purchase - Learning Disability,54450,CP-Domicil.External,440950,14-Aug-12,1900096532,"4,224.44",Care Uk Care Solutions Ltd,102263
WARRINGTON BOROUGH COUNCIL,http://statistics.data.gov.uk/id/local-authority/00EU,Neighbourhood & Community Services,NCS,Care Purchase - Learning Disability,54450,Supporting People - External,441250,14-Aug-12,1900096536,732,Care Uk Care Solutions Ltd,102263
WARRINGTON BOROUGH COUNCIL,http://statistics.data.gov.uk/id/local-authority/00EU,Neighbourhood & Community Services,NCS,Care Purchase - Learning Disability,54450,CP-Domicil.External,440950,14-Aug-12,1900096537,658.8,Care Uk Care Solutions Ltd,102263
WARRINGTON BOROUGH COUNCIL,http://statistics.data.gov.uk/id/local-authority/00EU,Neighbourhood & Community Services,NCS,Care Purchase - IC,54290,CP - Intermediate Care - External,441300,03-Aug-12,1900095858,"35,202.00",CareConcepts (Appleton) Ltd,105804
WARRINGTON BOROUGH COUNCIL,http://statistics.data.gov.uk/id/local-authority/00EU,Neighbourhood & Community Services,NCS,Care Purchase - OP & OT Central,54420,CP-Day Care-External,441100,07-Aug-12,1900095949,915,CareConcepts (Appleton) Ltd,105804
WARRINGTON BOROUGH COUNCIL,http://statistics.data.gov.uk/id/local-authority/00EU,Neighbourhood & Community Services,NCS,Care Purchase - OP & OT West,54470,CP-Day Care-External,441100,07-Aug-12,1900095949,"2,283.72",CareConcepts (Appleton) Ltd,105804
WARRINGTON BOROUGH COUNCIL,http://statistics.data.gov.uk/id/local-authority/00EU,Neighbourhood & Community Services,NCS,Care Purchase - OP & OT South,54480,CP-Day Care-External,441100,07-Aug-12,1900095949,"4,190.40",CareConcepts (Appleton) Ltd,105804
WARRINGTON BOROUGH COUNCIL,http://statistics.data.gov.uk/id/local-authority/00EU,Neighbourhood & Community Services,NCS,Care Purchase -OP & OT East,54430,CP-Day Care-External,441100,07-Aug-12,1900095949,"5,263.20",CareConcepts (Appleton) Ltd,105804
WARRINGTON BOROUGH COUNCIL,http://statistics.data.gov.uk/id/local-authority/00EU,Neighbourhood & Community Services,NCS,Care Purchase Budget,54490,Voids,515150,07-Aug-12,1900095949,"6,947.68",CareConcepts (Appleton) Ltd,105804
WARRINGTON BOROUGH COUNCIL,http://statistics.data.gov.uk/id/local-authority/00EU,Neighbourhood & Community Services,NCS,Care Purchase - OP & OT Central,54420,CP-Nursing Care-External,441200,07-Aug-12,1900096010,"1,712.00",CareConcepts (Appleton) Ltd,105804
WARRINGTON BOROUGH COUNCIL,http://statistics.data.gov.uk/id/local-authority/00EU,Neighbourhood & Community Services,NCS,Care Purchase - Hospital Discharge Team,54280,CP-Nursing Care-External,441200,07-Aug-12,1900096010,"3,424.00",CareConcepts (Appleton) Ltd,105804
WARRINGTON BOROUGH COUNCIL,http://statistics.data.gov.uk/id/local-authority/00EU,Neighbourhood & Community Services,NCS,Care Purchase - OP & OT South,54480,CP-LongStayExternal,441150,07-Aug-12,1900096010,"8,670.14",CareConcepts (Appleton) Ltd,105804
WARRINGTON BOROUGH COUNCIL,http://statistics.data.gov.uk/id/local-authority/00EU,Neighbourhood & Community Services,NCS,Care Purchase Budget,54490,CP Free Nursing Care External,443500,07-Aug-12,1900096010,"14,348.40",CareConcepts (Appleton) Ltd,105804
WARRINGTON BOROUGH COUNCIL,http://statistics.data.gov.uk/id/local-authority/00EU,Neighbourhood & Community Services,NCS,Care Purchase Budget,54490,CP - Cont Care - External,441350,07-Aug-12,1900096010,"25,311.60",CareConcepts (Appleton) Ltd,105804
WARRINGTON BOROUGH COUNCIL,http://statistics.data.gov.uk/id/local-authority/00EU,Neighbourhood & Community Services,NCS,Care Purchase - OP & OT South,54480,CP-Nursing Care-External,441200,07-Aug-12,1900096010,"26,408.00",CareConcepts (Appleton) Ltd,105804
WARRINGTON BOROUGH COUNCIL,http://statistics.data.gov.uk/id/local-authority/00EU,Neighbourhood & Community Services,NCS,Care Purchase - IC,54290,CP - Intermediate Care - External,441300,29-Aug-12,1900097775,"35,202.00",CareConcepts (Appleton) Ltd,105804
WARRINGTON BOROUGH COUNCIL,http://statistics.data.gov.uk/id/local-authority/00EU,Neighbourhood & Community Services,NCS,Care Purchase - OP & OT South,54480,CP-Nursing Care-External,441200,07-Aug-12,1900095979,"1,500.00",Carefirst Health Care Ltd-Crawfords,100460
WARRINGTON BOROUGH COUNCIL,http://statistics.data.gov.uk/id/local-authority/00EU,Neighbourhood & Community Services,NCS,Care Purchase - OP & OT South,54480,CP-Nursing Care-External,441200,23-Aug-12,1900097017,"1,500.00",Carefirst Health Care Ltd-Crawfords,100460
WARRINGTON BOROUGH COUNCIL,http://statistics.data.gov.uk/id/local-authority/00EU,Neighbourhood & Community Services,NCS,Care Purchase - PD,54440,CP-Domicil.External,440950,03-Aug-12,1900095855,"1,441.41",Carewatch North Cheshire,104573
WARRINGTON BOROUGH COUNCIL,http://statistics.data.gov.uk/id/local-authority/00EU,Neighbourhood & Community Services,NCS,Care Purchase - Learning Disability,54450,CP-Domicil.External,440950,03-Aug-12,1900095855,"6,620.18",Carewatch North Cheshire,104573
WARRINGTON BOROUGH COUNCIL,http://statistics.data.gov.uk/id/local-authority/00EU,Neighbourhood & Community Services,NCS,Care Purchase -OP & OT East,54430,CP-Domicil.External,440950,03-Aug-12,1900095855,"10,547.57",Carewatch North Cheshire,104573
WARRINGTON BOROUGH COUNCIL,http://statistics.data.gov.uk/id/local-authority/00EU,Neighbourhood & Community Services,NCS,Care Purchase - Learning Disability,54450,CP ExternalOther Exp,440800,03-Aug-12,1900095869,945.43,Carewatch North Cheshire,104573
WARRINGTON BOROUGH COUNCIL,http://statistics.data.gov.uk/id/local-authority/00EU,Neighbourhood & Community Services,NCS,Care Purchase - Learning Disability,54450,CP ExternalOther Exp,440800,31-Aug-12,1900097984,969.34,Carewatch North Cheshire,104573
WARRINGTON BOROUGH COUNCIL,http://statistics.data.gov.uk/id/local-authority/00EU,Neighbourhood & Community Services,NCS,Care Purchase - PD,54440,CP-Domicil.External,440950,31-Aug-12,1900097987,"1,383.82",Carewatch North Cheshire,104573
WARRINGTON BOROUGH COUNCIL,http://statistics.data.gov.uk/id/local-authority/00EU,Neighbourhood & Community Services,NCS,Care Purchase - Learning Disability,54450,CP-Domicil.External,440950,31-Aug-12,1900097987,"6,234.73",Carewatch North Cheshire,104573
WARRINGTON BOROUGH COUNCIL,http://statistics.data.gov.uk/id/local-authority/00EU,Neighbourhood & Community Services,NCS,Care Purchase -OP & OT East,54430,CP-Domicil.External,440950,31-Aug-12,1900097987,"10,698.12",Carewatch North Cheshire,104573
WARRINGTON BOROUGH COUNCIL,http://statistics.data.gov.uk/id/local-authority/00EU,Neighbourhood & Community Services,NCS,Care Purchase - Mental Health Team 1,54230,CP-Domicil.External,440950,07-Aug-12,1900095955,"2,908.80",Caring Alternatives limited,110164
WARRINGTON BOROUGH COUNCIL,http://statistics.data.gov.uk/id/local-authority/00EU,Neighbourhood & Community Services,NCS,Care Purchase - Mental Health Team 1,54230,CP-Domicil.External,440950,07-Aug-12,1900095957,"2,908.80",Caring Alternatives limited,110164
WARRINGTON BOROUGH COUNCIL,http://statistics.data.gov.uk/id/local-authority/00EU,Environment & Regeneration,ER1,Walton Hall Catering,41433,Beers Wines Spirits,410100,15-Aug-12,1900096674,"3,615.61",Carlsberg Tetley Brewing Ltd,104575
WARRINGTON BOROUGH COUNCIL,http://statistics.data.gov.uk/id/local-authority/00EU,Environment & Regeneration,ER1,Walton Hall Catering,41433,Beers Wines Spirits,410100,15-Aug-12,1900096675,830.1,Carlsberg Tetley Brewing Ltd,104575
WARRINGTON BOROUGH COUNCIL,http://statistics.data.gov.uk/id/local-authority/00EU,Environment & Regeneration,ER1,Walton Hall Catering,41433,Beers Wines Spirits,410100,15-Aug-12,1900096676,"1,411.09",Carlsberg Tetley Brewing Ltd,104575
WARRINGTON BOROUGH COUNCIL,http://statistics.data.gov.uk/id/local-authority/00EU,Environment & Regeneration,ER1,Walton Hall Catering,41433,Beers Wines Spirits,410100,15-Aug-12,1900096677,"1,605.57",Carlsberg Tetley Brewing Ltd,104575
WARRINGTON BOROUGH COUNCIL,http://statistics.data.gov.uk/id/local-authority/00EU,Environment & Regeneration,ER1,Walton Hall Catering,41433,Beers Wines Spirits,410100,15-Aug-12,1900096679,785.99,Carlsberg Tetley Brewing Ltd,104575
WARRINGTON BOROUGH COUNCIL,http://statistics.data.gov.uk/id/local-authority/00EU,Environment & Regeneration,ER1,Walton Hall Catering,41433,Beers Wines Spirits,410100,15-Aug-12,1900096687,"2,712.34",Carlsberg Tetley Brewing Ltd,104575
WARRINGTON BOROUGH COUNCIL,http://statistics.data.gov.uk/id/local-authority/00EU,Children & Young People,CHL,Penketh,31314,Furniture & Fittings,400150,17-Aug-12,1900096791,800,Cassidy Sun Blinds Ltd,110174
WARRINGTON BOROUGH COUNCIL,http://statistics.data.gov.uk/id/local-authority/00EU,Children & Young People,CHL,Penketh,31314,Furniture & Fittings,400150,17-Aug-12,1900096792,800,Cassidy Sun Blinds Ltd,110174
WARRINGTON BOROUGH COUNCIL,http://statistics.data.gov.uk/id/local-authority/00EU,Neighbourhood & Community Services,NCS,Care Purchase - Learning Disability,54450,CP-Domicil.External,440950,10-Aug-12,1900096380,543.42,Castlerock Care Services,105279
WARRINGTON BOROUGH COUNCIL,http://statistics.data.gov.uk/id/local-authority/00EU,Neighbourhood & Community Services,NCS,Care Purchase - PD,54440,CP-Domicil.External,440950,10-Aug-12,1900096380,718.69,Castlerock Care Services,105279
WARRINGTON BOROUGH COUNCIL,http://statistics.data.gov.uk/id/local-authority/00EU,Neighbourhood & Community Services,NCS,Care Purchase -OP & OT East,54430,CP-Domicil.External,440950,10-Aug-12,1900096380,792.15,Castlerock Care Services,105279
WARRINGTON BOROUGH COUNCIL,http://statistics.data.gov.uk/id/local-authority/00EU,Neighbourhood & Community Services,NCS,Care Purchase - OP & OT South,54480,CP-Domicil.External,440950,10-Aug-12,1900096380,"1,172.49",Castlerock Care Services,105279
WARRINGTON BOROUGH COUNCIL,http://statistics.data.gov.uk/id/local-authority/00EU,Neighbourhood & Community Services,NCS,Care Purchase - OP & OT Central,54420,CP-Domicil.External,440950,10-Aug-12,1900096380,"2,294.01",Castlerock Care Services,105279
WARRINGTON BOROUGH COUNCIL,http://statistics.data.gov.uk/id/local-authority/00EU,Neighbourhood & Community Services,NCS,Care Purchase - Learning Disability,54450,CP-Domicil.External,440950,10-Aug-12,1900096383,538.03,Castlerock Care Services,105279
WARRINGTON BOROUGH COUNCIL,http://statistics.data.gov.uk/id/local-authority/00EU,Neighbourhood & Community Services,NCS,Care Purchase - PD,54440,CP-Domicil.External,440950,10-Aug-12,1900096383,589.01,Castlerock Care Services,105279
WARRINGTON BOROUGH COUNCIL,http://statistics.data.gov.uk/id/local-authority/00EU,Neighbourhood & Community Services,NCS,Care Purchase -OP & OT East,54430,CP-Domicil.External,440950,10-Aug-12,1900096383,702.42,Castlerock Care Services,105279
WARRINGTON BOROUGH COUNCIL,http://statistics.data.gov.uk/id/local-authority/00EU,Neighbourhood & Community Services,NCS,Care Purchase - OP & OT South,54480,CP-Domicil.External,440950,10-Aug-12,1900096383,"1,285.55",Castlerock Care Services,105279
WARRINGTON BOROUGH COUNCIL,http://statistics.data.gov.uk/id/local-authority/00EU,Neighbourhood & Community Services,NCS,Care Purchase - Learning Disability,54450,CP-Domicil.External,440950,10-Aug-12,1900096383,"2,487.75",Castlerock Care Services,105279
WARRINGTON BOROUGH COUNCIL,http://statistics.data.gov.uk/id/local-authority/00EU,Neighbourhood & Community Services,NCS,Care Purchase - Learning Disability,54450,CP-Domicil.External,440950,10-Aug-12,1900096386,538.03,Castlerock Care Services,105279
WARRINGTON BOROUGH COUNCIL,http://statistics.data.gov.uk/id/local-authority/00EU,Neighbourhood & Community Services,NCS,Care Purchase - PD,54440,CP-Domicil.External,440950,10-Aug-12,1900096386,569.49,Castlerock Care Services,105279
WARRINGTON BOROUGH COUNCIL,http://statistics.data.gov.uk/id/local-authority/00EU,Neighbourhood & Community Services,NCS,Care Purchase -OP & OT East,54430,CP-Domicil.External,440950,10-Aug-12,1900096386,612.01,Castlerock Care Services,105279
WARRINGTON BOROUGH COUNCIL,http://statistics.data.gov.uk/id/local-authority/00EU,Neighbourhood & Community Services,NCS,Care Purchase - OP & OT South,54480,CP-Domicil.External,440950,10-Aug-12,1900096386,"1,243.43",Castlerock Care Services,105279
WARRINGTON BOROUGH COUNCIL,http://statistics.data.gov.uk/id/local-authority/00EU,Neighbourhood & Community Services,NCS,Care Purchase - OP & OT Central,54420,CP-Domicil.External,440950,10-Aug-12,1900096386,"2,277.02",Castlerock Care Services,105279
WARRINGTON BOROUGH COUNCIL,http://statistics.data.gov.uk/id/local-authority/00EU,Neighbourhood & Community Services,NCS,Care Purchase - Learning Disability,54450,CP-Domicil.External,440950,10-Aug-12,1900096389,536.8,Castlerock Care Services,105279
WARRINGTON BOROUGH COUNCIL,http://statistics.data.gov.uk/id/local-authority/00EU,Neighbourhood & Community Services,NCS,Care Purchase - PD,54440,CP-Domicil.External,440950,10-Aug-12,1900096389,691.97,Castlerock Care Services,105279
WARRINGTON BOROUGH COUNCIL,http://statistics.data.gov.uk/id/local-authority/00EU,Neighbourhood & Community Services,NCS,Care Purchase -OP & OT East,54430,CP-Domicil.External,440950,10-Aug-12,1900096389,745.54,Castlerock Care Services,105279
WARRINGTON BOROUGH COUNCIL,http://statistics.data.gov.uk/id/local-authority/00EU,Neighbourhood & Community Services,NCS,Care Purchase - OP & OT South,54480,CP-Domicil.External,440950,10-Aug-12,1900096389,"1,298.71",Castlerock Care Services,105279
WARRINGTON BOROUGH COUNCIL,http://statistics.data.gov.uk/id/local-authority/00EU,Neighbourhood & Community Services,NCS,Care Purchase - OP & OT Central,54420,CP-Domicil.External,440950,10-Aug-12,1900096389,"2,309.50",Castlerock Care Services,105279
WARRINGTON BOROUGH COUNCIL,http://statistics.data.gov.uk/id/local-authority/00EU,Children & Young People,CHL,SCM Barrowhall Lane Primary School,33156,Rent Of Premises,220000,09-Aug-12,1900096267,"1,006.16",Catering Engineers NW Ltd,108320
WARRINGTON BOROUGH COUNCIL,http://statistics.data.gov.uk/id/local-authority/00EU,Neighbourhood & Community Services,NCS,Care Purchase - Learning Disability,54450,CP-Nursing Care-External,441200,01-Aug-12,1900095634,"2,436.00",Chadderton Total-Care Unit Ltd,100425
WARRINGTON BOROUGH COUNCIL,http://statistics.data.gov.uk/id/local-authority/00EU,Neighbourhood & Community Services,NCS,Care Purchase - Learning Disability,54450,CP-Nursing Care-External,441200,29-Aug-12,1900097715,"2,436.00",Chadderton Total-Care Unit Ltd,100425
WARRINGTON BOROUGH COUNCIL,http://statistics.data.gov.uk/id/local-authority/00EU,Children & Young People,CHL,DSG Early Years PVI Settings,32417,Private & Voluntary 3 Year Olds,470100,24-Aug-12,1900097875,"4,782.79",Chapel Road Day Nursery,109632
WARRINGTON BOROUGH COUNCIL,http://statistics.data.gov.uk/id/local-authority/00EU,Neighbourhood & Community Services,NCS,Care Purchase - OP & OT Central,54420,CP-LongStayExternal,441150,23-Aug-12,1900096996,"3,747.84",Chase House Limited,110786
WARRINGTON BOROUGH COUNCIL,http://statistics.data.gov.uk/id/local-authority/00EU,Children & Young People,CHL,EIG Funding - Quality Support Grants,31604,Payment of Grants,470050,29-Aug-12,1900097657,588,Cherry Tree out of School Club,109672
WARRINGTON BOROUGH COUNCIL,http://statistics.data.gov.uk/id/local-authority/00EU,Children & Young People,CHL,DSG Early Years PVI Settings,32417,Private & Voluntary 3 Year Olds,470100,07-Aug-12,1900096162,615.6,Cheshire Day Nursery Guardian St,106265
WARRINGTON BOROUGH COUNCIL,http://statistics.data.gov.uk/id/local-authority/00EU,Children & Young People,CHL,DSG Early Years PVI Settings,32417,Private & Voluntary 3 Year Olds,470100,07-Aug-12,1900096163,564.3,Cheshire Day Nursery Guardian St,106265
WARRINGTON BOROUGH COUNCIL,http://statistics.data.gov.uk/id/local-authority/00EU,Children & Young People,CHL,DSG Early Years PVI Settings,32417,Private & Voluntary 3 Year Olds,470100,24-Aug-12,1900097876,"8,784.72",Cheshire Day Nursery Guardian St,106265
WARRINGTON BOROUGH COUNCIL,http://statistics.data.gov.uk/id/local-authority/00EU,Children & Young People,CHL,EIG Funding - 2 Year Old,31601,Payment of Grants,470050,24-Aug-12,1900097949,"4,277.70",Cheshire Day Nursery Guardian St,106265
WARRINGTON BOROUGH COUNCIL,http://statistics.data.gov.uk/id/local-authority/00EU,Corporate Financing,COR,Concessionary Travel,60000,Bus Passes,505000,01-Aug-12,1900095590,"70,188.81",Cheshire West And Chester,103357
WARRINGTON BOROUGH COUNCIL,http://statistics.data.gov.uk/id/local-authority/00EU,Children & Young People,CHL,DSG Inter Authority Recoupment,32009,Recoupment Charges,490700,22-Aug-12,1900096930,"7,492.65",Cheshire West And Chester,103357
WARRINGTON BOROUGH COUNCIL,http://statistics.data.gov.uk/id/local-authority/00EU,Environment & Regeneration,ER1,Parks & Open Spaces,41426,Materials,400500,16-Aug-12,1900096782,"12,800.00",Cheshire Wildlife Trust,104598
WARRINGTON BOROUGH COUNCIL,http://statistics.data.gov.uk/id/local-authority/00EU,Environment & Regeneration,ER0,86 Sankey Street,43115,Equipment Purchase & Contract,400000,06-Aug-12,1900095874,965.22,Chubb Fire and Security Ltd,105335
WARRINGTON BOROUGH COUNCIL,http://statistics.data.gov.uk/id/local-authority/00EU,Neighbourhood & Community Services,NCS,Care Purchase -OP & OT East,54430,CP-Nursing Care-External,441200,15-Aug-12,1900096667,"1,667.40",Croftwood Care Limited,103738
WARRINGTON BOROUGH COUNCIL,http://statistics.data.gov.uk/id/local-authority/00EU,Neighbourhood & Community Services,NCS,Care Purchase - OP & OT West,54470,CP-LongStayExternal,441150,15-Aug-12,1900096669,"1,460.00",Croftwood Care Limited,103738
WARRINGTON BOROUGH COUNCIL,http://statistics.data.gov.uk/id/local-authority/00EU,Children & Young People,CHL,DSG Early Years PVI Settings,32417,Private & Voluntary 3 Year Olds,470100,24-Aug-12,1900097879,"10,350.37",Cromdale Way Preschool,400128
WARRINGTON BOROUGH COUNCIL,http://statistics.data.gov.uk/id/local-authority/00EU,Children & Young People,CHL,DSG Early Years PVI Settings,32417,Private & Voluntary 3 Year Olds,470100,24-Aug-12,1900097880,"18,935.95",Culcheth Day Nursery Ltd,400130
WARRINGTON BOROUGH COUNCIL,http://statistics.data.gov.uk/id/local-authority/00EU,Children & Young People,CHL,EIG Funding - 2 Year Old,31601,Payment of Grants,470050,24-Aug-12,1900097950,712.95,Culcheth Day Nursery Ltd,400130
WARRINGTON BOROUGH COUNCIL,http://statistics.data.gov.uk/id/local-authority/00EU,Environment & Regeneration,ER0,Alder Lodge Supporting People,43651,Security Guards,441000,07-Aug-12,1900096063,880.93,Cumbria Security Services (North) L,110006
WARRINGTON BOROUGH COUNCIL,http://statistics.data.gov.uk/id/local-authority/00EU,Environment & Regeneration,ER0,Alder Lodge Supporting People,43651,Security Guards,441000,07-Aug-12,1900096064,880.93,Cumbria Security Services (North) L,110006
WARRINGTON BOROUGH COUNCIL,http://statistics.data.gov.uk/id/local-authority/00EU,Environment & Regeneration,ER0,Alder Lodge Supporting People,43651,Security Guards,441000,16-Aug-12,1900096751,880.93,Cumbria Security Services (North) L,110006
WARRINGTON BOROUGH COUNCIL,http://statistics.data.gov.uk/id/local-authority/00EU,Environment & Regeneration,ER0,Alder Lodge Supporting People,43651,Security Guards,441000,23-Aug-12,1900096989,880.93,Cumbria Security Services (North) L,110006
WARRINGTON BOROUGH COUNCIL,http://statistics.data.gov.uk/id/local-authority/00EU,Neighbourhood & Community Services,NCS,Care Purchase - Learning Disability,54450,CP-Day Care-External,441100,10-Aug-12,1900096400,572,Days Together Ltd,109116
WARRINGTON BOROUGH COUNCIL,http://statistics.data.gov.uk/id/local-authority/00EU,Neighbourhood & Community Services,NCS,Culcheth Joint Use Centre,51009,Operating Lease Repayment,650350,23-Aug-12,1900097000,"17,092.04",De Lage Landen Leasing Ltd,100097
WARRINGTON BOROUGH COUNCIL,http://statistics.data.gov.uk/id/local-authority/00EU,Assistant Chief Executive,CEX,Coroners Service,11100,Court Costs,460100,15-Aug-12,1900096605,"9,081.25",De Vere Daresbury Park,104664
WARRINGTON BOROUGH COUNCIL,http://statistics.data.gov.uk/id/local-authority/00EU,Neighbourhood & Community Services,NCS,Care Purchase - Learning Disability,54450,CP-Day Care-External,441100,01-Aug-12,1900095653,"2,217.08",Deafness Support Network,104657
WARRINGTON BOROUGH COUNCIL,http://statistics.data.gov.uk/id/local-authority/00EU,Neighbourhood & Community Services,NCS,Care Purchase - Learning Disability,54450,CP-Day Care-External,441100,01-Aug-12,1900095654,"2,217.08",Deafness Support Network,104657
WARRINGTON BOROUGH COUNCIL,http://statistics.data.gov.uk/id/local-authority/00EU,Assistant Chief Executive,CEX,CRT Apprenticeships,22470,"Campaigns,  Projects and Events",491950,15-Aug-12,1900096598,700,Deafness Support Network,104657
WARRINGTON BOROUGH COUNCIL,http://statistics.data.gov.uk/id/local-authority/00EU,Neighbourhood & Community Services,NCS,Care Purchase - Learning Disability,54450,CP-Day Care-External,441100,29-Aug-12,1900097765,"2,217.08",Deafness Support Network,104657
WARRINGTON BOROUGH COUNCIL,http://statistics.data.gov.uk/id/local-authority/00EU,Neighbourhood & Community Services,NCS,Care Purchase - OP & OT West,54470,CP-Domicil.External,440950,15-Aug-12,1900096683,567.74,Dh Homecare,101961
WARRINGTON BOROUGH COUNCIL,http://statistics.data.gov.uk/id/local-authority/00EU,Neighbourhood & Community Services,NCS,Care Purchase Budget,54490,CP - Cont Care - External,441350,15-Aug-12,1900096683,681.44,Dh Homecare,101961
WARRINGTON BOROUGH COUNCIL,http://statistics.data.gov.uk/id/local-authority/00EU,Neighbourhood & Community Services,NCS,Care Purchase - OP & OT Central,54420,CP-Domicil.External,440950,15-Aug-12,1900096683,924.85,Dh Homecare,101961
WARRINGTON BOROUGH COUNCIL,http://statistics.data.gov.uk/id/local-authority/00EU,Neighbourhood & Community Services,NCS,Care Purchase - PD,54440,CP-Domicil.External,440950,15-Aug-12,1900096683,"3,827.22",Dh Homecare,101961
WARRINGTON BOROUGH COUNCIL,http://statistics.data.gov.uk/id/local-authority/00EU,Neighbourhood & Community Services,NCS,Care Purchase - OP & OT South,54480,CP-Domicil.External,440950,15-Aug-12,1900096683,"18,089.91",Dh Homecare,101961
WARRINGTON BOROUGH COUNCIL,http://statistics.data.gov.uk/id/local-authority/00EU,Children & Young People,CHL,Special Schools,33208,Independent School Transport,301550,01-Aug-12,1900095709,"1,950.00",Direct Taxis,101873
WARRINGTON BOROUGH COUNCIL,http://statistics.data.gov.uk/id/local-authority/00EU,Children & Young People,CHL,Special Schools,33208,Transport SLA,300400,01-Aug-12,1900095710,624,Direct Taxis,101873
WARRINGTON BOROUGH COUNCIL,http://statistics.data.gov.uk/id/local-authority/00EU,Environment & Regeneration,ENO,Housing Projects,82008,Disabled Persons Grant 1996,554000,22-Aug-12,1900096960,"3,528.00",Domestic Services And Installations,105462
WARRINGTON BOROUGH COUNCIL,http://statistics.data.gov.uk/id/local-authority/00EU,Assistant Chief Executive,CEX,Coroners Service,11100,Post Mortem Fees-Rep,440250,13-Aug-12,1900096422,"2,135.50",Dr B.N.A Hamid,100354
WARRINGTON BOROUGH COUNCIL,http://statistics.data.gov.uk/id/local-authority/00EU,Assistant Chief Executive,CEX,Coroners Service,11100,Post Mortem Fees-Rep,440250,13-Aug-12,1900096423,"1,260.00",Dr C M Manson,100080
WARRINGTON BOROUGH COUNCIL,http://statistics.data.gov.uk/id/local-authority/00EU,Assistant Chief Executive,CEX,Coroners Service,11100,Post Mortem Fees-Rep,440250,13-Aug-12,1900096431,"1,474.10",Dr Cheng Li,107950
WARRINGTON BOROUGH COUNCIL,http://statistics.data.gov.uk/id/local-authority/00EU,Assistant Chief Executive,CEX,Coroners Service,11100,Post Mortem Fees-Rep,440250,13-Aug-12,1900096420,"1,977.00",Dr D Butterworth,100765
WARRINGTON BOROUGH COUNCIL,http://statistics.data.gov.uk/id/local-authority/00EU,Assistant Chief Executive,CEX,Coroners Service,11100,Post Mortem Fees-Rep,440250,24-Aug-12,1900097070,"1,911.80",Dr D S Shareef,105121
WARRINGTON BOROUGH COUNCIL,http://statistics.data.gov.uk/id/local-authority/00EU,Assistant Chief Executive,CEX,Coroners Service,11100,Analysts Fees,440300,14-Aug-12,1900096522,835,Dr Daniel Crooks,101689
WARRINGTON BOROUGH COUNCIL,http://statistics.data.gov.uk/id/local-authority/00EU,Assistant Chief Executive,CEX,Coroners Service,11100,Post Mortem Fees-Rep,440250,24-Aug-12,1900097037,"1,591.60",Dr Debdeep Dey,106869
WARRINGTON BOROUGH COUNCIL,http://statistics.data.gov.uk/id/local-authority/00EU,Assistant Chief Executive,CEX,Coroners Service,11100,Post Mortem Fees-Rep,440250,13-Aug-12,1900096432,564.2,Dr H Al Rawi,100745
WARRINGTON BOROUGH COUNCIL,http://statistics.data.gov.uk/id/local-authority/00EU,Assistant Chief Executive,CEX,Coroners Service,11100,Reimbursement for Deputy Coroner,440400,24-Aug-12,1900097038,"4,409.62",Dr J E Napier,100061
WARRINGTON BOROUGH COUNCIL,http://statistics.data.gov.uk/id/local-authority/00EU,Assistant Chief Executive,CEX,Coroners Service,11100,Post Mortem Fees-Rep,440250,08-Aug-12,1900096171,976.1,Dr J Krajacevic,100409
WARRINGTON BOROUGH COUNCIL,http://statistics.data.gov.uk/id/local-authority/00EU,Assistant Chief Executive,CEX,Coroners Service,11100,Post Mortem Fees-Rep,440250,13-Aug-12,1900096418,"1,442.00",Dr Jackie Elder,101240
WARRINGTON BOROUGH COUNCIL,http://statistics.data.gov.uk/id/local-authority/00EU,Assistant Chief Executive,CEX,Coroners Service,11100,Post Mortem Fees-Rep,440250,14-Aug-12,1900096531,"1,165.20",Dr M S Al-Jafari,104464
WARRINGTON BOROUGH COUNCIL,http://statistics.data.gov.uk/id/local-authority/00EU,Assistant Chief Executive,CEX,Coroners Service,11100,Post Mortem Fees-Rep,440250,13-Aug-12,1900096433,766.1,Dr N Alash,100579
WARRINGTON BOROUGH COUNCIL,http://statistics.data.gov.uk/id/local-authority/00EU,Assistant Chief Executive,CEX,Coroners Service,11100,Post Mortem Fees-Rep,440250,24-Aug-12,1900097086,591.9,Dr Naveen Sharma,107334
WARRINGTON BOROUGH COUNCIL,http://statistics.data.gov.uk/id/local-authority/00EU,Assistant Chief Executive,CEX,Coroners Service,11100,Post Mortem Fees-Rep,440250,14-Aug-12,1900096491,"2,831.60",Dr P Simcock,102209
WARRINGTON BOROUGH COUNCIL,http://statistics.data.gov.uk/id/local-authority/00EU,Assistant Chief Executive,CEX,Coroners Service,11100,Post Mortem Fees-Rep,440250,24-Aug-12,1900097074,591.9,Dr R T Shepherd,101823
WARRINGTON BOROUGH COUNCIL,http://statistics.data.gov.uk/id/local-authority/00EU,Assistant Chief Executive,CEX,Coroners Service,11100,Post Mortem Fees-Rep,440250,13-Aug-12,1900096419,"1,646.70",Dr Suboda M Weerasinghe,105924
WARRINGTON BOROUGH COUNCIL,http://statistics.data.gov.uk/id/local-authority/00EU,Assistant Chief Executive,CEX,Coroners Service,11100,Post Mortem Fees-Rep,440250,08-Aug-12,1900096198,"1,076.80",Dr W E Kenyon,104851
WARRINGTON BOROUGH COUNCIL,http://statistics.data.gov.uk/id/local-authority/00EU,Assistant Chief Executive,CEX,Coroners Service,11100,Post Mortem Fees-Rep,440250,24-Aug-12,1900097039,"1,109.80",Dr W E Kenyon,104851
WARRINGTON BOROUGH COUNCIL,http://statistics.data.gov.uk/id/local-authority/00EU,Children & Young People,CHL,DSG Early Years PVI Settings,32417,Private & Voluntary 3 Year Olds,470100,24-Aug-12,1900097882,"3,969.39",Dweezles Pre-School,400103
WARRINGTON BOROUGH COUNCIL,http://statistics.data.gov.uk/id/local-authority/00EU,Neighbourhood & Community Services,NCS,Care Purchase - Mental Health Team 1,54230,CP-Domicil.External,440950,10-Aug-12,1900096401,"4,000.00",East Cheshire Housing Consortium,110170
WARRINGTON BOROUGH COUNCIL,http://statistics.data.gov.uk/id/local-authority/00EU,Assistant Chief Executive,CEX,Coroners Service,11100,Hire Of Mortuaries,220200,14-Aug-12,1900096485,"3,093.00",East Cheshire Nhs Trust,440130
WARRINGTON BOROUGH COUNCIL,http://statistics.data.gov.uk/id/local-authority/00EU,Neighbourhood & Community Services,NCS,Care Purchase - OP & OT South,54480,CP-LongStayExternal,441150,07-Aug-12,1900096000,"1,425.16",East Dunbartonshire Council,410087
WARRINGTON BOROUGH COUNCIL,http://statistics.data.gov.uk/id/local-authority/00EU,Neighbourhood & Community Services,NCS,Care Purchase - OP & OT South,54480,CP-LongStayExternal,441150,23-Aug-12,1900096997,"1,425.16",East Dunbartonshire Council,410087
WARRINGTON BOROUGH COUNCIL,http://statistics.data.gov.uk/id/local-authority/00EU,Environment & Regeneration,ENO,Housing Projects,82008,Disabled Persons Grant 1996,554000,31-Aug-12,1900097860,"10,339.00",Ehlen Construction,108366
WARRINGTON BOROUGH COUNCIL,http://statistics.data.gov.uk/id/local-authority/00EU,Neighbourhood & Community Services,NCS,Care Purchase - OP & OT West,54470,CP-LongStayExternal,441150,01-Aug-12,1900095657,"1,652.00",Ennerdale Nursing & Residential Hom,108529
WARRINGTON BOROUGH COUNCIL,http://statistics.data.gov.uk/id/local-authority/00EU,Neighbourhood & Community Services,NCS,Care Purchase - OP & OT West,54470,CP-LongStayExternal,441150,31-Aug-12,1900097985,"1,652.00",Ennerdale Nursing & Residential Hom,108529
WARRINGTON BOROUGH COUNCIL,http://statistics.data.gov.uk/id/local-authority/00EU,Children & Young People,CYP,Primary,81001,Consult.& Prof. Serv,440000,15-Aug-12,1900096652,"1,238.00",Entrance Technology Services Ltd,105354
WARRINGTON BOROUGH COUNCIL,http://statistics.data.gov.uk/id/local-authority/00EU,Neighbourhood & Community Services,NCS,Care Purchase -OP & OT East,54430,CP-LongStayExternal,441150,01-Aug-12,1900095645,"2,059.29",Eton House Residential Home,106252
WARRINGTON BOROUGH COUNCIL,http://statistics.data.gov.uk/id/local-authority/00EU,Neighbourhood & Community Services,NCS,Care Purchase Budget,54490,CP ExternalOther Exp,440800,15-Aug-12,1900096594,"2,229.80",European Care (Uk) Ltd,100320
WARRINGTON BOROUGH COUNCIL,http://statistics.data.gov.uk/id/local-authority/00EU,Neighbourhood & Community Services,NCS,Care Purchase Budget,54490,CP ExternalOther Exp,440800,16-Aug-12,1900096714,"40,000.00",European Care (Uk) Ltd,100320
WARRINGTON BOROUGH COUNCIL,http://statistics.data.gov.uk/id/local-authority/00EU,Environment & Regeneration,ENO,Housing Projects,82008,Disabled Persons Grant 1996,554000,06-Aug-12,1900095888,"9,980.00",First Choice Builders,110741
WARRINGTON BOROUGH COUNCIL,http://statistics.data.gov.uk/id/local-authority/00EU,Neighbourhood & Community Services,NCS,Care Purchase - OP & OT South,54480,CP-Nursing Care-External,441200,07-Aug-12,1900095978,"1,532.00",Flightcare Limited,102299
WARRINGTON BOROUGH COUNCIL,http://statistics.data.gov.uk/id/local-authority/00EU,Neighbourhood & Community Services,NCS,Care Purchase - OP & OT South,54480,CP-Nursing Care-External,441200,29-Aug-12,1900097774,"1,532.00",Flightcare Limited,102299
WARRINGTON BOROUGH COUNCIL,http://statistics.data.gov.uk/id/local-authority/00EU,Children & Young People,CHL,Agency Placements,30904,Fostering Accommodation,441050,30-Aug-12,1900097819,"4,380.30",Foster Care Associates Ltd,101086
WARRINGTON BOROUGH COUNCIL,http://statistics.data.gov.uk/id/local-authority/00EU,Children & Young People,CHL,Fostering Team,31105,Consult.& Prof. Serv,440000,29-Aug-12,1900097780,"3,196.00",Fostering Network,440069
WARRINGTON BOROUGH COUNCIL,http://statistics.data.gov.uk/id/local-authority/00EU,Children & Young People,CHL,Agency Placements,30904,Fostering Accommodation,441050,20-Aug-12,1900096824,"2,893.80",Fostering Solutions (North West),101226
WARRINGTON BOROUGH COUNCIL,http://statistics.data.gov.uk/id/local-authority/00EU,Neighbourhood & Community Services,NCS,Care Purchase - OP & OT West,54470,CP-Nursing Care-External,441200,29-Aug-12,1900097711,"1,496.00",Four Seasons Health Care,100629
WARRINGTON BOROUGH COUNCIL,http://statistics.data.gov.uk/id/local-authority/00EU,Neighbourhood & Community Services,NCS,Care Purchase - OP & OT West,54470,CP-Nursing Care-External,441200,31-Aug-12,1900097979,"1,427.08",Four Seasons Ta Cherry Trees,103592
WARRINGTON BOROUGH COUNCIL,http://statistics.data.gov.uk/id/local-authority/00EU,Neighbourhood & Community Services,NCS,Care Purchase Budget,54490,CP ExternalOther Exp,440800,16-Aug-12,1900096728,"37,000.00",Four Seasons ta St Oswalds Care Hom,109422
WARRINGTON BOROUGH COUNCIL,http://statistics.data.gov.uk/id/local-authority/00EU,Neighbourhood & Community Services,NCS,Care Purchase Budget,54490,CP ExternalOther Exp,440800,23-Aug-12,1900097015,"8,038.91",Four Seasons ta St Oswalds Care Hom,109422
WARRINGTON BOROUGH COUNCIL,http://statistics.data.gov.uk/id/local-authority/00EU,Neighbourhood & Community Services,NCS,Supporting People Grant Payments,53260,Sheltd/Xtra Care Hsing and Comm Alarms,535050,07-Aug-12,1900096051,"14,950.04",Frontis Homes,101685
WARRINGTON BOROUGH COUNCIL,http://statistics.data.gov.uk/id/local-authority/00EU,Holding Accounts,HOL,Insurance Fund,91100,Insurance Claims,443400,23-Aug-12,1900097020,"31,573.98",Gallagher Bassett International Ltd,104739
WARRINGTON BOROUGH COUNCIL,http://statistics.data.gov.uk/id/local-authority/00EU,Assistant Chief Executive,CEX,Coroners Service,11100,Consult.& Prof. Serv,440000,13-Aug-12,1900096430,"2,174.80",Geoff Roberts Assoc Ltd,101833
WARRINGTON BOROUGH COUNCIL,http://statistics.data.gov.uk/id/local-authority/00EU,Neighbourhood & Community Services,NCS,Administration,51010,Gen. Personal Needs,490850,08-Aug-12,1900096175,"5,000.00",George Davies Solicitors,110304
WARRINGTON BOROUGH COUNCIL,http://statistics.data.gov.uk/id/local-authority/00EU,Neighbourhood & Community Services,NCS,Administration,51010,Gen. Personal Needs,490850,08-Aug-12,1900096241,"13,010.00",George Davies Solicitors,110304
WARRINGTON BOROUGH COUNCIL,http://statistics.data.gov.uk/id/local-authority/00EU,Children & Young People,CHL,DSG Early Years PVI Settings,32417,Private & Voluntary 3 Year Olds,470100,24-Aug-12,1900097884,"4,181.17",Glazebury Pre-School Playgroup,400132
WARRINGTON BOROUGH COUNCIL,http://statistics.data.gov.uk/id/local-authority/00EU,Neighbourhood & Community Services,NCS,Supportin People Internal Contracts,53261,Sheltd/Xtra Care Hsing and Comm Alarms,535050,29-Aug-12,1900097750,"30,477.12",Golden Gates Housing Trust,101005
WARRINGTON BOROUGH COUNCIL,http://statistics.data.gov.uk/id/local-authority/00EU,Neighbourhood & Community Services,NCS,Care Purchase - Learning Disability,54450,Voids,515150,03-Aug-12,1900095845,632.92,Golden Lane Housing,106663
WARRINGTON BOROUGH COUNCIL,http://statistics.data.gov.uk/id/local-authority/00EU,Children & Young People,CHL,DSG Early Years PVI Settings,32417,Private & Voluntary 3 Year Olds,470100,24-Aug-12,1900097885,"9,838.71",Grappenhall Pre-School,400134
WARRINGTON BOROUGH COUNCIL,http://statistics.data.gov.uk/id/local-authority/00EU,Children & Young People,CHL,DSG Early Years PVI Settings,32417,Private & Voluntary 3 Year Olds,470100,24-Aug-12,1900097886,"16,593.36",Green Park Nursery,400089
WARRINGTON BOROUGH COUNCIL,http://statistics.data.gov.uk/id/local-authority/00EU,Neighbourhood & Community Services,NCS,Care Purchase - Learning Disability,54450,CP-LongStayExternal,441150,10-Aug-12,1900096371,"12,348.00",Griffin Care Ltd,101672
WARRINGTON BOROUGH COUNCIL,http://statistics.data.gov.uk/id/local-authority/00EU,Neighbourhood & Community Services,NCS,Care Purchase - Learning Disability,54450,CP-LongStayExternal,441150,10-Aug-12,1900096375,"12,348.00",Griffin Care Ltd,101672
WARRINGTON BOROUGH COUNCIL,http://statistics.data.gov.uk/id/local-authority/00EU,Environment & Regeneration,ENP,Environment & Regeneration,82000,Consult.& Prof. Serv,440000,29-Aug-12,1900097781,"3,228.00",Ground Gas Solutions Ltd,106360
WARRINGTON BOROUGH COUNCIL,http://statistics.data.gov.uk/id/local-authority/00EU,Neighbourhood & Community Services,NCS,Care Purchase - OP & OT Central,54420,CP-LongStayExternal,441150,14-Aug-12,1900096549,"1,458.80",Haddon Court Rest Home,107727
WARRINGTON BOROUGH COUNCIL,http://statistics.data.gov.uk/id/local-authority/00EU,Children & Young People,CHL,Halton Music Grant,32218,Payment of Grants,470050,29-Aug-12,1900097658,"38,322.00",Halton Borough Council,410000
WARRINGTON BOROUGH COUNCIL,http://statistics.data.gov.uk/id/local-authority/00EU,Children & Young People,CHL,Halton Music Grant,32218,Payment of Grants,470050,29-Aug-12,1900097769,"38,322.00",Halton Borough Council,410008
WARRINGTON BOROUGH COUNCIL,http://statistics.data.gov.uk/id/local-authority/00EU,Children & Young People,CYP,Secondary,81002,Contract Works,492550,15-Aug-12,1900096588,"18,102.49",Halton Window Systems Ltd,110799
WARRINGTON BOROUGH COUNCIL,http://statistics.data.gov.uk/id/local-authority/00EU,Neighbourhood & Community Services,NCS,Care Purchase Budget,54490,CP ExternalOther Exp,440800,16-Aug-12,1900096734,"18,000.00",Harbour Healthcare 1 Ltd,110527
WARRINGTON BOROUGH COUNCIL,http://statistics.data.gov.uk/id/local-authority/00EU,Neighbourhood & Community Services,NCS,Care Purchase Budget,54490,CP ExternalOther Exp,440800,16-Aug-12,1900096766,"7,918.00",Harbour Healthcare 1 Ltd,110527
WARRINGTON BOROUGH COUNCIL,http://statistics.data.gov.uk/id/local-authority/00EU,Children & Young People,CYP,Secondary,81002,Contract Works,492550,14-Aug-12,1900096479,"9,129.50",Hartwell Developments,103603
WARRINGTON BOROUGH COUNCIL,http://statistics.data.gov.uk/id/local-authority/00EU,Neighbourhood & Community Services,NCS,Care Purchase - OP & OT Central,54420,CP-Nursing Care-External,441200,01-Aug-12,1900095599,"2,208.04",HC1 Ltd County Homes,104325
WARRINGTON BOROUGH COUNCIL,http://statistics.data.gov.uk/id/local-authority/00EU,Neighbourhood & Community Services,NCS,Care Purchase - OP & OT Central,54420,CP-LongStayExternal,441150,01-Aug-12,1900095600,"2,208.04",HC1 Ltd County Homes,104325
WARRINGTON BOROUGH COUNCIL,http://statistics.data.gov.uk/id/local-authority/00EU,Neighbourhood & Community Services,NCS,Care Purchase - OP & OT Central,54420,CP-Nursing Care-External,441200,29-Aug-12,1900097705,"2,208.04",HC1 Ltd County Homes,104325
WARRINGTON BOROUGH COUNCIL,http://statistics.data.gov.uk/id/local-authority/00EU,Neighbourhood & Community Services,NCS,Care Purchase - OP & OT Central,54420,CP-LongStayExternal,441150,29-Aug-12,1900097706,"2,208.04",HC1 Ltd County Homes,104325
WARRINGTON BOROUGH COUNCIL,http://statistics.data.gov.uk/id/local-authority/00EU,Neighbourhood & Community Services,NCS,Care Purchase - PD,54440,CP-Nursing Care-External,441200,01-Aug-12,1900095601,"2,372.00",HC-ONE Limited Beechley,109455
WARRINGTON BOROUGH COUNCIL,http://statistics.data.gov.uk/id/local-authority/00EU,Neighbourhood & Community Services,NCS,Care Purchase - PD,54440,CP-Nursing Care-External,441200,29-Aug-12,1900097771,"2,372.00",HC-ONE Limited Beechley,109455
WARRINGTON BOROUGH COUNCIL,http://statistics.data.gov.uk/id/local-authority/00EU,Neighbourhood & Community Services,NCS,Care Purchase Budget,54490,CP ExternalOther Exp,440800,16-Aug-12,1900096706,"150,000.00",HC-One Limited Callands,109640
WARRINGTON BOROUGH COUNCIL,http://statistics.data.gov.uk/id/local-authority/00EU,Neighbourhood & Community Services,NCS,Care Purchase Budget,54490,CP ExternalOther Exp,440800,21-Aug-12,1900096881,"17,385.19",HC-One Limited Callands,109640
WARRINGTON BOROUGH COUNCIL,http://statistics.data.gov.uk/id/local-authority/00EU,Neighbourhood & Community Services,NCS,Care Purchase Budget,54490,CP Free Nursing Care External,443500,23-Aug-12,1900097018,714.31,HC-One Limited Callands,109640
WARRINGTON BOROUGH COUNCIL,http://statistics.data.gov.uk/id/local-authority/00EU,Neighbourhood & Community Services,NCS,Care Purchase - OP & OT West,54470,CP-Nursing Care-External,441200,23-Aug-12,1900097018,"2,812.58",HC-One Limited Callands,109640
WARRINGTON BOROUGH COUNCIL,http://statistics.data.gov.uk/id/local-authority/00EU,Neighbourhood & Community Services,NCS,Care Purchase - Learning Disability,54450,CP-Nursing Care-External,441200,07-Aug-12,1900095934,"4,200.00",Health & Social Care Partnerships,107996
WARRINGTON BOROUGH COUNCIL,http://statistics.data.gov.uk/id/local-authority/00EU,Neighbourhood & Community Services,NCS,Care Purchase - Learning Disability,54450,CP-Nursing Care-External,441200,07-Aug-12,1900095938,"4,800.00",Health & Social Care Partnerships,107996
WARRINGTON BOROUGH COUNCIL,http://statistics.data.gov.uk/id/local-authority/00EU,Neighbourhood & Community Services,NCS,Care Purchase - Learning Disability,54450,CP-Nursing Care-External,441200,07-Aug-12,1900095940,"11,220.00",Health & Social Care Partnerships,107996
WARRINGTON BOROUGH COUNCIL,http://statistics.data.gov.uk/id/local-authority/00EU,Neighbourhood & Community Services,NCS,Care Purchase - Learning Disability,54450,CP-Nursing Care-External,441200,07-Aug-12,1900095941,"9,240.00",Health & Social Care Partnerships,107996
WARRINGTON BOROUGH COUNCIL,http://statistics.data.gov.uk/id/local-authority/00EU,Neighbourhood & Community Services,NCS,Care Purchase - Learning Disability,54450,CP-Nursing Care-External,441200,07-Aug-12,1900095942,"4,200.00",Health & Social Care Partnerships,107996
WARRINGTON BOROUGH COUNCIL,http://statistics.data.gov.uk/id/local-authority/00EU,Neighbourhood & Community Services,NCS,Care Purchase - Learning Disability,54450,CP-Nursing Care-External,441200,07-Aug-12,1900095944,"4,200.00",Health & Social Care Partnerships,107996
WARRINGTON BOROUGH COUNCIL,http://statistics.data.gov.uk/id/local-authority/00EU,Neighbourhood & Community Services,NCS,Care Purchase - Learning Disability,54450,CP-LongStayExternal,441150,07-Aug-12,1900095946,"4,200.00",Health & Social Care Partnerships,107996
WARRINGTON BOROUGH COUNCIL,http://statistics.data.gov.uk/id/local-authority/00EU,Neighbourhood & Community Services,NCS,Care Purchase - Learning Disability,54450,CP-Nursing Care-External,441200,07-Aug-12,1900095947,"4,800.00",Health & Social Care Partnerships,107996
WARRINGTON BOROUGH COUNCIL,http://statistics.data.gov.uk/id/local-authority/00EU,Neighbourhood & Community Services,NCS,Care Purchase - Learning Disability,54450,CP-Nursing Care-External,441200,10-Aug-12,1900096395,510,Health & Social Care Partnerships,107996
WARRINGTON BOROUGH COUNCIL,http://statistics.data.gov.uk/id/local-authority/00EU,Neighbourhood & Community Services,NCS,Care Purchase - Learning Disability,54450,CP-LongStayExternal,441150,29-Aug-12,1900097659,"4,200.00",Health & Social Care Partnerships,107996
WARRINGTON BOROUGH COUNCIL,http://statistics.data.gov.uk/id/local-authority/00EU,Neighbourhood & Community Services,NCS,Care Purchase - Learning Disability,54450,CP-Nursing Care-External,441200,29-Aug-12,1900097661,"4,200.00",Health & Social Care Partnerships,107996
WARRINGTON BOROUGH COUNCIL,http://statistics.data.gov.uk/id/local-authority/00EU,Neighbourhood & Community Services,NCS,Care Purchase - Learning Disability,54450,CP-Nursing Care-External,441200,29-Aug-12,1900097663,"4,800.00",Health & Social Care Partnerships,107996
WARRINGTON BOROUGH COUNCIL,http://statistics.data.gov.uk/id/local-authority/00EU,Neighbourhood & Community Services,NCS,Care Purchase - Learning Disability,54450,CP-Nursing Care-External,441200,29-Aug-12,1900097667,"9,240.00",Health & Social Care Partnerships,107996
WARRINGTON BOROUGH COUNCIL,http://statistics.data.gov.uk/id/local-authority/00EU,Neighbourhood & Community Services,NCS,Care Purchase - Learning Disability,54450,CP-Nursing Care-External,441200,29-Aug-12,1900097670,"4,200.00",Health & Social Care Partnerships,107996
WARRINGTON BOROUGH COUNCIL,http://statistics.data.gov.uk/id/local-authority/00EU,Neighbourhood & Community Services,NCS,Care Purchase - Learning Disability,54450,CP-Nursing Care-External,441200,29-Aug-12,1900097671,"4,200.00",Health & Social Care Partnerships,107996
WARRINGTON BOROUGH COUNCIL,http://statistics.data.gov.uk/id/local-authority/00EU,Neighbourhood & Community Services,NCS,Care Purchase - Learning Disability,54450,CP-Nursing Care-External,441200,29-Aug-12,1900097672,"4,800.00",Health & Social Care Partnerships,107996
WARRINGTON BOROUGH COUNCIL,http://statistics.data.gov.uk/id/local-authority/00EU,Children & Young People,CHL,DSG Early Years PVI Settings,32417,Private & Voluntary 3 Year Olds,470100,24-Aug-12,1900097887,"7,222.99",Heathfield House Day Nursery,400138
WARRINGTON BOROUGH COUNCIL,http://statistics.data.gov.uk/id/local-authority/00EU,Children & Young People,CHL,EIG Funding - 2 Year Old,31601,Payment of Grants,470050,24-Aug-12,1900097951,"2,851.80",Heathfield House Day Nursery,400138
WARRINGTON BOROUGH COUNCIL,http://statistics.data.gov.uk/id/local-authority/00EU,Neighbourhood & Community Services,NCS,Care Purchase Budget,54490,CP ExternalOther Exp,440800,01-Aug-12,1900095614,"1,395.20",Heathfield Residental Home,100059
WARRINGTON BOROUGH COUNCIL,http://statistics.data.gov.uk/id/local-authority/00EU,Neighbourhood & Community Services,NCS,Care Purchase Budget,54490,CP ExternalOther Exp,440800,16-Aug-12,1900096711,"18,000.00",Heathfield Residental Home,100059
WARRINGTON BOROUGH COUNCIL,http://statistics.data.gov.uk/id/local-authority/00EU,Neighbourhood & Community Services,NCS,Care Purchase Budget,54490,CP ExternalOther Exp,440800,16-Aug-12,1900096712,"50,000.00",Heathside Elderly Persons Home,104777
WARRINGTON BOROUGH COUNCIL,http://statistics.data.gov.uk/id/local-authority/00EU,Neighbourhood & Community Services,NCS,Care Purchase -OP & OT East,54430,CP-Nursing Care-External,441200,15-Aug-12,1900096602,"2,280.00",Highfield Hall Four Seasons No 11 L,110793
WARRINGTON BOROUGH COUNCIL,http://statistics.data.gov.uk/id/local-authority/00EU,Neighbourhood & Community Services,NCS,Care Purchase -OP & OT East,54430,CP-Nursing Care-External,441200,15-Aug-12,1900096603,"2,280.00",Highfield Hall Four Seasons No 11 L,110793
WARRINGTON BOROUGH COUNCIL,http://statistics.data.gov.uk/id/local-authority/00EU,Neighbourhood & Community Services,NCS,Care Purchase -OP & OT East,54430,CP-Nursing Care-External,441200,15-Aug-12,1900096604,"5,537.14",Highfield Hall Four Seasons No 11 L,110793
WARRINGTON BOROUGH COUNCIL,http://statistics.data.gov.uk/id/local-authority/00EU,Neighbourhood & Community Services,NCS,Care Purchase - Mental Health Team 1,54230,CP-LongStayExternal,441150,01-Aug-12,1900095623,"1,564.00",Hilton Residential Homes Ltd,104783
WARRINGTON BOROUGH COUNCIL,http://statistics.data.gov.uk/id/local-authority/00EU,Neighbourhood & Community Services,NCS,Care Purchase - Mental Health Team 1,54230,CP-LongStayExternal,441150,29-Aug-12,1900097760,"1,564.00",Hilton Residential Homes Ltd,104783
WARRINGTON BOROUGH COUNCIL,http://statistics.data.gov.uk/id/local-authority/00EU,Children & Young People,CHL,Legal Fees - Safeguarding,30100,Legal Costs Incurred,440200,01-Aug-12,1900095663,"2,225.00",Hmcs,440047
WARRINGTON BOROUGH COUNCIL,http://statistics.data.gov.uk/id/local-authority/00EU,Assistant Chief Executive,CEX,Registrars Services,11300,Service Charges,220050,23-Aug-12,1900097012,"2,794.00",HMCS,105980
WARRINGTON BOROUGH COUNCIL,http://statistics.data.gov.uk/id/local-authority/00EU,Assistant Chief Executive,CEX,Council Tax & Recovery,10320,Court Costs,460100,22-Aug-12,1900096932,"1,791.00",Hmcs North Cheshire Collections,102261
WARRINGTON BOROUGH COUNCIL,http://statistics.data.gov.uk/id/local-authority/00EU,Assistant Chief Executive,CEX,Council Tax & Recovery,10320,Court Costs,460100,16-Aug-12,1900096767,"1,791.00",HMCTS,440115
WARRINGTON BOROUGH COUNCIL,http://statistics.data.gov.uk/id/local-authority/00EU,Assistant Chief Executive,CEX,Registrars Services,11300,Service Charges,220050,22-Aug-12,1900096913,"2,794.00",HMCTS,440115
WARRINGTON BOROUGH COUNCIL,http://statistics.data.gov.uk/id/local-authority/00EU,Neighbourhood & Community Services,NCS,Care Purchase Budget,54490,CP - Cont Care - External,441350,29-Aug-12,1900097675,"2,177.56",Home Instead Senior Care,103236
WARRINGTON BOROUGH COUNCIL,http://statistics.data.gov.uk/id/local-authority/00EU,Neighbourhood & Community Services,NCS,Care Purchase Budget,54490,CP - Cont Care - External,441350,29-Aug-12,1900097725,"2,060.91",Home Instead Senior Care,103236
WARRINGTON BOROUGH COUNCIL,http://statistics.data.gov.uk/id/local-authority/00EU,Neighbourhood & Community Services,NCS,Care Purchase - OP & OT West,54470,CP-Domicil.External,440950,15-Aug-12,1900096614,"3,405.25",Homelife Leeds Ltd,101794
WARRINGTON BOROUGH COUNCIL,http://statistics.data.gov.uk/id/local-authority/00EU,Neighbourhood & Community Services,NCS,Care Purchase - OP & OT West,54470,CP-Domicil.External,440950,29-Aug-12,1900097720,"3,405.25",Homelife Leeds Ltd,101794
WARRINGTON BOROUGH COUNCIL,http://statistics.data.gov.uk/id/local-authority/00EU,Children & Young People,CHL,DSG Early Years PVI Settings,32417,Private & Voluntary 3 Year Olds,470100,24-Aug-12,1900097888,662.68,Hood Lane Playgroup,400139
WARRINGTON BOROUGH COUNCIL,http://statistics.data.gov.uk/id/local-authority/00EU,Neighbourhood & Community Services,NCS,Care Purchase - PD,54440,Supporting People - External,441250,08-Aug-12,1900096230,691,Housing 21,100060
WARRINGTON BOROUGH COUNCIL,http://statistics.data.gov.uk/id/local-authority/00EU,Neighbourhood & Community Services,NCS,Care Purchase - PD,54440,CP-Domicil.External,440950,08-Aug-12,1900096230,"1,898.49",Housing 21,100060
WARRINGTON BOROUGH COUNCIL,http://statistics.data.gov.uk/id/local-authority/00EU,Neighbourhood & Community Services,NCS,Care Purchase -OP & OT East,54430,CP-Domicil.External,440950,08-Aug-12,1900096230,"3,742.40",Housing 21,100060
WARRINGTON BOROUGH COUNCIL,http://statistics.data.gov.uk/id/local-authority/00EU,Neighbourhood & Community Services,NCS,Care Purchase - OP & OT Central,54420,CP-Domicil.External,440950,08-Aug-12,1900096230,"5,064.90",Housing 21,100060
WARRINGTON BOROUGH COUNCIL,http://statistics.data.gov.uk/id/local-authority/00EU,Neighbourhood & Community Services,NCS,Care Purchase - OP & OT South,54480,CP-Domicil.External,440950,08-Aug-12,1900096230,"6,267.48",Housing 21,100060
WARRINGTON BOROUGH COUNCIL,http://statistics.data.gov.uk/id/local-authority/00EU,Neighbourhood & Community Services,NCS,Care Purchase - OP & OT West,54470,CP-Domicil.External,440950,08-Aug-12,1900096230,"9,993.21",Housing 21,100060
WARRINGTON BOROUGH COUNCIL,http://statistics.data.gov.uk/id/local-authority/00EU,Neighbourhood & Community Services,NCS,Care Purchase - OP & OT South,54480,CP-Domicil.External,440950,08-Aug-12,1900096232,930.71,Housing 21,100060
WARRINGTON BOROUGH COUNCIL,http://statistics.data.gov.uk/id/local-authority/00EU,Neighbourhood & Community Services,NCS,Care Purchase - PD,54440,CP-Domicil.External,440950,08-Aug-12,1900096232,"1,713.25",Housing 21,100060
WARRINGTON BOROUGH COUNCIL,http://statistics.data.gov.uk/id/local-authority/00EU,Neighbourhood & Community Services,NCS,Care Purchase - OP & OT Central,54420,CP-Domicil.External,440950,08-Aug-12,1900096232,"3,079.95",Housing 21,100060
WARRINGTON BOROUGH COUNCIL,http://statistics.data.gov.uk/id/local-authority/00EU,Neighbourhood & Community Services,NCS,Care Purchase -OP & OT East,54430,CP-Domicil.External,440950,08-Aug-12,1900096232,"4,169.28",Housing 21,100060
WARRINGTON BOROUGH COUNCIL,http://statistics.data.gov.uk/id/local-authority/00EU,Neighbourhood & Community Services,NCS,Care Purchase - OP & OT West,54470,CP-Domicil.External,440950,08-Aug-12,1900096232,"6,285.08",Housing 21,100060
WARRINGTON BOROUGH COUNCIL,http://statistics.data.gov.uk/id/local-authority/00EU,Environment & Regeneration,ENO,Housing Projects,82008,Disabled Persons Grant 1996,554000,08-Aug-12,1900096234,"5,676.66",Hughes Brothers Building And Joiner,103599
WARRINGTON BOROUGH COUNCIL,http://statistics.data.gov.uk/id/local-authority/00EU,Neighbourhood & Community Services,NCS,Care Purchase - Mental Health Team 1,54230,CP-LongStayExternal,441150,07-Aug-12,1900095915,"6,307.32",HWCGS Care Ltd,108619
WARRINGTON BOROUGH COUNCIL,http://statistics.data.gov.uk/id/local-authority/00EU,Neighbourhood & Community Services,NCS,Care Purchase - Learning Disability,54450,CP-LongStayExternal,441150,07-Aug-12,1900095916,"6,554.36",HWCGS Care Ltd,108619
WARRINGTON BOROUGH COUNCIL,http://statistics.data.gov.uk/id/local-authority/00EU,Neighbourhood & Community Services,NCS,Care Purchase - Learning Disability,54450,CP-LongStayExternal,441150,10-Aug-12,1900096369,"8,019.89",HWCGS Care Ltd,108619
WARRINGTON BOROUGH COUNCIL,http://statistics.data.gov.uk/id/local-authority/00EU,Neighbourhood & Community Services,NCS,Care Purchase - Mental Health Team 1,54230,CP-LongStayExternal,441150,31-Aug-12,1900097980,"6,307.32",HWCGS Care Ltd,108619
WARRINGTON BOROUGH COUNCIL,http://statistics.data.gov.uk/id/local-authority/00EU,Neighbourhood & Community Services,NCS,Care Purchase - Learning Disability,54450,CP-LongStayExternal,441150,31-Aug-12,1900097981,"6,554.36",HWCGS Care Ltd,108619
WARRINGTON BOROUGH COUNCIL,http://statistics.data.gov.uk/id/local-authority/00EU,Neighbourhood & Community Services,NCS,Care Purchase - Learning Disability,54450,CP-LongStayExternal,441150,14-Aug-12,1900096546,600,Icare Service Limited,110435
WARRINGTON BOROUGH COUNCIL,http://statistics.data.gov.uk/id/local-authority/00EU,Neighbourhood & Community Services,NCS,Care Purchase - Learning Disability,54450,CP-LongStayExternal,441150,14-Aug-12,1900096547,600,Icare Service Limited,110435
WARRINGTON BOROUGH COUNCIL,http://statistics.data.gov.uk/id/local-authority/00EU,Neighbourhood & Community Services,NCS,Care Purchase - Learning Disability,54450,CP-LongStayExternal,441150,15-Aug-12,1900096659,600,Icare Service Limited,110435
WARRINGTON BOROUGH COUNCIL,http://statistics.data.gov.uk/id/local-authority/00EU,Neighbourhood & Community Services,NCS,Care Purchase - Learning Disability,54450,CP-LongStayExternal,441150,15-Aug-12,1900096662,600,Icare Service Limited,110435
WARRINGTON BOROUGH COUNCIL,http://statistics.data.gov.uk/id/local-authority/00EU,Neighbourhood & Community Services,NCS,Care Purchase - Learning Disability,54450,CP-LongStayExternal,441150,15-Aug-12,1900096664,600,Icare Service Limited,110435
WARRINGTON BOROUGH COUNCIL,http://statistics.data.gov.uk/id/local-authority/00EU,Neighbourhood & Community Services,NCS,Care Purchase - Learning Disability,54450,CP-LongStayExternal,441150,15-Aug-12,1900096666,600,Icare Service Limited,110435
WARRINGTON BOROUGH COUNCIL,http://statistics.data.gov.uk/id/local-authority/00EU,Neighbourhood & Community Services,NCS,Care Purchase - Learning Disability,54450,CP-LongStayExternal,441150,31-Aug-12,1900097845,600,Icare Service Limited,110435
WARRINGTON BOROUGH COUNCIL,http://statistics.data.gov.uk/id/local-authority/00EU,Neighbourhood & Community Services,NCS,Care Purchase - Learning Disability,54450,CP-LongStayExternal,441150,31-Aug-12,1900097847,600,Icare Service Limited,110435
WARRINGTON BOROUGH COUNCIL,http://statistics.data.gov.uk/id/local-authority/00EU,Neighbourhood & Community Services,NCS,Care Purchase - Learning Disability,54450,CP-LongStayExternal,441150,07-Aug-12,1900095992,"12,532.00",Inclusive Lifestyles Ltd,101840
WARRINGTON BOROUGH COUNCIL,http://statistics.data.gov.uk/id/local-authority/00EU,Neighbourhood & Community Services,NCS,Care Purchase - Learning Disability,54450,CP-LongStayExternal,441150,07-Aug-12,1900095993,"1,480.76",Inclusive Lifestyles Ltd,101840
WARRINGTON BOROUGH COUNCIL,http://statistics.data.gov.uk/id/local-authority/00EU,Neighbourhood & Community Services,NCS,Care Purchase - Learning Disability,54450,CP-LongStayExternal,441150,07-Aug-12,1900095994,"1,257.60",Inclusive Lifestyles Ltd,101840
WARRINGTON BOROUGH COUNCIL,http://statistics.data.gov.uk/id/local-authority/00EU,Neighbourhood & Community Services,NCS,Care Purchase - Learning Disability,54450,CP-LongStayExternal,441150,07-Aug-12,1900095996,"12,744.00",Inclusive Lifestyles Ltd,101840
WARRINGTON BOROUGH COUNCIL,http://statistics.data.gov.uk/id/local-authority/00EU,Neighbourhood & Community Services,NCS,Care Purchase - Mental Health Team 1,54230,Supporting People - External,441250,07-Aug-12,1900095969,"1,000.00",Independent Living Alliance,100726
WARRINGTON BOROUGH COUNCIL,http://statistics.data.gov.uk/id/local-authority/00EU,Neighbourhood & Community Services,NCS,Care Purchase - Mental Health Team 1,54230,CP-Domicil.External,440950,07-Aug-12,1900095969,"4,372.44",Independent Living Alliance,100726
WARRINGTON BOROUGH COUNCIL,http://statistics.data.gov.uk/id/local-authority/00EU,Neighbourhood & Community Services,NCS,Care Purchase - Learning Disability,54450,CP-Domicil.External,440950,07-Aug-12,1900095970,"1,479.75",Independent Living Alliance,100726
WARRINGTON BOROUGH COUNCIL,http://statistics.data.gov.uk/id/local-authority/00EU,Neighbourhood & Community Services,NCS,Care Purchase - Learning Disability,54450,CP-Domicil.External,440950,07-Aug-12,1900095971,986.5,Independent Living Alliance,100726
WARRINGTON BOROUGH COUNCIL,http://statistics.data.gov.uk/id/local-authority/00EU,Neighbourhood & Community Services,NCS,Care Purchase Budget,54490,CP - Cont Care - External,441350,08-Aug-12,1900096204,"6,138.30",Independent Living Alliance,100726
WARRINGTON BOROUGH COUNCIL,http://statistics.data.gov.uk/id/local-authority/00EU,Neighbourhood & Community Services,NCS,Care Purchase - Mental Health Team 1,54230,CP-Domicil.External,440950,08-Aug-12,1900096206,518,Independent Living Alliance,100726
WARRINGTON BOROUGH COUNCIL,http://statistics.data.gov.uk/id/local-authority/00EU,Neighbourhood & Community Services,NCS,Care Purchase - Mental Health Team 1,54230,Supporting People - External,441250,08-Aug-12,1900096208,600,Independent Living Alliance,100726
WARRINGTON BOROUGH COUNCIL,http://statistics.data.gov.uk/id/local-authority/00EU,Neighbourhood & Community Services,NCS,Care Purchase - Mental Health Team 1,54230,CP-Domicil.External,440950,08-Aug-12,1900096208,"4,231.36",Independent Living Alliance,100726
WARRINGTON BOROUGH COUNCIL,http://statistics.data.gov.uk/id/local-authority/00EU,Neighbourhood & Community Services,NCS,Care Purchase - Mental Health Team 1,54230,Supporting People - External,441250,08-Aug-12,1900096209,880,Independent Living Alliance,100726
WARRINGTON BOROUGH COUNCIL,http://statistics.data.gov.uk/id/local-authority/00EU,Neighbourhood & Community Services,NCS,Care Purchase - Mental Health Team 1,54230,CP-Domicil.External,440950,08-Aug-12,1900096209,"1,759.24",Independent Living Alliance,100726
WARRINGTON BOROUGH COUNCIL,http://statistics.data.gov.uk/id/local-authority/00EU,Neighbourhood & Community Services,NCS,Care Purchase - Mental Health Team 1,54230,Supporting People - External,441250,08-Aug-12,1900096211,880,Independent Living Alliance,100726
WARRINGTON BOROUGH COUNCIL,http://statistics.data.gov.uk/id/local-authority/00EU,Neighbourhood & Community Services,NCS,Care Purchase - Mental Health Team 1,54230,CP-Domicil.External,440950,08-Aug-12,1900096211,"1,759.24",Independent Living Alliance,100726
WARRINGTON BOROUGH COUNCIL,http://statistics.data.gov.uk/id/local-authority/00EU,Neighbourhood & Community Services,NCS,Care Purchase - Mental Health Team 1,54230,CP-Domicil.External,440950,08-Aug-12,1900096212,738.15,Independent Living Alliance,100726
WARRINGTON BOROUGH COUNCIL,http://statistics.data.gov.uk/id/local-authority/00EU,Neighbourhood & Community Services,NCS,Care Purchase - Mental Health Team 3,54250,CP-Domicil.External,440950,08-Aug-12,1900096213,"2,537.68",Independent Living Alliance,100726
WARRINGTON BOROUGH COUNCIL,http://statistics.data.gov.uk/id/local-authority/00EU,Neighbourhood & Community Services,NCS,Care Purchase - Mental Health Team 1,54230,CP-Domicil.External,440950,08-Aug-12,1900096214,"3,448.76",Independent Living Alliance,100726
WARRINGTON BOROUGH COUNCIL,http://statistics.data.gov.uk/id/local-authority/00EU,Neighbourhood & Community Services,NCS,Care Purchase - Mental Health Team 1,54230,Supporting People - External,441250,08-Aug-12,1900096216,880,Independent Living Alliance,100726
WARRINGTON BOROUGH COUNCIL,http://statistics.data.gov.uk/id/local-authority/00EU,Neighbourhood & Community Services,NCS,Care Purchase - Mental Health Team 1,54230,CP-Domicil.External,440950,08-Aug-12,1900096216,"1,552.04",Independent Living Alliance,100726
WARRINGTON BOROUGH COUNCIL,http://statistics.data.gov.uk/id/local-authority/00EU,Neighbourhood & Community Services,NCS,Care Purchase - Mental Health Team 3,54250,CP-Domicil.External,440950,08-Aug-12,1900096218,"2,553.76",Independent Living Alliance,100726
WARRINGTON BOROUGH COUNCIL,http://statistics.data.gov.uk/id/local-authority/00EU,Neighbourhood & Community Services,NCS,Care Purchase - PD,54440,Supporting People - External,441250,08-Aug-12,1900096219,"1,000.00",Independent Living Alliance,100726
WARRINGTON BOROUGH COUNCIL,http://statistics.data.gov.uk/id/local-authority/00EU,Neighbourhood & Community Services,NCS,Care Purchase - PD,54440,CP-Domicil.External,440950,08-Aug-12,1900096219,"2,922.04",Independent Living Alliance,100726
WARRINGTON BOROUGH COUNCIL,http://statistics.data.gov.uk/id/local-authority/00EU,Neighbourhood & Community Services,NCS,Care Purchase - Mental Health Team 2,54240,Supporting People - External,441250,08-Aug-12,1900096220,600,Independent Living Alliance,100726
WARRINGTON BOROUGH COUNCIL,http://statistics.data.gov.uk/id/local-authority/00EU,Neighbourhood & Community Services,NCS,Care Purchase - Mental Health Team 2,54240,CP-Domicil.External,440950,08-Aug-12,1900096220,"6,044.36",Independent Living Alliance,100726
WARRINGTON BOROUGH COUNCIL,http://statistics.data.gov.uk/id/local-authority/00EU,Neighbourhood & Community Services,NCS,Care Purchase - Mental Health Team 1,54230,Supporting People - External,441250,08-Aug-12,1900096222,"1,000.00",Independent Living Alliance,100726
WARRINGTON BOROUGH COUNCIL,http://statistics.data.gov.uk/id/local-authority/00EU,Neighbourhood & Community Services,NCS,Care Purchase - Mental Health Team 1,54230,CP-Domicil.External,440950,08-Aug-12,1900096222,"2,922.04",Independent Living Alliance,100726
WARRINGTON BOROUGH COUNCIL,http://statistics.data.gov.uk/id/local-authority/00EU,Neighbourhood & Community Services,NCS,Care Purchase - Mental Health Team 1,54230,Supporting People - External,441250,08-Aug-12,1900096223,"1,000.00",Independent Living Alliance,100726
WARRINGTON BOROUGH COUNCIL,http://statistics.data.gov.uk/id/local-authority/00EU,Neighbourhood & Community Services,NCS,Care Purchase - Mental Health Team 1,54230,CP-Domicil.External,440950,08-Aug-12,1900096223,"4,372.44",Independent Living Alliance,100726
WARRINGTON BOROUGH COUNCIL,http://statistics.data.gov.uk/id/local-authority/00EU,Neighbourhood & Community Services,NCS,Care Purchase - Mental Health Team 1,54230,CP-Domicil.External,440950,08-Aug-12,1900096224,"2,382.80",Independent Living Alliance,100726
WARRINGTON BOROUGH COUNCIL,http://statistics.data.gov.uk/id/local-authority/00EU,Neighbourhood & Community Services,NCS,Care Purchase - Mental Health Team 3,54250,CP-Domicil.External,440950,08-Aug-12,1900096226,"2,538.20",Independent Living Alliance,100726
WARRINGTON BOROUGH COUNCIL,http://statistics.data.gov.uk/id/local-authority/00EU,Neighbourhood & Community Services,NCS,Care Purchase - Mental Health Team 1,54230,Supporting People - External,441250,08-Aug-12,1900096246,880,Independent Living Alliance,100726
WARRINGTON BOROUGH COUNCIL,http://statistics.data.gov.uk/id/local-authority/00EU,Neighbourhood & Community Services,NCS,Care Purchase - Mental Health Team 1,54230,CP-Domicil.External,440950,08-Aug-12,1900096246,"1,241.24",Independent Living Alliance,100726
WARRINGTON BOROUGH COUNCIL,http://statistics.data.gov.uk/id/local-authority/00EU,Neighbourhood & Community Services,NCS,Care Purchase - Learning Disability,54450,CP-Domicil.External,440950,08-Aug-12,1900096247,"4,537.92",Independent Living Alliance,100726
WARRINGTON BOROUGH COUNCIL,http://statistics.data.gov.uk/id/local-authority/00EU,Neighbourhood & Community Services,NCS,Care Purchase - Mental Health Team 1,54230,Supporting People - External,441250,08-Aug-12,1900096248,880,Independent Living Alliance,100726
WARRINGTON BOROUGH COUNCIL,http://statistics.data.gov.uk/id/local-authority/00EU,Neighbourhood & Community Services,NCS,Care Purchase - Mental Health Team 1,54230,CP-Domicil.External,440950,08-Aug-12,1900096248,"1,241.24",Independent Living Alliance,100726
WARRINGTON BOROUGH COUNCIL,http://statistics.data.gov.uk/id/local-authority/00EU,Neighbourhood & Community Services,NCS,Care Purchase - Learning Disability,54450,CP-Domicil.External,440950,08-Aug-12,1900096249,"6,196.40",Independent Living Alliance,100726
WARRINGTON BOROUGH COUNCIL,http://statistics.data.gov.uk/id/local-authority/00EU,Neighbourhood & Community Services,NCS,Care Purchase - Mental Health Team 1,54230,Supporting People - External,441250,08-Aug-12,1900096250,880,Independent Living Alliance,100726
WARRINGTON BOROUGH COUNCIL,http://statistics.data.gov.uk/id/local-authority/00EU,Neighbourhood & Community Services,NCS,Care Purchase - Mental Health Team 1,54230,CP-Domicil.External,440950,08-Aug-12,1900096250,"1,862.84",Independent Living Alliance,100726
WARRINGTON BOROUGH COUNCIL,http://statistics.data.gov.uk/id/local-authority/00EU,Neighbourhood & Community Services,NCS,Care Purchase - Mental Health Team 1,54230,CP-Domicil.External,440950,08-Aug-12,1900096251,"1,087.80",Independent Living Alliance,100726
WARRINGTON BOROUGH COUNCIL,http://statistics.data.gov.uk/id/local-authority/00EU,Neighbourhood & Community Services,NCS,Care Purchase - Mental Health Team 1,54230,CP-Domicil.External,440950,08-Aug-12,1900096252,"1,036.00",Independent Living Alliance,100726
WARRINGTON BOROUGH COUNCIL,http://statistics.data.gov.uk/id/local-authority/00EU,Neighbourhood & Community Services,NCS,Care Purchase - ABI,54260,CP-Domicil.External,440950,08-Aug-12,1900096253,"3,211.60",Independent Living Alliance,100726
WARRINGTON BOROUGH COUNCIL,http://statistics.data.gov.uk/id/local-authority/00EU,Neighbourhood & Community Services,NCS,Care Purchase - Mental Health Team 1,54230,Supporting People - External,441250,08-Aug-12,1900096257,600,Independent Living Alliance,100726
WARRINGTON BOROUGH COUNCIL,http://statistics.data.gov.uk/id/local-authority/00EU,Neighbourhood & Community Services,NCS,Care Purchase - Mental Health Team 1,54230,CP-Domicil.External,440950,08-Aug-12,1900096257,"3,143.56",Independent Living Alliance,100726
WARRINGTON BOROUGH COUNCIL,http://statistics.data.gov.uk/id/local-authority/00EU,Neighbourhood & Community Services,NCS,Care Purchase - Mental Health Team 1,54230,Supporting People - External,441250,08-Aug-12,1900096258,600,Independent Living Alliance,100726
WARRINGTON BOROUGH COUNCIL,http://statistics.data.gov.uk/id/local-authority/00EU,Neighbourhood & Community Services,NCS,Care Purchase - Mental Health Team 1,54230,CP-Domicil.External,440950,08-Aug-12,1900096258,"3,143.56",Independent Living Alliance,100726
WARRINGTON BOROUGH COUNCIL,http://statistics.data.gov.uk/id/local-authority/00EU,Children & Young People,CYP,Secondary,81002,Contract Works,492550,08-Aug-12,1900096169,835,J Pilling Fencing Contractors,109752
WARRINGTON BOROUGH COUNCIL,http://statistics.data.gov.uk/id/local-authority/00EU,Children & Young People,CHL,DSG Early Years PVI Settings,32417,Private & Voluntary 3 Year Olds,470100,24-Aug-12,1900097889,"11,239.57",Jack & Jill Playgroup,400014
WARRINGTON BOROUGH COUNCIL,http://statistics.data.gov.uk/id/local-authority/00EU,Environment & Regeneration,ER0,Homelessness,43650,Consult.& Prof. Serv,440000,06-Aug-12,1900095872,533,John Kershaw Chartered Surveyors,110754
WARRINGTON BOROUGH COUNCIL,http://statistics.data.gov.uk/id/local-authority/00EU,Environment & Regeneration,ER0,Estates & Valuation,43520,Agency Supply - GF,180000,07-Aug-12,1900095945,"1,046.93",Judd Farris Property Recruitment,101741
WARRINGTON BOROUGH COUNCIL,http://statistics.data.gov.uk/id/local-authority/00EU,Environment & Regeneration,ER0,Estates & Valuation,43520,Agency Supply - GF,180000,10-Aug-12,1900096335,"1,034.00",Judd Farris Property Recruitment,101741
WARRINGTON BOROUGH COUNCIL,http://statistics.data.gov.uk/id/local-authority/00EU,Environment & Regeneration,ER0,Estates & Valuation,43520,Agency Supply - GF,180000,22-Aug-12,1900096947,"1,072.78",Judd Farris Property Recruitment,101741
WARRINGTON BOROUGH COUNCIL,http://statistics.data.gov.uk/id/local-authority/00EU,Environment & Regeneration,ER0,Estates & Valuation,43520,Agency Supply - GF,180000,22-Aug-12,1900096948,622.75,Judd Farris Property Recruitment,101741
WARRINGTON BOROUGH COUNCIL,http://statistics.data.gov.uk/id/local-authority/00EU,Children & Young People,CHL,Fostering Team,31105,Agency Supply - GF,180000,07-Aug-12,1900096015,525,K Kerfoot Ltd,109052
WARRINGTON BOROUGH COUNCIL,http://statistics.data.gov.uk/id/local-authority/00EU,Children & Young People,CHL,Fostering Team,31105,Agency Supply - GF,180000,07-Aug-12,1900096016,595,K Kerfoot Ltd,109052
WARRINGTON BOROUGH COUNCIL,http://statistics.data.gov.uk/id/local-authority/00EU,Children & Young People,CHL,Fostering Team,31105,Agency Supply - GF,180000,07-Aug-12,1900096017,560,K Kerfoot Ltd,109052
WARRINGTON BOROUGH COUNCIL,http://statistics.data.gov.uk/id/local-authority/00EU,Children & Young People,CHL,Fostering Team,31105,Agency Supply - GF,180000,07-Aug-12,1900096018,560,K Kerfoot Ltd,109052
WARRINGTON BOROUGH COUNCIL,http://statistics.data.gov.uk/id/local-authority/00EU,Children & Young People,CHL,Fostering Team,31105,Agency Supply - GF,180000,28-Aug-12,1900097151,595,K Kerfoot Ltd,109052
WARRINGTON BOROUGH COUNCIL,http://statistics.data.gov.uk/id/local-authority/00EU,Children & Young People,CHL,Fostering Team,31105,Agency Supply - GF,180000,28-Aug-12,1900097153,595,K Kerfoot Ltd,109052
WARRINGTON BOROUGH COUNCIL,http://statistics.data.gov.uk/id/local-authority/00EU,Children & Young People,CHL,DSG Early Years PVI Settings,32417,Private & Voluntary 3 Year Olds,470100,24-Aug-12,1900097890,"15,796.23",Kalgarth Grange Nursery,400096
WARRINGTON BOROUGH COUNCIL,http://statistics.data.gov.uk/id/local-authority/00EU,Neighbourhood & Community Services,NCS,Care Purchase Budget,54490,CP ExternalOther Exp,440800,10-Aug-12,1900096405,"2,870.00",Keate House Residential Home,104849
WARRINGTON BOROUGH COUNCIL,http://statistics.data.gov.uk/id/local-authority/00EU,Neighbourhood & Community Services,NCS,Care Purchase Budget,54490,CP ExternalOther Exp,440800,16-Aug-12,1900096722,"50,000.00",Keate House Residential Home,104849
WARRINGTON BOROUGH COUNCIL,http://statistics.data.gov.uk/id/local-authority/00EU,Assistant Chief Executive,CEX,Training & Development,22440,Training,190150,17-Aug-12,1900096809,523.5,Key Industrial Equipment Ltd,110515
WARRINGTON BOROUGH COUNCIL,http://statistics.data.gov.uk/id/local-authority/00EU,Children & Young People,CHL,Agency Placements,30904,CP ExternalOther Exp,440800,24-Aug-12,1900097061,"1,275.00",Keys Child Care Ltd,100391
WARRINGTON BOROUGH COUNCIL,http://statistics.data.gov.uk/id/local-authority/00EU,Children & Young People,CHL,Agency Placements,30904,CP ExternalOther Exp,440800,24-Aug-12,1900097062,"12,400.00",Keys Child Care Ltd,100391
WARRINGTON BOROUGH COUNCIL,http://statistics.data.gov.uk/id/local-authority/00EU,Children & Young People,CHL,Agency Placements,30904,CP ExternalOther Exp,440800,30-Aug-12,1900097811,"1,700.00",Keys Child Care Ltd,100391
WARRINGTON BOROUGH COUNCIL,http://statistics.data.gov.uk/id/local-authority/00EU,Children & Young People,CHL,DSG Early Years PVI Settings,32417,Private & Voluntary 3 Year Olds,470100,24-Aug-12,1900097877,"17,504.37",Kids on top t/a Cotton Tails Nurser,400137
WARRINGTON BOROUGH COUNCIL,http://statistics.data.gov.uk/id/local-authority/00EU,Children & Young People,CHL,EIG Funding - 2 Year Old,31601,Payment of Grants,470050,02-Aug-12,1900095752,"1,091.25",Kids Planet Day Nursery (Cowboys &,102992
WARRINGTON BOROUGH COUNCIL,http://statistics.data.gov.uk/id/local-authority/00EU,Children & Young People,CHL,EIG Funding - 2 Year Old,31601,Payment of Grants,470050,02-Aug-12,1900095753,"1,411.35",Kids Planet Day Nursery (Cowboys &,102992
WARRINGTON BOROUGH COUNCIL,http://statistics.data.gov.uk/id/local-authority/00EU,Children & Young People,CHL,DSG Early Years PVI Settings,32417,Private & Voluntary 3 Year Olds,470100,24-Aug-12,1900097893,"20,286.20",Kids Planet Day Nursery (Cowboys &,102992
WARRINGTON BOROUGH COUNCIL,http://statistics.data.gov.uk/id/local-authority/00EU,Children & Young People,CHL,DSG Early Years PVI Settings,32417,Private & Voluntary 3 Year Olds,470100,24-Aug-12,1900097891,"12,201.00",Kids Planet Warrington,105710
WARRINGTON BOROUGH COUNCIL,http://statistics.data.gov.uk/id/local-authority/00EU,Children & Young People,CHL,DSG Early Years PVI Settings,32417,Private & Voluntary 3 Year Olds,470100,24-Aug-12,1900097892,"1,301.44",Kids Planet Warrington,105710
WARRINGTON BOROUGH COUNCIL,http://statistics.data.gov.uk/id/local-authority/00EU,Children & Young People,CHL,EIG Funding - 2 Year Old,31601,Payment of Grants,470050,24-Aug-12,1900097952,"3,564.75",Kids Planet Warrington,105710
WARRINGTON BOROUGH COUNCIL,http://statistics.data.gov.uk/id/local-authority/00EU,Children & Young People,CHL,EIG Funding - 2 Year Old,31601,Payment of Grants,470050,24-Aug-12,1900097953,"3,422.16",Kids Planet Warrington,105710
WARRINGTON BOROUGH COUNCIL,http://statistics.data.gov.uk/id/local-authority/00EU,Environment & Regeneration,ER0,West Annexe,43112,Equipment Purchase & Contract,400000,15-Aug-12,1900096655,"2,795.62",Chubb Fire and Security Ltd,105335
WARRINGTON BOROUGH COUNCIL,http://statistics.data.gov.uk/id/local-authority/00EU,Environment & Regeneration,ER1,Walton Hall Catering,41433,Equipment Purchase & Contract,400000,23-Aug-12,1900097002,"1,009.38",Chubb Fire and Security Ltd,105335
WARRINGTON BOROUGH COUNCIL,http://statistics.data.gov.uk/id/local-authority/00EU,Environment & Regeneration,ER1,Walton Hall Catering,41433,Equipment Purchase & Contract,400000,23-Aug-12,1900097010,"2,098.41",Chubb Fire and Security Ltd,105335
WARRINGTON BOROUGH COUNCIL,http://statistics.data.gov.uk/id/local-authority/00EU,Assistant Chief Executive,CEX,Insurance Services,10120,Subscriptions,470000,07-Aug-12,1900096032,510,CIPFA Business Limited,103650
WARRINGTON BOROUGH COUNCIL,http://statistics.data.gov.uk/id/local-authority/00EU,Assistant Chief Executive,CEX,Audit Services,10200,Subscriptions,470000,07-Aug-12,1900096032,510,CIPFA Business Limited,103650
WARRINGTON BOROUGH COUNCIL,http://statistics.data.gov.uk/id/local-authority/00EU,Assistant Chief Executive,CEX,Democratic Services,11400,Postages,450000,07-Aug-12,1900096032,510,CIPFA Business Limited,103650
WARRINGTON BOROUGH COUNCIL,http://statistics.data.gov.uk/id/local-authority/00EU,Assistant Chief Executive,CEX,People & Improvement,20000,Subscriptions,470000,07-Aug-12,1900096032,510,CIPFA Business Limited,103650
WARRINGTON BOROUGH COUNCIL,http://statistics.data.gov.uk/id/local-authority/00EU,Assistant Chief Executive,CEX,Business Support Centre,52120,Subscriptions,470000,07-Aug-12,1900096032,510,CIPFA Business Limited,103650
WARRINGTON BOROUGH COUNCIL,http://statistics.data.gov.uk/id/local-authority/00EU,Corporate Financing,COR,Debt Management Expenses,62080,Subscriptions,470000,07-Aug-12,1900096032,595,CIPFA Business Limited,103650
WARRINGTON BOROUGH COUNCIL,http://statistics.data.gov.uk/id/local-authority/00EU,Neighbourhood & Community Services,NCS,Care Purchase - OP & OT West,54470,CP-LongStayExternal,441150,07-Aug-12,1900095984,"1,912.00",Cls Care Services Ltd,104615
WARRINGTON BOROUGH COUNCIL,http://statistics.data.gov.uk/id/local-authority/00EU,Neighbourhood & Community Services,NCS,Care Purchase Budget,54490,CP ExternalOther Exp,440800,15-Aug-12,1900096592,"18,219.00",Cls Care Services Ltd,104615
WARRINGTON BOROUGH COUNCIL,http://statistics.data.gov.uk/id/local-authority/00EU,Neighbourhood & Community Services,NCS,Care Purchase Budget,54490,CP ExternalOther Exp,440800,16-Aug-12,1900096707,"65,000.00",Cls Care Services Ltd,104615
WARRINGTON BOROUGH COUNCIL,http://statistics.data.gov.uk/id/local-authority/00EU,Neighbourhood & Community Services,NCS,Care Purchase - OP & OT West,54470,CP-LongStayExternal,441150,31-Aug-12,1900097855,"1,912.00",Cls Care Services Ltd,104615
WARRINGTON BOROUGH COUNCIL,http://statistics.data.gov.uk/id/local-authority/00EU,Environment & Regeneration,ER0,Other Commercial Prop.,43560,Gen. Personal Needs,490850,08-Aug-12,1900096238,"3,665.00",Cobbetts Llp,102496
WARRINGTON BOROUGH COUNCIL,http://statistics.data.gov.uk/id/local-authority/00EU,Holding Accounts,HOL,Single Billing Holding Account,91130,Agency Supply - GF,180000,03-Aug-12,1900095870,"52,914.34",Comensura,102009
WARRINGTON BOROUGH COUNCIL,http://statistics.data.gov.uk/id/local-authority/00EU,Holding Accounts,HOL,Single Billing Holding Account,91130,Agency Supply - GF,180000,03-Aug-12,1900095871,"47,957.95",Comensura,102009
WARRINGTON BOROUGH COUNCIL,http://statistics.data.gov.uk/id/local-authority/00EU,Holding Accounts,HOL,Single Billing Holding Account,91130,Agency Supply - GF,180000,09-Aug-12,1900096266,"49,822.08",Comensura,102009
WARRINGTON BOROUGH COUNCIL,http://statistics.data.gov.uk/id/local-authority/00EU,Holding Accounts,HOL,Single Billing Holding Account,91130,Agency Supply - GF,180000,17-Aug-12,1900096789,"54,285.94",Comensura,102009
WARRINGTON BOROUGH COUNCIL,http://statistics.data.gov.uk/id/local-authority/00EU,Holding Accounts,HOL,Single Billing Holding Account,91130,Agency Supply - GF,180000,22-Aug-12,1900096940,"43,881.60",Comensura,102009
WARRINGTON BOROUGH COUNCIL,http://statistics.data.gov.uk/id/local-authority/00EU,Holding Accounts,HOL,Single Billing Holding Account,91130,Agency Supply - GF,180000,29-Aug-12,1900097782,"49,626.45",Comensura,102009
WARRINGTON BOROUGH COUNCIL,http://statistics.data.gov.uk/id/local-authority/00EU,Neighbourhood & Community Services,NCS,Contract Review,54710,Consult.& Prof. Serv,440000,29-Aug-12,1900097783,"1,551.30",Commercial and Clinical Solutions,107895
WARRINGTON BOROUGH COUNCIL,http://statistics.data.gov.uk/id/local-authority/00EU,Neighbourhood & Community Services,NCS,Contract Review,54710,Consult.& Prof. Serv,440000,30-Aug-12,1900097784,"1,500.00",Commercial and Clinical Solutions,107895
WARRINGTON BOROUGH COUNCIL,http://statistics.data.gov.uk/id/local-authority/00EU,Neighbourhood & Community Services,NCS,Contract Review,54710,Consult.& Prof. Serv,440000,30-Aug-12,1900097785,"1,500.00",Commercial and Clinical Solutions,107895
WARRINGTON BOROUGH COUNCIL,http://statistics.data.gov.uk/id/local-authority/00EU,Neighbourhood & Community Services,NCS,Contract Review,54710,Consult.& Prof. Serv,440000,30-Aug-12,1900097785,"1,551.30",Commercial and Clinical Solutions,107895
WARRINGTON BOROUGH COUNCIL,http://statistics.data.gov.uk/id/local-authority/00EU,Neighbourhood & Community Services,NCS,Care Purchase - Learning Disability,54450,CP-Nursing Care-External,441200,08-Aug-12,1900096181,"8,464.00",Community Care Matters Limited,102791
WARRINGTON BOROUGH COUNCIL,http://statistics.data.gov.uk/id/local-authority/00EU,Neighbourhood & Community Services,NCS,Care Purchase Budget,54490,CP - Cont Care - External,441350,08-Aug-12,1900096181,"20,100.00",Community Care Matters Limited,102791
WARRINGTON BOROUGH COUNCIL,http://statistics.data.gov.uk/id/local-authority/00EU,Neighbourhood & Community Services,NCS,Care Purchase - Learning Disability,54450,CP-Nursing Care-External,441200,08-Aug-12,1900096186,"8,212.00",Community Care Matters Limited,102791
WARRINGTON BOROUGH COUNCIL,http://statistics.data.gov.uk/id/local-authority/00EU,Neighbourhood & Community Services,NCS,Care Purchase Budget,54490,CP - Cont Care - External,441350,08-Aug-12,1900096186,"19,408.00",Community Care Matters Limited,102791
WARRINGTON BOROUGH COUNCIL,http://statistics.data.gov.uk/id/local-authority/00EU,Children & Young People,CHL,EIG Funding - Dallam Childrens Centre,31511,Servicing Contracts,200150,16-Aug-12,1900096784,754,Concept Hygiene Limited,104629
WARRINGTON BOROUGH COUNCIL,http://statistics.data.gov.uk/id/local-authority/00EU,Neighbourhood & Community Services,NCS,James Phoenix House,54720,Photocopier,430000,16-Aug-12,1900096750,679.06,Concept Rental Services Ltd,104631
WARRINGTON BOROUGH COUNCIL,http://statistics.data.gov.uk/id/local-authority/00EU,Neighbourhood & Community Services,NCS,DAT Pooled Budget,53860,Drug Action,443600,07-Aug-12,1900095922,537,Co-Op Pharmacy Ltd,101287
WARRINGTON BOROUGH COUNCIL,http://statistics.data.gov.uk/id/local-authority/00EU,Assistant Chief Executive,CEX,Coroners Service,11100,Removal Bodies & Exc,440350,24-Aug-12,1900097083,608.24,Co-Operative Funeralcare,104637
WARRINGTON BOROUGH COUNCIL,http://statistics.data.gov.uk/id/local-authority/00EU,Neighbourhood & Community Services,NCS,Care Purchase - PD,54440,CP-Day Care-External,441100,01-Aug-12,1900095618,"1,871.31",Cotebrook,104638
WARRINGTON BOROUGH COUNCIL,http://statistics.data.gov.uk/id/local-authority/00EU,Neighbourhood & Community Services,NCS,Care Purchase Budget,54490,Voids,515150,01-Aug-12,1900095619,"1,262.57",Cotebrook,104638
WARRINGTON BOROUGH COUNCIL,http://statistics.data.gov.uk/id/local-authority/00EU,Neighbourhood & Community Services,NCS,Care Purchase - ABI,54260,CP-LongStayExternal,441150,01-Aug-12,1900095619,"2,764.00",Cotebrook,104638
WARRINGTON BOROUGH COUNCIL,http://statistics.data.gov.uk/id/local-authority/00EU,Neighbourhood & Community Services,NCS,Care Purchase - OP & OT South,54480,CP-LongStayExternal,441150,01-Aug-12,1900095619,"3,928.00",Cotebrook,104638
WARRINGTON BOROUGH COUNCIL,http://statistics.data.gov.uk/id/local-authority/00EU,Neighbourhood & Community Services,NCS,Care Purchase - PD,54440,CP-LongStayExternal,441150,01-Aug-12,1900095619,"14,239.00",Cotebrook,104638
WARRINGTON BOROUGH COUNCIL,http://statistics.data.gov.uk/id/local-authority/00EU,Neighbourhood & Community Services,NCS,Care Purchase - PD,54440,CP-LongStayExternal,441150,01-Aug-12,1900095642,"3,928.00",Cotebrook,104638
WARRINGTON BOROUGH COUNCIL,http://statistics.data.gov.uk/id/local-authority/00EU,Neighbourhood & Community Services,NCS,Care Purchase - OP & OT South,54480,CP-LongStayExternal,441150,01-Aug-12,1900095642,"5,892.00",Cotebrook,104638
WARRINGTON BOROUGH COUNCIL,http://statistics.data.gov.uk/id/local-authority/00EU,Neighbourhood & Community Services,NCS,Care Purchase - PD,54440,CP-LongStayExternal,441150,29-Aug-12,1900097653,"3,928.00",Cotebrook,104638
WARRINGTON BOROUGH COUNCIL,http://statistics.data.gov.uk/id/local-authority/00EU,Neighbourhood & Community Services,NCS,Care Purchase - OP & OT South,54480,CP-LongStayExternal,441150,29-Aug-12,1900097653,"5,892.00",Cotebrook,104638
WARRINGTON BOROUGH COUNCIL,http://statistics.data.gov.uk/id/local-authority/00EU,Neighbourhood & Community Services,NCS,Care Purchase Budget,54490,Voids,515150,29-Aug-12,1900097654,"1,262.57",Cotebrook,104638
WARRINGTON BOROUGH COUNCIL,http://statistics.data.gov.uk/id/local-authority/00EU,Neighbourhood & Community Services,NCS,Care Purchase - ABI,54260,CP-LongStayExternal,441150,29-Aug-12,1900097654,"2,764.00",Cotebrook,104638
WARRINGTON BOROUGH COUNCIL,http://statistics.data.gov.uk/id/local-authority/00EU,Neighbourhood & Community Services,NCS,Care Purchase - OP & OT South,54480,CP-LongStayExternal,441150,29-Aug-12,1900097654,"3,928.00",Cotebrook,104638
WARRINGTON BOROUGH COUNCIL,http://statistics.data.gov.uk/id/local-authority/00EU,Neighbourhood & Community Services,NCS,Care Purchase - PD,54440,CP-LongStayExternal,441150,29-Aug-12,1900097654,"14,449.43",Cotebrook,104638
WARRINGTON BOROUGH COUNCIL,http://statistics.data.gov.uk/id/local-authority/00EU,Neighbourhood & Community Services,NCS,Care Purchase - PD,54440,CP-Day Care-External,441100,29-Aug-12,1900097655,"1,641.50",Cotebrook,104638
WARRINGTON BOROUGH COUNCIL,http://statistics.data.gov.uk/id/local-authority/00EU,Environment & Regeneration,ER0,Homelessness,43650,Risk of Homelessness and Floating Suppor,535100,13-Aug-12,1900096469,650,Courtyard Lettings,110764
WARRINGTON BOROUGH COUNCIL,http://statistics.data.gov.uk/id/local-authority/00EU,Neighbourhood & Community Services,NCS,Care Purchase Budget,54490,Voids,515150,01-Aug-12,1900095646,720.88,Creative Support Ltd,100902
WARRINGTON BOROUGH COUNCIL,http://statistics.data.gov.uk/id/local-authority/00EU,Neighbourhood & Community Services,NCS,Care Purchase - Mental Health Team 2,54240,CP-Domicil.External,440950,01-Aug-12,1900095646,895.6,Creative Support Ltd,100902
WARRINGTON BOROUGH COUNCIL,http://statistics.data.gov.uk/id/local-authority/00EU,Neighbourhood & Community Services,NCS,Care Purchase - Mental Health Team 1,54230,CP-Domicil.External,440950,01-Aug-12,1900095646,"1,444.72",Creative Support Ltd,100902
WARRINGTON BOROUGH COUNCIL,http://statistics.data.gov.uk/id/local-authority/00EU,Neighbourhood & Community Services,NCS,Care Purchase - Learning Disability,54450,CP-Domicil.External,440950,01-Aug-12,1900095646,"2,611.90",Creative Support Ltd,100902
WARRINGTON BOROUGH COUNCIL,http://statistics.data.gov.uk/id/local-authority/00EU,Neighbourhood & Community Services,NCS,Neighbourhood Co-o East,51306,Payment of Grants,470050,03-Aug-12,1900095827,700,A Monk Anglers Association,110742
WARRINGTON BOROUGH COUNCIL,http://statistics.data.gov.uk/id/local-authority/00EU,Neighbourhood & Community Services,NCS,Care Purchase - ABI,54260,CP-Domicil.External,440950,01-Aug-12,1900095646,"3,086.14",Creative Support Ltd,100902
WARRINGTON BOROUGH COUNCIL,http://statistics.data.gov.uk/id/local-authority/00EU,Neighbourhood & Community Services,NCS,Care Purchase - PD,54440,Supporting People - External,441250,01-Aug-12,1900095649,"6,301.72",Creative Support Ltd,100902
WARRINGTON BOROUGH COUNCIL,http://statistics.data.gov.uk/id/local-authority/00EU,Neighbourhood & Community Services,NCS,Care Purchase - ABI,54260,CP-Domicil.External,440950,01-Aug-12,1900095651,"3,031.00",Creative Support Ltd,100902
WARRINGTON BOROUGH COUNCIL,http://statistics.data.gov.uk/id/local-authority/00EU,Neighbourhood & Community Services,NCS,Care Purchase - PD,54440,CP-Domicil.External,440950,01-Aug-12,1900095651,"15,155.00",Creative Support Ltd,100902
WARRINGTON BOROUGH COUNCIL,http://statistics.data.gov.uk/id/local-authority/00EU,Neighbourhood & Community Services,NCS,Care Purchase - Learning Disability,54450,CP-Domicil.External,440950,03-Aug-12,1900095863,645.15,Creative Support Ltd,100902
WARRINGTON BOROUGH COUNCIL,http://statistics.data.gov.uk/id/local-authority/00EU,Neighbourhood & Community Services,NCS,Care Purchase - Learning Disability,54450,CP-Domicil.External,440950,03-Aug-12,1900095864,872.85,Creative Support Ltd,100902
WARRINGTON BOROUGH COUNCIL,http://statistics.data.gov.uk/id/local-authority/00EU,Neighbourhood & Community Services,NCS,Care Purchase - ABI,54260,CP-Domicil.External,440950,03-Aug-12,1900095864,"3,200.45",Creative Support Ltd,100902
WARRINGTON BOROUGH COUNCIL,http://statistics.data.gov.uk/id/local-authority/00EU,Neighbourhood & Community Services,NCS,Care Purchase - PD,54440,CP-Domicil.External,440950,03-Aug-12,1900095865,"1,182.78",Creative Support Ltd,100902
WARRINGTON BOROUGH COUNCIL,http://statistics.data.gov.uk/id/local-authority/00EU,Neighbourhood & Community Services,NCS,Care Purchase - PD,54440,Supporting People - External,441250,03-Aug-12,1900095867,531.16,Creative Support Ltd,100902
WARRINGTON BOROUGH COUNCIL,http://statistics.data.gov.uk/id/local-authority/00EU,Neighbourhood & Community Services,NCS,Care Purchase - Learning Disability,54450,CP-Domicil.External,440950,03-Aug-12,1900095867,"1,607.76",Creative Support Ltd,100902
WARRINGTON BOROUGH COUNCIL,http://statistics.data.gov.uk/id/local-authority/00EU,Neighbourhood & Community Services,NCS,Care Purchase - Learning Disability,54450,Supporting People - External,441250,03-Aug-12,1900095867,"4,780.44",Creative Support Ltd,100902
WARRINGTON BOROUGH COUNCIL,http://statistics.data.gov.uk/id/local-authority/00EU,Neighbourhood & Community Services,NCS,Care Purchase - Learning Disability,54450,Supporting People - External,441250,15-Aug-12,1900096688,986.7,Creative Support Ltd,100902
WARRINGTON BOROUGH COUNCIL,http://statistics.data.gov.uk/id/local-authority/00EU,Neighbourhood & Community Services,NCS,Care Purchase - Learning Disability,54450,CP-Domicil.External,440950,15-Aug-12,1900096688,"9,787.95",Creative Support Ltd,100902
WARRINGTON BOROUGH COUNCIL,http://statistics.data.gov.uk/id/local-authority/00EU,Neighbourhood & Community Services,NCS,Care Purchase Budget,54490,Voids,515150,15-Aug-12,1900096693,"1,369.44",Creative Support Ltd,100902
WARRINGTON BOROUGH COUNCIL,http://statistics.data.gov.uk/id/local-authority/00EU,Neighbourhood & Community Services,NCS,Care Purchase - Learning Disability,54450,Supporting People - External,441250,15-Aug-12,1900096693,"4,465.45",Creative Support Ltd,100902
WARRINGTON BOROUGH COUNCIL,http://statistics.data.gov.uk/id/local-authority/00EU,Neighbourhood & Community Services,NCS,Care Purchase - Learning Disability,54450,CP-Domicil.External,440950,15-Aug-12,1900096693,"42,625.73",Creative Support Ltd,100902
WARRINGTON BOROUGH COUNCIL,http://statistics.data.gov.uk/id/local-authority/00EU,Neighbourhood & Community Services,NCS,Care Purchase - Learning Disability,54450,CP-Domicil.External,440950,31-Aug-12,1900097983,936.1,Creative Support Ltd,100902
WARRINGTON BOROUGH COUNCIL,http://statistics.data.gov.uk/id/local-authority/00EU,Neighbourhood & Community Services,NCS,Care Purchase - ABI,54260,CP-Domicil.External,440950,31-Aug-12,1900097983,"3,137.20",Creative Support Ltd,100902
WARRINGTON BOROUGH COUNCIL,http://statistics.data.gov.uk/id/local-authority/00EU,Assistant Chief Executive,CEX,CRB Checks,52122,CRB Checks,190050,14-Aug-12,1900096557,"27,288.00",Criminal Records Bureau,440085
WARRINGTON BOROUGH COUNCIL,http://statistics.data.gov.uk/id/local-authority/00EU,Children & Young People,CHL,DSG Early Years PVI Settings,32417,Private & Voluntary 3 Year Olds,470100,24-Aug-12,1900097878,"8,101.46",Croft Village Pre School,109167
WARRINGTON BOROUGH COUNCIL,http://statistics.data.gov.uk/id/local-authority/00EU,Children & Young People,CHL,DSG Early Years PVI Settings,32417,Private & Voluntary 4 Year Olds,470150,17-Aug-12,1900096790,"14,766.00",Kids Unlimited Callands,400121
WARRINGTON BOROUGH COUNCIL,http://statistics.data.gov.uk/id/local-authority/00EU,Children & Young People,CHL,DSG Early Years PVI Settings,32417,Private & Voluntary 3 Year Olds,470100,17-Aug-12,1900096790,"27,117.74",Kids Unlimited Callands,400121
WARRINGTON BOROUGH COUNCIL,http://statistics.data.gov.uk/id/local-authority/00EU,Children & Young People,CHL,DSG Early Years PVI Settings,32417,Private & Voluntary 3 Year Olds,470100,24-Aug-12,1900097894,"21,083.33",Kids Unlimited Callands,400121
WARRINGTON BOROUGH COUNCIL,http://statistics.data.gov.uk/id/local-authority/00EU,Environment & Regeneration,ENO,Housing Projects,82008,Disabled Persons Grant 1996,554000,22-Aug-12,1900096961,"10,670.00",Kingkraft Ltd,101165
WARRINGTON BOROUGH COUNCIL,http://statistics.data.gov.uk/id/local-authority/00EU,Children & Young People,CYP,Secondary,81002,Consult.& Prof. Serv,440000,07-Aug-12,1900096019,"11,052.15",Knowles Ltd,110043
WARRINGTON BOROUGH COUNCIL,http://statistics.data.gov.uk/id/local-authority/00EU,Neighbourhood & Community Services,NCS,Care Purchase - OP & OT South,54480,CP-LongStayExternal,441150,14-Aug-12,1900096550,"1,876.00",Lady Elsie Finney House Lancashire,103595
WARRINGTON BOROUGH COUNCIL,http://statistics.data.gov.uk/id/local-authority/00EU,Children & Young People,CHL,DSG Early Years PVI Settings,32417,Private & Voluntary 3 Year Olds,470100,24-Aug-12,1900097883,"5,368.44",Laurels Nursery School First Footst,400043
WARRINGTON BOROUGH COUNCIL,http://statistics.data.gov.uk/id/local-authority/00EU,Children & Young People,CHL,Federation of Music Services,32220,Events Costs,490000,06-Aug-12,1900095883,"3,609.10",Leisuretec UK Ltd,110734
WARRINGTON BOROUGH COUNCIL,http://statistics.data.gov.uk/id/local-authority/00EU,Neighbourhood & Community Services,NCS,Care Purchase - PD,54440,CP-Nursing Care-External,441200,01-Aug-12,1900095602,"2,780.00",Leonard Cheshire Disability,100370
WARRINGTON BOROUGH COUNCIL,http://statistics.data.gov.uk/id/local-authority/00EU,Neighbourhood & Community Services,NCS,Care Purchase - PD,54440,CP-Nursing Care-External,441200,29-Aug-12,1900097766,"2,780.00",Leonard Cheshire Disability,100370
WARRINGTON BOROUGH COUNCIL,http://statistics.data.gov.uk/id/local-authority/00EU,Neighbourhood & Community Services,NCS,LD Team,54160,Car Leasing Charges,350000,06-Aug-12,1900095880,806.31,Lex Autolease Ltd,103319
WARRINGTON BOROUGH COUNCIL,http://statistics.data.gov.uk/id/local-authority/00EU,Assistant Chief Executive,CEX,Registrars Services,11300,Car Leasing Charges,350000,29-Aug-12,1900097755,"2,989.68",Lex Autolease Ltd,103319
WARRINGTON BOROUGH COUNCIL,http://statistics.data.gov.uk/id/local-authority/00EU,Neighbourhood & Community Services,NCS,Care Purchase - Mental Health Team 3,54250,CP-LongStayExternal,441150,31-Aug-12,1900097998,"1,902.41",Ley Community Drug Services,107958
WARRINGTON BOROUGH COUNCIL,http://statistics.data.gov.uk/id/local-authority/00EU,Neighbourhood & Community Services,NCS,Care Purchase - Mental Health Team 3,54250,CP-LongStayExternal,441150,31-Aug-12,1900097999,543.55,Ley Community Drug Services,107958
WARRINGTON BOROUGH COUNCIL,http://statistics.data.gov.uk/id/local-authority/00EU,Neighbourhood & Community Services,NCS,Care Purchase - Mental Health Team 3,54250,CP-LongStayExternal,441150,31-Aug-12,1900098001,927.59,Ley Community Drug Services,107958
WARRINGTON BOROUGH COUNCIL,http://statistics.data.gov.uk/id/local-authority/00EU,Neighbourhood & Community Services,NCS,Care Purchase Budget,54490,CP ExternalOther Exp,440800,16-Aug-12,1900096709,"167,000.00",Leyton Healthcare,102517
WARRINGTON BOROUGH COUNCIL,http://statistics.data.gov.uk/id/local-authority/00EU,Neighbourhood & Community Services,NCS,Care Purchase Budget,54490,CP ExternalOther Exp,440800,23-Aug-12,1900097016,"4,307.61",Leyton Healthcare,102517
WARRINGTON BOROUGH COUNCIL,http://statistics.data.gov.uk/id/local-authority/00EU,Neighbourhood & Community Services,NCS,Care Purchase Budget,54490,CP ExternalOther Exp,440800,10-Aug-12,1900096391,"4,877.62",Leyton Healthcare Limited,108970
WARRINGTON BOROUGH COUNCIL,http://statistics.data.gov.uk/id/local-authority/00EU,Neighbourhood & Community Services,NCS,Care Purchase Budget,54490,CP ExternalOther Exp,440800,16-Aug-12,1900096724,"98,000.00",Leyton Healthcare Limited,108970
WARRINGTON BOROUGH COUNCIL,http://statistics.data.gov.uk/id/local-authority/00EU,Neighbourhood & Community Services,NCS,Town Centre Maintenance,51301,"Campaigns,  Projects and Events",491950,17-Aug-12,1900096814,"4,500.00",LGBT Warrington,109762
WARRINGTON BOROUGH COUNCIL,http://statistics.data.gov.uk/id/local-authority/00EU,Neighbourhood & Community Services,NCS,Care Purchase - OP & OT West,54470,CP-LongStayExternal,441150,29-Aug-12,1900097716,"3,496.00",Linear Park (Housing With Care),100897
WARRINGTON BOROUGH COUNCIL,http://statistics.data.gov.uk/id/local-authority/00EU,Children & Young People,CHL,DSG Early Years PVI Settings,32417,Private & Voluntary 3 Year Olds,470100,24-Aug-12,1900097895,"28,696.75",Little Acorns Day Nursery,400012
WARRINGTON BOROUGH COUNCIL,http://statistics.data.gov.uk/id/local-authority/00EU,Children & Young People,CHL,DSG Early Years PVI Settings,32417,Private & Voluntary 3 Year Olds,470100,24-Aug-12,1900097896,"5,173.22",Little Browsers Playgroup,400140
WARRINGTON BOROUGH COUNCIL,http://statistics.data.gov.uk/id/local-authority/00EU,Children & Young People,CHL,DSG Early Years PVI Settings,32417,Private & Voluntary 3 Year Olds,470100,24-Aug-12,1900097897,"1,659.34",Little Penguins Day Nursery,110768
WARRINGTON BOROUGH COUNCIL,http://statistics.data.gov.uk/id/local-authority/00EU,Children & Young People,CHL,DSG Early Years PVI Settings,32417,Private & Voluntary 3 Year Olds,470100,24-Aug-12,1900097898,"11,224.92",Little Treasures Nursery Ltd,400091
WARRINGTON BOROUGH COUNCIL,http://statistics.data.gov.uk/id/local-authority/00EU,Children & Young People,CHL,EIG Funding - 2 Year Old,31601,Payment of Grants,470050,24-Aug-12,1900097954,"2,138.85",Little Treasures Nursery Ltd,400091
WARRINGTON BOROUGH COUNCIL,http://statistics.data.gov.uk/id/local-authority/00EU,Children & Young People,CHL,DSG Early Years PVI Settings,32417,Private & Voluntary 3 Year Olds,470100,24-Aug-12,1900097899,"3,416.28",Little Wonders Day Nursery,110078
WARRINGTON BOROUGH COUNCIL,http://statistics.data.gov.uk/id/local-authority/00EU,Children & Young People,CHL,Federation of Music Services,32220,Events Costs,490000,02-Aug-12,1900095762,"3,747.52",Liverpool Anglican Cathedral,103605
WARRINGTON BOROUGH COUNCIL,http://statistics.data.gov.uk/id/local-authority/00EU,Neighbourhood & Community Services,NCS,Carers Co-ordinator,53240,"Campaigns,  Projects and Events",491950,16-Aug-12,1900096715,825,Livewire,110692
WARRINGTON BOROUGH COUNCIL,http://statistics.data.gov.uk/id/local-authority/00EU,Children & Young People,CHL,DSG Early Years PVI Settings,32417,Private & Voluntary 3 Year Olds,470100,24-Aug-12,1900097900,"10,886.82",Locking Stumps Day Nursery,400142
WARRINGTON BOROUGH COUNCIL,http://statistics.data.gov.uk/id/local-authority/00EU,Children & Young People,CHL,DSG Early Years PVI Settings,32417,Private & Voluntary 3 Year Olds,470100,24-Aug-12,1900097901,"8,046.78",Locking Stumps Pre School,400008
WARRINGTON BOROUGH COUNCIL,http://statistics.data.gov.uk/id/local-authority/00EU,Environment & Regeneration,IT0,Postal & Courier Services,52130,Postages,450000,13-Aug-12,1900096434,"1,380.00",Logistex Express Ltd,100946
WARRINGTON BOROUGH COUNCIL,http://statistics.data.gov.uk/id/local-authority/00EU,Environment & Regeneration,IT0,Postal & Courier Services,52130,Postages,450000,13-Aug-12,1900096441,"1,250.00",Logistex Express Ltd,100946
WARRINGTON BOROUGH COUNCIL,http://statistics.data.gov.uk/id/local-authority/00EU,Neighbourhood & Community Services,NCS,Administration,51010,Gen. Personal Needs,490850,24-Aug-12,1900097084,548.5,Lombard Vehicle Management,101395
WARRINGTON BOROUGH COUNCIL,http://statistics.data.gov.uk/id/local-authority/00EU,Neighbourhood & Community Services,NCS,Care Purchase Budget,54490,CP ExternalOther Exp,440800,01-Aug-12,1900095672,"28,812.46",London & Manchester Healthcare Ltd,109185
WARRINGTON BOROUGH COUNCIL,http://statistics.data.gov.uk/id/local-authority/00EU,Neighbourhood & Community Services,NCS,Care Purchase Budget,54490,CP ExternalOther Exp,440800,16-Aug-12,1900096708,"95,000.00",London & Manchester Healthcare Ltd,109185
WARRINGTON BOROUGH COUNCIL,http://statistics.data.gov.uk/id/local-authority/00EU,Neighbourhood & Community Services,NCS,Care Purchase - OP & OT South,54480,CP-LongStayExternal,441150,01-Aug-12,1900095669,"1,532.00",Longview Care Home Ltd,102331
WARRINGTON BOROUGH COUNCIL,http://statistics.data.gov.uk/id/local-authority/00EU,Neighbourhood & Community Services,NCS,Care Purchase - OP & OT South,54480,CP-LongStayExternal,441150,29-Aug-12,1900097763,"3,064.00",Longview Care Home Ltd,102331
WARRINGTON BOROUGH COUNCIL,http://statistics.data.gov.uk/id/local-authority/00EU,Children & Young People,CHL,DSG Early Years PVI Settings,32417,Private & Voluntary 3 Year Olds,470100,24-Aug-12,1900097902,"5,680.08",Lymm Village Hall Playgroup,400146
WARRINGTON BOROUGH COUNCIL,http://statistics.data.gov.uk/id/local-authority/00EU,Children & Young People,CHL,DSG Early Years PVI Settings,32417,Private & Voluntary 3 Year Olds,470100,24-Aug-12,1900097903,"7,938.78",Lynton Private Day Nursery,400003
WARRINGTON BOROUGH COUNCIL,http://statistics.data.gov.uk/id/local-authority/00EU,Environment & Regeneration,ER0,Adult Services,43328,Stationery,430150,03-Aug-12,1900095850,823.69,Mac Roofing and Contracting Ltd,106221
WARRINGTON BOROUGH COUNCIL,http://statistics.data.gov.uk/id/local-authority/00EU,Neighbourhood & Community Services,NCS,Care Purchase - Learning Disability,54450,CP-LongStayExternal,441150,01-Aug-12,1900095638,"5,075.96",Macintyre Care,104907
WARRINGTON BOROUGH COUNCIL,http://statistics.data.gov.uk/id/local-authority/00EU,Neighbourhood & Community Services,NCS,Care Purchase - Learning Disability,54450,CP-Day Care-External,441100,01-Aug-12,1900095639,"16,422.64",Macintyre Care,104907
WARRINGTON BOROUGH COUNCIL,http://statistics.data.gov.uk/id/local-authority/00EU,Neighbourhood & Community Services,NCS,Care Purchase - Learning Disability,54450,CP-Day Care-External,441100,03-Aug-12,1900095852,"2,275.00",Macintyre Care,104907
WARRINGTON BOROUGH COUNCIL,http://statistics.data.gov.uk/id/local-authority/00EU,Neighbourhood & Community Services,NCS,Care Purchase - Learning Disability,54450,CP-Day Care-External,441100,03-Aug-12,1900095853,"1,680.00",Macintyre Care,104907
WARRINGTON BOROUGH COUNCIL,http://statistics.data.gov.uk/id/local-authority/00EU,Neighbourhood & Community Services,NCS,Care Purchase - Learning Disability,54450,CP-Day Care-External,441100,03-Aug-12,1900095860,"4,900.00",Macintyre Care,104907
WARRINGTON BOROUGH COUNCIL,http://statistics.data.gov.uk/id/local-authority/00EU,Neighbourhood & Community Services,NCS,Care Purchase - Learning Disability,54450,CP-Day Care-External,441100,03-Aug-12,1900095861,665,Macintyre Care,104907
WARRINGTON BOROUGH COUNCIL,http://statistics.data.gov.uk/id/local-authority/00EU,Neighbourhood & Community Services,NCS,Care Purchase - Learning Disability,54450,CP-Day Care-External,441100,03-Aug-12,1900095866,"2,275.00",Macintyre Care,104907
WARRINGTON BOROUGH COUNCIL,http://statistics.data.gov.uk/id/local-authority/00EU,Neighbourhood & Community Services,NCS,Care Purchase - Learning Disability,54450,CP-Domicil.External,440950,08-Aug-12,1900096235,"5,712.00",Macintyre Care,104907
WARRINGTON BOROUGH COUNCIL,http://statistics.data.gov.uk/id/local-authority/00EU,Neighbourhood & Community Services,NCS,Care Purchase - Learning Disability,54450,CP-Domicil.External,440950,08-Aug-12,1900096237,"14,374.86",Macintyre Care,104907
WARRINGTON BOROUGH COUNCIL,http://statistics.data.gov.uk/id/local-authority/00EU,Neighbourhood & Community Services,NCS,Care Purchase - Learning Disability,54450,CP-Domicil.External,440950,15-Aug-12,1900096646,"7,293.00",Macintyre Care,104907
WARRINGTON BOROUGH COUNCIL,http://statistics.data.gov.uk/id/local-authority/00EU,Neighbourhood & Community Services,NCS,Care Purchase - Learning Disability,54450,CP-Domicil.External,440950,15-Aug-12,1900096647,"14,298.36",Macintyre Care,104907
WARRINGTON BOROUGH COUNCIL,http://statistics.data.gov.uk/id/local-authority/00EU,Neighbourhood & Community Services,NCS,Care Purchase - Learning Disability,54450,Supporting People - External,441250,16-Aug-12,1900096702,"26,188.50",Macintyre Care,104907
WARRINGTON BOROUGH COUNCIL,http://statistics.data.gov.uk/id/local-authority/00EU,Neighbourhood & Community Services,NCS,Care Purchase - Learning Disability,54450,CP-Domicil.External,440950,16-Aug-12,1900096702,"110,619.26",Macintyre Care,104907
WARRINGTON BOROUGH COUNCIL,http://statistics.data.gov.uk/id/local-authority/00EU,Neighbourhood & Community Services,NCS,Care Purchase - Learning Disability,54450,CP ExternalOther Exp,440800,21-Aug-12,1900096880,919.79,Macintyre Care,104907
WARRINGTON BOROUGH COUNCIL,http://statistics.data.gov.uk/id/local-authority/00EU,Neighbourhood & Community Services,NCS,Care Purchase - Learning Disability,54450,CP ExternalOther Exp,440800,29-Aug-12,1900097678,919.79,Macintyre Care,104907
WARRINGTON BOROUGH COUNCIL,http://statistics.data.gov.uk/id/local-authority/00EU,Neighbourhood & Community Services,NCS,Care Purchase - Learning Disability,54450,CP-LongStayExternal,441150,29-Aug-12,1900097698,"5,075.96",Macintyre Care,104907
WARRINGTON BOROUGH COUNCIL,http://statistics.data.gov.uk/id/local-authority/00EU,Neighbourhood & Community Services,NCS,Care Purchase - Learning Disability,54450,CP-Day Care-External,441100,29-Aug-12,1900097707,"16,422.64",Macintyre Care,104907
WARRINGTON BOROUGH COUNCIL,http://statistics.data.gov.uk/id/local-authority/00EU,Neighbourhood & Community Services,NCS,Care Purchase - Learning Disability,54450,CP-Domicil.External,440950,29-Aug-12,1900097673,"5,787.04",Making Space,104913
WARRINGTON BOROUGH COUNCIL,http://statistics.data.gov.uk/id/local-authority/00EU,Neighbourhood & Community Services,NCS,Care Purchase - Learning Disability,54450,CP-Domicil.External,440950,29-Aug-12,1900097717,"5,787.04",Making Space,104913
WARRINGTON BOROUGH COUNCIL,http://statistics.data.gov.uk/id/local-authority/00EU,Neighbourhood & Community Services,NCS,Care Purchase - Learning Disability,54450,CP-Domicil.External,440950,29-Aug-12,1900097718,"5,787.04",Making Space,104913
WARRINGTON BOROUGH COUNCIL,http://statistics.data.gov.uk/id/local-authority/00EU,Assistant Chief Executive,CEX,Chief Exec's Office,14000,Corporate Initiative,491000,24-Aug-12,1900097113,"3,150.00",Manchester City Council,410005
WARRINGTON BOROUGH COUNCIL,http://statistics.data.gov.uk/id/local-authority/00EU,Children & Young People,CHL,EIG Funding - Callands Childrens Centre,31513,Servicing Contracts,200150,02-Aug-12,1900095768,897.92,Manchester Working Limited,105646
WARRINGTON BOROUGH COUNCIL,http://statistics.data.gov.uk/id/local-authority/00EU,Children & Young People,CHL,EIG Funding - Beaches Childrens Centre,31521,Specific Work,200200,08-Aug-12,1900096205,645,Manchester Working Limited,105646
WARRINGTON BOROUGH COUNCIL,http://statistics.data.gov.uk/id/local-authority/00EU,Neighbourhood & Community Services,NCS,Woolston Leisure Centre           (new h,51007,Response Maintenance,200000,08-Aug-12,1900096210,"9,215.05",Manchester Working Limited,105646
WARRINGTON BOROUGH COUNCIL,http://statistics.data.gov.uk/id/local-authority/00EU,Neighbourhood & Community Services,NCS,Woolston Leisure Centre           (new h,51007,Response Maintenance,200000,08-Aug-12,1900096215,"1,736.00",Manchester Working Limited,105646
WARRINGTON BOROUGH COUNCIL,http://statistics.data.gov.uk/id/local-authority/00EU,Neighbourhood & Community Services,NEO,IT Projects,83003,Works Contract Paymt,442500,08-Aug-12,1900096221,"1,596.00",Manchester Working Limited,105646
WARRINGTON BOROUGH COUNCIL,http://statistics.data.gov.uk/id/local-authority/00EU,Holding Accounts,HOL,Single Billing Holding Account,91130,Specific Work,200200,09-Aug-12,1900096273,"5,689.65",Manchester Working Limited,105646
WARRINGTON BOROUGH COUNCIL,http://statistics.data.gov.uk/id/local-authority/00EU,Children & Young People,CHL,EIG Funding - Beaches Childrens Centre,31521,Specific Work,200200,31-Aug-12,1900097988,"4,520.52",Manchester Working Limited,105646
WARRINGTON BOROUGH COUNCIL,http://statistics.data.gov.uk/id/local-authority/00EU,Environment & Regeneration,ER1,Cemeteries,41410,Grounds Maintenance - External,280000,31-Aug-12,1900097990,"3,001.60",Manchester Working Limited,105646
WARRINGTON BOROUGH COUNCIL,http://statistics.data.gov.uk/id/local-authority/00EU,Neighbourhood & Community Services,NCS,Care Purchase - OP & OT West,54470,CP-LongStayExternal,441150,10-Aug-12,1900096407,"1,660.00",Manor Park Care Home,102013
WARRINGTON BOROUGH COUNCIL,http://statistics.data.gov.uk/id/local-authority/00EU,Holding Accounts,HOL,Insurance Fund,91100,Insurance Premium,443350,28-Aug-12,1900097638,"2,429.69",Maps International,107931
WARRINGTON BOROUGH COUNCIL,http://statistics.data.gov.uk/id/local-authority/00EU,Children & Young People,CHL,Mobile Creche Provision,31701,Training,190150,01-Aug-12,1900095692,800,Marton Life Support Ltd,102152
WARRINGTON BOROUGH COUNCIL,http://statistics.data.gov.uk/id/local-authority/00EU,Neighbourhood & Community Services,NCS,Care Purchase - Mental Health Team 1,54230,CP-Domicil.External,440950,08-Aug-12,1900096183,874.6,Mayfield Home Care Agency,104928
WARRINGTON BOROUGH COUNCIL,http://statistics.data.gov.uk/id/local-authority/00EU,Neighbourhood & Community Services,NCS,Care Purchase - OP & OT West,54470,CP-Domicil.External,440950,08-Aug-12,1900096183,"1,541.60",Mayfield Home Care Agency,104928
WARRINGTON BOROUGH COUNCIL,http://statistics.data.gov.uk/id/local-authority/00EU,Neighbourhood & Community Services,NCS,Care Purchase - Learning Disability,54450,CP-Domicil.External,440950,08-Aug-12,1900096183,"3,789.72",Mayfield Home Care Agency,104928
WARRINGTON BOROUGH COUNCIL,http://statistics.data.gov.uk/id/local-authority/00EU,Neighbourhood & Community Services,NCS,Care Purchase Budget,54490,CP - Cont Care - External,441350,08-Aug-12,1900096183,"10,367.48",Mayfield Home Care Agency,104928
WARRINGTON BOROUGH COUNCIL,http://statistics.data.gov.uk/id/local-authority/00EU,Neighbourhood & Community Services,NCS,Care Purchase - Mental Health Team 1,54230,CP-Domicil.External,440950,29-Aug-12,1900097778,789.2,Mayfield Home Care Agency,104928
WARRINGTON BOROUGH COUNCIL,http://statistics.data.gov.uk/id/local-authority/00EU,Neighbourhood & Community Services,NCS,Care Purchase - OP & OT West,54470,CP-Domicil.External,440950,29-Aug-12,1900097778,"1,401.40",Mayfield Home Care Agency,104928
WARRINGTON BOROUGH COUNCIL,http://statistics.data.gov.uk/id/local-authority/00EU,Neighbourhood & Community Services,NCS,Care Purchase - Learning Disability,54450,CP-Domicil.External,440950,29-Aug-12,1900097778,"3,545.10",Mayfield Home Care Agency,104928
WARRINGTON BOROUGH COUNCIL,http://statistics.data.gov.uk/id/local-authority/00EU,Neighbourhood & Community Services,NCS,Care Purchase Budget,54490,CP - Cont Care - External,441350,29-Aug-12,1900097778,"10,306.40",Mayfield Home Care Agency,104928
WARRINGTON BOROUGH COUNCIL,http://statistics.data.gov.uk/id/local-authority/00EU,Neighbourhood & Community Services,NCS,Care Purchase -OP & OT East,54430,CP-LongStayExternal,441150,01-Aug-12,1900095624,"1,516.00",Mayfield House Care Home Ltd,101862
WARRINGTON BOROUGH COUNCIL,http://statistics.data.gov.uk/id/local-authority/00EU,Neighbourhood & Community Services,NCS,Care Purchase - Hospital Discharge Team,54280,CP-Domicil.External,440950,23-Aug-12,1900096999,516.09,Medico Nursing and Homecare,105063
WARRINGTON BOROUGH COUNCIL,http://statistics.data.gov.uk/id/local-authority/00EU,Neighbourhood & Community Services,NCS,Care Purchase Budget,54490,CP - Cont Care - External,441350,23-Aug-12,1900096999,"1,667.36",Medico Nursing and Homecare,105063
WARRINGTON BOROUGH COUNCIL,http://statistics.data.gov.uk/id/local-authority/00EU,Neighbourhood & Community Services,NCS,Care Purchase - OP & OT South,54480,CP-Domicil.External,440950,23-Aug-12,1900096999,"1,691.86",Medico Nursing and Homecare,105063
WARRINGTON BOROUGH COUNCIL,http://statistics.data.gov.uk/id/local-authority/00EU,Neighbourhood & Community Services,NCS,Care Purchase - OP & OT South,54480,CP-Domicil.External,440950,23-Aug-12,1900096999,"5,632.17",Medico Nursing and Homecare,105063
WARRINGTON BOROUGH COUNCIL,http://statistics.data.gov.uk/id/local-authority/00EU,Neighbourhood & Community Services,NCS,Care Purchase -OP & OT East,54430,CP-Domicil.External,440950,23-Aug-12,1900096999,"6,101.79",Medico Nursing and Homecare,105063
WARRINGTON BOROUGH COUNCIL,http://statistics.data.gov.uk/id/local-authority/00EU,Neighbourhood & Community Services,NCS,Care Purchase - OP & OT West,54470,CP-Domicil.External,440950,23-Aug-12,1900096999,"6,637.65",Medico Nursing and Homecare,105063
WARRINGTON BOROUGH COUNCIL,http://statistics.data.gov.uk/id/local-authority/00EU,Neighbourhood & Community Services,NCS,Care Purchase - PD,54440,CP-Domicil.External,440950,23-Aug-12,1900096999,"6,930.95",Medico Nursing and Homecare,105063
WARRINGTON BOROUGH COUNCIL,http://statistics.data.gov.uk/id/local-authority/00EU,Neighbourhood & Community Services,NCS,Care Purchase - OP & OT Central,54420,CP-Domicil.External,440950,23-Aug-12,1900096999,"6,984.33",Medico Nursing and Homecare,105063
WARRINGTON BOROUGH COUNCIL,http://statistics.data.gov.uk/id/local-authority/00EU,Neighbourhood & Community Services,NCS,Care Purchase - OP & OT South,54480,CP-Nursing Care-External,441200,29-Aug-12,1900097721,"1,671.20",Meridian Healthcare Ltd,101845
WARRINGTON BOROUGH COUNCIL,http://statistics.data.gov.uk/id/local-authority/00EU,Neighbourhood & Community Services,NCS,Care Purchase - OP & OT South,54480,CP-LongStayExternal,441150,29-Aug-12,1900097741,"1,506.92",Meridian Healthcare Ltd,101845
WARRINGTON BOROUGH COUNCIL,http://statistics.data.gov.uk/id/local-authority/00EU,Neighbourhood & Community Services,NCS,Care Purchase - OP & OT Central,54420,CP-Nursing Care-External,441200,29-Aug-12,1900097742,"1,694.88",Meridian Healthcare Ltd,101845
WARRINGTON BOROUGH COUNCIL,http://statistics.data.gov.uk/id/local-authority/00EU,Neighbourhood & Community Services,NCS,Care Purchase - Learning Disability,54450,CP-Day Care-External,441100,10-Aug-12,1900096393,871.92,Metropolitan Borough Of Wigan,440073
WARRINGTON BOROUGH COUNCIL,http://statistics.data.gov.uk/id/local-authority/00EU,Neighbourhood & Community Services,NCS,Care Purchase - Learning Disability,54450,CP-Day Care-External,441100,10-Aug-12,1900096394,"1,453.20",Metropolitan Borough Of Wigan,440073
WARRINGTON BOROUGH COUNCIL,http://statistics.data.gov.uk/id/local-authority/00EU,Assistant Chief Executive,CEX,Coroners Service,11100,Hire Of Mortuaries,220200,24-Aug-12,1900097045,"1,438.64",Mid Cheshire Hospitals,440149
WARRINGTON BOROUGH COUNCIL,http://statistics.data.gov.uk/id/local-authority/00EU,Assistant Chief Executive,CEX,Coroners Service,11100,Hire Of Mortuaries,220200,24-Aug-12,1900097045,"1,785.56",Mid Cheshire Hospitals,440149
WARRINGTON BOROUGH COUNCIL,http://statistics.data.gov.uk/id/local-authority/00EU,Neighbourhood & Community Services,NCS,Care Purchase - ABI,54260,CP-LongStayExternal,441150,21-Aug-12,1900096871,"6,428.00",Milbury Care Services Limited,100099
WARRINGTON BOROUGH COUNCIL,http://statistics.data.gov.uk/id/local-authority/00EU,Neighbourhood & Community Services,NCS,Care Purchase - Learning Disability,54450,CP-LongStayExternal,441150,21-Aug-12,1900096885,"8,418.40",Milbury Care Services Limited,100099
WARRINGTON BOROUGH COUNCIL,http://statistics.data.gov.uk/id/local-authority/00EU,Neighbourhood & Community Services,NCS,Care Purchase - Learning Disability,54450,CP-LongStayExternal,441150,29-Aug-12,1900097733,"8,418.40",Milbury Care Services Limited,100099
WARRINGTON BOROUGH COUNCIL,http://statistics.data.gov.uk/id/local-authority/00EU,Neighbourhood & Community Services,NCS,Care Purchase - OP & OT Central,54420,CP-LongStayExternal,441150,29-Aug-12,1900097734,"5,800.00",Milbury Care Services Limited,100099
WARRINGTON BOROUGH COUNCIL,http://statistics.data.gov.uk/id/local-authority/00EU,Neighbourhood & Community Services,NCS,Care Purchase - Mental Health Team 3,54250,CP-LongStayExternal,441150,29-Aug-12,1900097735,"7,085.08",Milbury Care Services Limited,100099
WARRINGTON BOROUGH COUNCIL,http://statistics.data.gov.uk/id/local-authority/00EU,Neighbourhood & Community Services,NCS,Care Purchase Budget,54490,CP ExternalOther Exp,440800,01-Aug-12,1900095620,"1,963.14",Minster Care Management Ltd,105179
WARRINGTON BOROUGH COUNCIL,http://statistics.data.gov.uk/id/local-authority/00EU,Neighbourhood & Community Services,NCS,Care Purchase Budget,54490,CP ExternalOther Exp,440800,16-Aug-12,1900096732,"64,000.00",Minster Care Management Ltd,105179
WARRINGTON BOROUGH COUNCIL,http://statistics.data.gov.uk/id/local-authority/00EU,Environment & Regeneration,ENO,Housing Projects,82008,Safe & Secure Energy House Assistance,554100,16-Aug-12,1900096779,"4,461.16",Mint Northwest Ltd,105390
WARRINGTON BOROUGH COUNCIL,http://statistics.data.gov.uk/id/local-authority/00EU,Neighbourhood & Community Services,NCS,Administration,51010,Gen. Personal Needs,490850,13-Aug-12,1900096459,680,Moved4u,110652
WARRINGTON BOROUGH COUNCIL,http://statistics.data.gov.uk/id/local-authority/00EU,Neighbourhood & Community Services,NCS,Care Purchase - Learning Disability,54450,CP-Domicil.External,440950,14-Aug-12,1900096544,"2,525.02",M-Power Activity Services Ltd,102186
WARRINGTON BOROUGH COUNCIL,http://statistics.data.gov.uk/id/local-authority/00EU,Environment & Regeneration,ER0,Homelessness,43650,B.& B.Allowances,525050,14-Aug-12,1900096484,"1,005.00",Mr K Willams Adelphi Vaults,110456
WARRINGTON BOROUGH COUNCIL,http://statistics.data.gov.uk/id/local-authority/00EU,Environment & Regeneration,ER0,Homelessness,43650,B.& B.Allowances,525050,14-Aug-12,1900096486,"1,260.00",Mr K Willams Adelphi Vaults,110456
WARRINGTON BOROUGH COUNCIL,http://statistics.data.gov.uk/id/local-authority/00EU,Neighbourhood & Community Services,NCS,Supporting People Grant Payments,53260,Sheltd/Xtra Care Hsing and Comm Alarms,535050,07-Aug-12,1900096055,"2,985.92",Muir Housing Association Ltd,100053
WARRINGTON BOROUGH COUNCIL,http://statistics.data.gov.uk/id/local-authority/00EU,Children & Young People,CHL,Rowland Close,31312,Materials,400500,17-Aug-12,1900096793,790,Murrays Builders and Timer Merchant,110783
WARRINGTON BOROUGH COUNCIL,http://statistics.data.gov.uk/id/local-authority/00EU,Environment & Regeneration,IT0,Customer Contact Centre,52201,Ticket Master Charges,490450,01-Aug-12,1900095716,853.64,National Express Ltd,104957
WARRINGTON BOROUGH COUNCIL,http://statistics.data.gov.uk/id/local-authority/00EU,Environment & Regeneration,ER0,Markets,43711,Resaleables,400600,07-Aug-12,1900096025,"3,187.18",National Express Ltd,104957
WARRINGTON BOROUGH COUNCIL,http://statistics.data.gov.uk/id/local-authority/00EU,Children & Young People,CHL,DSG Early Years PVI Settings,32417,Private & Voluntary 3 Year Olds,470100,24-Aug-12,1900097904,"4,392.36",Newchurch Pre-School Limited,400148
WARRINGTON BOROUGH COUNCIL,http://statistics.data.gov.uk/id/local-authority/00EU,Neighbourhood & Community Services,NCS,Care Purchase - Mental Health Team 2,54240,CP-Domicil.External,440950,01-Aug-12,1900095606,"1,556.52",Next Stage A Way Forward Ltd,101217
WARRINGTON BOROUGH COUNCIL,http://statistics.data.gov.uk/id/local-authority/00EU,Neighbourhood & Community Services,NCS,Care Purchase - Mental Health Team 2,54240,CP-Domicil.External,440950,01-Aug-12,1900095607,"1,464.96",Next Stage A Way Forward Ltd,101217
WARRINGTON BOROUGH COUNCIL,http://statistics.data.gov.uk/id/local-authority/00EU,Neighbourhood & Community Services,NCS,Care Purchase - Mental Health Team 3,54250,CP-Domicil.External,440950,01-Aug-12,1900095609,549.36,Next Stage A Way Forward Ltd,101217
WARRINGTON BOROUGH COUNCIL,http://statistics.data.gov.uk/id/local-authority/00EU,Neighbourhood & Community Services,NCS,Care Purchase - Mental Health Team 3,54250,CP-Domicil.External,440950,01-Aug-12,1900095610,"1,190.28",Next Stage A Way Forward Ltd,101217
WARRINGTON BOROUGH COUNCIL,http://statistics.data.gov.uk/id/local-authority/00EU,Neighbourhood & Community Services,NCS,Care Purchase - Mental Health Team 2,54240,CP-Domicil.External,440950,01-Aug-12,1900095611,"1,648.08",Next Stage A Way Forward Ltd,101217
WARRINGTON BOROUGH COUNCIL,http://statistics.data.gov.uk/id/local-authority/00EU,Neighbourhood & Community Services,NCS,Care Purchase - Mental Health Team 1,54230,CP-Domicil.External,440950,01-Aug-12,1900095612,"1,922.76",Next Stage A Way Forward Ltd,101217
WARRINGTON BOROUGH COUNCIL,http://statistics.data.gov.uk/id/local-authority/00EU,Neighbourhood & Community Services,NCS,Care Purchase - Mental Health Team 2,54240,CP-LongStayExternal,441150,01-Aug-12,1900095613,"1,281.84",Next Stage A Way Forward Ltd,101217
WARRINGTON BOROUGH COUNCIL,http://statistics.data.gov.uk/id/local-authority/00EU,Neighbourhood & Community Services,NCS,Care Purchase - Mental Health Team 2,54240,CP-Domicil.External,440950,01-Aug-12,1900095625,"1,464.96",Next Stage A Way Forward Ltd,101217
WARRINGTON BOROUGH COUNCIL,http://statistics.data.gov.uk/id/local-authority/00EU,Neighbourhood & Community Services,NCS,Care Purchase - Mental Health Team 2,54240,CP-Domicil.External,440950,01-Aug-12,1900095626,"1,464.96",Next Stage A Way Forward Ltd,101217
WARRINGTON BOROUGH COUNCIL,http://statistics.data.gov.uk/id/local-authority/00EU,Neighbourhood & Community Services,NCS,Care Purchase - Mental Health Team 2,54240,CP-Domicil.External,440950,01-Aug-12,1900095627,"1,281.84",Next Stage A Way Forward Ltd,101217
WARRINGTON BOROUGH COUNCIL,http://statistics.data.gov.uk/id/local-authority/00EU,Neighbourhood & Community Services,NCS,Care Purchase - Mental Health Team 1,54230,CP-Domicil.External,440950,01-Aug-12,1900095628,"1,098.72",Next Stage A Way Forward Ltd,101217
WARRINGTON BOROUGH COUNCIL,http://statistics.data.gov.uk/id/local-authority/00EU,Neighbourhood & Community Services,NCS,Care Purchase - Mental Health Team 3,54250,CP-Domicil.External,440950,01-Aug-12,1900095629,"1,464.96",Next Stage A Way Forward Ltd,101217
WARRINGTON BOROUGH COUNCIL,http://statistics.data.gov.uk/id/local-authority/00EU,Neighbourhood & Community Services,NCS,Care Purchase - Mental Health Team 3,54250,CP-Domicil.External,440950,01-Aug-12,1900095630,"1,464.96",Next Stage A Way Forward Ltd,101217
WARRINGTON BOROUGH COUNCIL,http://statistics.data.gov.uk/id/local-authority/00EU,Neighbourhood & Community Services,NCS,Care Purchase - Mental Health Team 2,54240,CP-Domicil.External,440950,01-Aug-12,1900095631,"1,922.76",Next Stage A Way Forward Ltd,101217
WARRINGTON BOROUGH COUNCIL,http://statistics.data.gov.uk/id/local-authority/00EU,Neighbourhood & Community Services,NCS,Care Purchase - Mental Health Team 2,54240,CP-Domicil.External,440950,29-Aug-12,1900097682,"1,464.96",Next Stage A Way Forward Ltd,101217
WARRINGTON BOROUGH COUNCIL,http://statistics.data.gov.uk/id/local-authority/00EU,Neighbourhood & Community Services,NCS,Care Purchase - Mental Health Team 2,54240,CP-Domicil.External,440950,29-Aug-12,1900097683,"1,648.08",Next Stage A Way Forward Ltd,101217
WARRINGTON BOROUGH COUNCIL,http://statistics.data.gov.uk/id/local-authority/00EU,Neighbourhood & Community Services,NCS,Care Purchase - Mental Health Team 1,54230,CP-Domicil.External,440950,29-Aug-12,1900097684,"1,922.76",Next Stage A Way Forward Ltd,101217
WARRINGTON BOROUGH COUNCIL,http://statistics.data.gov.uk/id/local-authority/00EU,Neighbourhood & Community Services,NCS,Care Purchase - Mental Health Team 2,54240,CP-LongStayExternal,441150,29-Aug-12,1900097685,"1,281.84",Next Stage A Way Forward Ltd,101217
WARRINGTON BOROUGH COUNCIL,http://statistics.data.gov.uk/id/local-authority/00EU,Neighbourhood & Community Services,NCS,Care Purchase - Mental Health Team 2,54240,CP-Domicil.External,440950,29-Aug-12,1900097686,"1,464.96",Next Stage A Way Forward Ltd,101217
WARRINGTON BOROUGH COUNCIL,http://statistics.data.gov.uk/id/local-authority/00EU,Neighbourhood & Community Services,NCS,Care Purchase - Mental Health Team 2,54240,CP-Domicil.External,440950,29-Aug-12,1900097687,"1,464.96",Next Stage A Way Forward Ltd,101217
WARRINGTON BOROUGH COUNCIL,http://statistics.data.gov.uk/id/local-authority/00EU,Neighbourhood & Community Services,NCS,Care Purchase - Mental Health Team 2,54240,CP-Domicil.External,440950,29-Aug-12,1900097688,"1,201.73",Next Stage A Way Forward Ltd,101217
WARRINGTON BOROUGH COUNCIL,http://statistics.data.gov.uk/id/local-authority/00EU,Neighbourhood & Community Services,NCS,Care Purchase - Mental Health Team 2,54240,CP-Domicil.External,440950,29-Aug-12,1900097689,"1,281.84",Next Stage A Way Forward Ltd,101217
WARRINGTON BOROUGH COUNCIL,http://statistics.data.gov.uk/id/local-authority/00EU,Neighbourhood & Community Services,NCS,Care Purchase - Mental Health Team 2,54240,CP-Domicil.External,440950,29-Aug-12,1900097690,"1,922.76",Next Stage A Way Forward Ltd,101217
WARRINGTON BOROUGH COUNCIL,http://statistics.data.gov.uk/id/local-authority/00EU,Neighbourhood & Community Services,NCS,Care Purchase - Mental Health Team 1,54230,CP-Domicil.External,440950,29-Aug-12,1900097691,"1,098.72",Next Stage A Way Forward Ltd,101217
WARRINGTON BOROUGH COUNCIL,http://statistics.data.gov.uk/id/local-authority/00EU,Neighbourhood & Community Services,NCS,Care Purchase - Mental Health Team 2,54240,CP-Domicil.External,440950,29-Aug-12,1900097692,"1,922.76",Next Stage A Way Forward Ltd,101217
WARRINGTON BOROUGH COUNCIL,http://statistics.data.gov.uk/id/local-authority/00EU,Neighbourhood & Community Services,NCS,Care Purchase - Mental Health Team 3,54250,CP-Domicil.External,440950,29-Aug-12,1900097693,"1,190.28",Next Stage A Way Forward Ltd,101217
WARRINGTON BOROUGH COUNCIL,http://statistics.data.gov.uk/id/local-authority/00EU,Neighbourhood & Community Services,NCS,Care Purchase - Mental Health Team 3,54250,CP-Domicil.External,440950,29-Aug-12,1900097694,549.36,Next Stage A Way Forward Ltd,101217
WARRINGTON BOROUGH COUNCIL,http://statistics.data.gov.uk/id/local-authority/00EU,Neighbourhood & Community Services,NCS,Care Purchase - Mental Health Team 3,54250,CP-Domicil.External,440950,29-Aug-12,1900097695,"1,464.96",Next Stage A Way Forward Ltd,101217
WARRINGTON BOROUGH COUNCIL,http://statistics.data.gov.uk/id/local-authority/00EU,Neighbourhood & Community Services,NCS,Care Purchase - Mental Health Team 2,54240,CP-Domicil.External,440950,29-Aug-12,1900097696,"1,922.76",Next Stage A Way Forward Ltd,101217
WARRINGTON BOROUGH COUNCIL,http://statistics.data.gov.uk/id/local-authority/00EU,Neighbourhood & Community Services,NCS,Care Purchase - Mental Health Team 3,54250,CP-Domicil.External,440950,29-Aug-12,1900097701,"1,190.28",Next Stage A Way Forward Ltd,101217
WARRINGTON BOROUGH COUNCIL,http://statistics.data.gov.uk/id/local-authority/00EU,Neighbourhood & Community Services,NCS,Care Purchase - Mental Health Team 3,54250,CP-Domicil.External,440950,29-Aug-12,1900097703,"1,464.96",Next Stage A Way Forward Ltd,101217
WARRINGTON BOROUGH COUNCIL,http://statistics.data.gov.uk/id/local-authority/00EU,Assistant Chief Executive,CEX,Car Leasing Scheme - Salary Sacrifice,52126,Car Leasing Charges,350000,10-Aug-12,1900096330,595,NHC NHS Foundation Trust,110359
WARRINGTON BOROUGH COUNCIL,http://statistics.data.gov.uk/id/local-authority/00EU,Assistant Chief Executive,CEX,Car Leasing Scheme - Salary Sacrifice,52126,Car Leasing Charges,350000,10-Aug-12,1900096330,"3,015.70",NHC NHS Foundation Trust,110359
WARRINGTON BOROUGH COUNCIL,http://statistics.data.gov.uk/id/local-authority/00EU,Assistant Chief Executive,CEX,Car Leasing Scheme - Salary Sacrifice,52126,Car Leasing Charges,350000,10-Aug-12,1900096331,595,NHC NHS Foundation Trust,110359
WARRINGTON BOROUGH COUNCIL,http://statistics.data.gov.uk/id/local-authority/00EU,Assistant Chief Executive,CEX,Car Leasing Scheme - Salary Sacrifice,52126,Car Leasing Charges,350000,10-Aug-12,1900096331,"2,607.48",NHC NHS Foundation Trust,110359
WARRINGTON BOROUGH COUNCIL,http://statistics.data.gov.uk/id/local-authority/00EU,Assistant Chief Executive,CEX,Car Leasing Scheme - Salary Sacrifice,52126,Car Leasing Charges,350000,10-Aug-12,1900096336,595,NHC NHS Foundation Trust,110359
WARRINGTON BOROUGH COUNCIL,http://statistics.data.gov.uk/id/local-authority/00EU,Assistant Chief Executive,CEX,Car Leasing Scheme - Salary Sacrifice,52126,Car Leasing Charges,350000,10-Aug-12,1900096336,"1,931.99",NHC NHS Foundation Trust,110359
WARRINGTON BOROUGH COUNCIL,http://statistics.data.gov.uk/id/local-authority/00EU,Assistant Chief Executive,CEX,Car Leasing Scheme - Salary Sacrifice,52126,Car Leasing Charges,350000,10-Aug-12,1900096337,595,NHC NHS Foundation Trust,110359
WARRINGTON BOROUGH COUNCIL,http://statistics.data.gov.uk/id/local-authority/00EU,Assistant Chief Executive,CEX,Car Leasing Scheme - Salary Sacrifice,52126,Car Leasing Charges,350000,10-Aug-12,1900096337,"3,645.62",NHC NHS Foundation Trust,110359
WARRINGTON BOROUGH COUNCIL,http://statistics.data.gov.uk/id/local-authority/00EU,Assistant Chief Executive,CEX,Car Leasing Scheme - Salary Sacrifice,52126,Car Leasing Charges,350000,10-Aug-12,1900096338,595,NHC NHS Foundation Trust,110359
WARRINGTON BOROUGH COUNCIL,http://statistics.data.gov.uk/id/local-authority/00EU,Assistant Chief Executive,CEX,Car Leasing Scheme - Salary Sacrifice,52126,Car Leasing Charges,350000,10-Aug-12,1900096338,"3,584.65",NHC NHS Foundation Trust,110359
WARRINGTON BOROUGH COUNCIL,http://statistics.data.gov.uk/id/local-authority/00EU,Assistant Chief Executive,CEX,Car Leasing Scheme - Salary Sacrifice,52126,Car Leasing Charges,350000,15-Aug-12,1900096611,595,NHC NHS Foundation Trust,110359
WARRINGTON BOROUGH COUNCIL,http://statistics.data.gov.uk/id/local-authority/00EU,Assistant Chief Executive,CEX,Car Leasing Scheme - Salary Sacrifice,52126,Car Leasing Charges,350000,15-Aug-12,1900096611,"4,452.00",NHC NHS Foundation Trust,110359
WARRINGTON BOROUGH COUNCIL,http://statistics.data.gov.uk/id/local-authority/00EU,Assistant Chief Executive,CEX,Car Leasing Scheme - Salary Sacrifice,52126,Car Leasing Charges,350000,15-Aug-12,1900096613,595,NHC NHS Foundation Trust,110359
WARRINGTON BOROUGH COUNCIL,http://statistics.data.gov.uk/id/local-authority/00EU,Assistant Chief Executive,CEX,Car Leasing Scheme - Salary Sacrifice,52126,Car Leasing Charges,350000,15-Aug-12,1900096613,"3,688.52",NHC NHS Foundation Trust,110359
WARRINGTON BOROUGH COUNCIL,http://statistics.data.gov.uk/id/local-authority/00EU,Assistant Chief Executive,CEX,Car Leasing Scheme - Salary Sacrifice,52126,Car Leasing Charges,350000,15-Aug-12,1900096673,595,NHC NHS Foundation Trust,110359
WARRINGTON BOROUGH COUNCIL,http://statistics.data.gov.uk/id/local-authority/00EU,Assistant Chief Executive,CEX,Car Leasing Scheme - Salary Sacrifice,52126,Car Leasing Charges,350000,15-Aug-12,1900096673,"3,280.92",NHC NHS Foundation Trust,110359
WARRINGTON BOROUGH COUNCIL,http://statistics.data.gov.uk/id/local-authority/00EU,Assistant Chief Executive,CEX,Car Leasing Scheme - Salary Sacrifice,52126,Car Leasing Charges,350000,16-Aug-12,1900096716,595,NHC NHS Foundation Trust,110359
WARRINGTON BOROUGH COUNCIL,http://statistics.data.gov.uk/id/local-authority/00EU,Assistant Chief Executive,CEX,Car Leasing Scheme - Salary Sacrifice,52126,Car Leasing Charges,350000,16-Aug-12,1900096716,"2,798.43",NHC NHS Foundation Trust,110359
WARRINGTON BOROUGH COUNCIL,http://statistics.data.gov.uk/id/local-authority/00EU,Assistant Chief Executive,CEX,Car Leasing Scheme - Salary Sacrifice,52126,Car Leasing Charges,350000,16-Aug-12,1900096717,595,NHC NHS Foundation Trust,110359
WARRINGTON BOROUGH COUNCIL,http://statistics.data.gov.uk/id/local-authority/00EU,Assistant Chief Executive,CEX,Car Leasing Scheme - Salary Sacrifice,52126,Car Leasing Charges,350000,16-Aug-12,1900096717,"2,052.01",NHC NHS Foundation Trust,110359
WARRINGTON BOROUGH COUNCIL,http://statistics.data.gov.uk/id/local-authority/00EU,Assistant Chief Executive,CEX,Car Leasing Scheme - Salary Sacrifice,52126,Car Leasing Charges,350000,16-Aug-12,1900096718,595,NHC NHS Foundation Trust,110359
WARRINGTON BOROUGH COUNCIL,http://statistics.data.gov.uk/id/local-authority/00EU,Assistant Chief Executive,CEX,Car Leasing Scheme - Salary Sacrifice,52126,Car Leasing Charges,350000,16-Aug-12,1900096718,"2,884.71",NHC NHS Foundation Trust,110359
WARRINGTON BOROUGH COUNCIL,http://statistics.data.gov.uk/id/local-authority/00EU,Assistant Chief Executive,CEX,Car Leasing Scheme - Salary Sacrifice,52126,Car Leasing Charges,350000,22-Aug-12,1900096936,670,NHC NHS Foundation Trust,110359
WARRINGTON BOROUGH COUNCIL,http://statistics.data.gov.uk/id/local-authority/00EU,Assistant Chief Executive,CEX,Car Leasing Scheme - Salary Sacrifice,52126,Car Leasing Charges,350000,22-Aug-12,1900096936,"3,146.88",NHC NHS Foundation Trust,110359
WARRINGTON BOROUGH COUNCIL,http://statistics.data.gov.uk/id/local-authority/00EU,Assistant Chief Executive,CEX,Car Leasing Scheme - Salary Sacrifice,52126,Car Leasing Charges,350000,23-Aug-12,1900096973,595,NHC NHS Foundation Trust,110359
WARRINGTON BOROUGH COUNCIL,http://statistics.data.gov.uk/id/local-authority/00EU,Assistant Chief Executive,CEX,Car Leasing Scheme - Salary Sacrifice,52126,Car Leasing Charges,350000,23-Aug-12,1900096973,"3,025.36",NHC NHS Foundation Trust,110359
WARRINGTON BOROUGH COUNCIL,http://statistics.data.gov.uk/id/local-authority/00EU,Assistant Chief Executive,CEX,Car Leasing Scheme - Salary Sacrifice,52126,Car Leasing Charges,350000,23-Aug-12,1900096974,595,NHC NHS Foundation Trust,110359
WARRINGTON BOROUGH COUNCIL,http://statistics.data.gov.uk/id/local-authority/00EU,Assistant Chief Executive,CEX,Car Leasing Scheme - Salary Sacrifice,52126,Car Leasing Charges,350000,23-Aug-12,1900096974,"1,946.35",NHC NHS Foundation Trust,110359
WARRINGTON BOROUGH COUNCIL,http://statistics.data.gov.uk/id/local-authority/00EU,Assistant Chief Executive,CEX,Car Leasing Scheme - Salary Sacrifice,52126,Car Leasing Charges,350000,24-Aug-12,1900097120,595,NHC NHS Foundation Trust,110359
WARRINGTON BOROUGH COUNCIL,http://statistics.data.gov.uk/id/local-authority/00EU,Assistant Chief Executive,CEX,Car Leasing Scheme - Salary Sacrifice,52126,Car Leasing Charges,350000,24-Aug-12,1900097120,"2,511.35",NHC NHS Foundation Trust,110359
WARRINGTON BOROUGH COUNCIL,http://statistics.data.gov.uk/id/local-authority/00EU,Neighbourhood & Community Services,NCS,Care Purchase Budget,54490,CP - Cont Care - External,441350,07-Aug-12,1900095919,787,Nightingales Homecare Services Agen,104972
WARRINGTON BOROUGH COUNCIL,http://statistics.data.gov.uk/id/local-authority/00EU,Neighbourhood & Community Services,NCS,Care Purchase - ABI,54260,CP-Domicil.External,440950,07-Aug-12,1900095919,882,Nightingales Homecare Services Agen,104972
WARRINGTON BOROUGH COUNCIL,http://statistics.data.gov.uk/id/local-authority/00EU,Neighbourhood & Community Services,NCS,Care Purchase - Hospital Discharge Team,54280,CP-Domicil.External,440950,07-Aug-12,1900095919,"1,319.92",Nightingales Homecare Services Agen,104972
WARRINGTON BOROUGH COUNCIL,http://statistics.data.gov.uk/id/local-authority/00EU,Neighbourhood & Community Services,NCS,Care Purchase - OP & OT Central,54420,CP-Domicil.External,440950,07-Aug-12,1900095919,"5,851.76",Nightingales Homecare Services Agen,104972
WARRINGTON BOROUGH COUNCIL,http://statistics.data.gov.uk/id/local-authority/00EU,Neighbourhood & Community Services,NCS,Care Purchase - PD,54440,CP-Domicil.External,440950,07-Aug-12,1900095919,"5,952.87",Nightingales Homecare Services Agen,104972
WARRINGTON BOROUGH COUNCIL,http://statistics.data.gov.uk/id/local-authority/00EU,Neighbourhood & Community Services,NCS,Care Purchase - Learning Disability,54450,CP-Domicil.External,440950,07-Aug-12,1900095919,"6,898.13",Nightingales Homecare Services Agen,104972
WARRINGTON BOROUGH COUNCIL,http://statistics.data.gov.uk/id/local-authority/00EU,Neighbourhood & Community Services,NCS,Care Purchase -OP & OT East,54430,CP-Domicil.External,440950,07-Aug-12,1900095919,"9,802.71",Nightingales Homecare Services Agen,104972
WARRINGTON BOROUGH COUNCIL,http://statistics.data.gov.uk/id/local-authority/00EU,Neighbourhood & Community Services,NCS,Care Purchase - OP & OT West,54470,CP-Domicil.External,440950,07-Aug-12,1900095919,"15,380.23",Nightingales Homecare Services Agen,104972
WARRINGTON BOROUGH COUNCIL,http://statistics.data.gov.uk/id/local-authority/00EU,Neighbourhood & Community Services,NCS,Care Purchase - OP & OT South,54480,CP-Domicil.External,440950,07-Aug-12,1900095919,"19,229.54",Nightingales Homecare Services Agen,104972
WARRINGTON BOROUGH COUNCIL,http://statistics.data.gov.uk/id/local-authority/00EU,Neighbourhood & Community Services,NCS,Care Purchase - Hospital Discharge Team,54280,CP-Domicil.External,440950,31-Aug-12,1900097853,"2,570.34",Nightingales Homecare Services Agen,104972
WARRINGTON BOROUGH COUNCIL,http://statistics.data.gov.uk/id/local-authority/00EU,Neighbourhood & Community Services,NCS,Care Purchase - OP & OT Central,54420,CP-Domicil.External,440950,31-Aug-12,1900097853,"4,737.04",Nightingales Homecare Services Agen,104972
WARRINGTON BOROUGH COUNCIL,http://statistics.data.gov.uk/id/local-authority/00EU,Neighbourhood & Community Services,NCS,Care Purchase - Learning Disability,54450,CP-Domicil.External,440950,31-Aug-12,1900097853,"6,392.86",Nightingales Homecare Services Agen,104972
WARRINGTON BOROUGH COUNCIL,http://statistics.data.gov.uk/id/local-authority/00EU,Neighbourhood & Community Services,NCS,Care Purchase - PD,54440,CP-Domicil.External,440950,31-Aug-12,1900097853,"6,825.97",Nightingales Homecare Services Agen,104972
WARRINGTON BOROUGH COUNCIL,http://statistics.data.gov.uk/id/local-authority/00EU,Neighbourhood & Community Services,NCS,Care Purchase -OP & OT East,54430,CP-Domicil.External,440950,31-Aug-12,1900097853,"9,517.93",Nightingales Homecare Services Agen,104972
WARRINGTON BOROUGH COUNCIL,http://statistics.data.gov.uk/id/local-authority/00EU,Neighbourhood & Community Services,NCS,Care Purchase - OP & OT West,54470,CP-Domicil.External,440950,31-Aug-12,1900097853,"13,051.00",Nightingales Homecare Services Agen,104972
WARRINGTON BOROUGH COUNCIL,http://statistics.data.gov.uk/id/local-authority/00EU,Neighbourhood & Community Services,NCS,Care Purchase - OP & OT South,54480,CP-Domicil.External,440950,31-Aug-12,1900097853,"18,635.15",Nightingales Homecare Services Agen,104972
WARRINGTON BOROUGH COUNCIL,http://statistics.data.gov.uk/id/local-authority/00EU,Children & Young People,CHL,DSG Inter Authority Recoupment,32009,Recoupment Charges,490700,17-Aug-12,1900096815,"2,731.05",North Ayrshire Coucil,109075
WARRINGTON BOROUGH COUNCIL,http://statistics.data.gov.uk/id/local-authority/00EU,Environment & Regeneration,IT0,ICT & Business Improvement,23020,Computer Software - Maintenance,450850,29-Aug-12,1900097708,"17,500.00",Northgate Information Solutions,100315
WARRINGTON BOROUGH COUNCIL,http://statistics.data.gov.uk/id/local-authority/00EU,Environment & Regeneration,ER0,Street Lighting Client,44241,Illumin Signs Works Order Rep,531500,01-Aug-12,1900095644,"3,823.87",Npower Electricity,101884
WARRINGTON BOROUGH COUNCIL,http://statistics.data.gov.uk/id/local-authority/00EU,Children & Young People,CHL,DSG Independent School Fees,32011,Independent School Fees,490200,09-Aug-12,1900096319,"26,666.66",Nugent Care,101082
WARRINGTON BOROUGH COUNCIL,http://statistics.data.gov.uk/id/local-authority/00EU,Children & Young People,CHL,DSG Early Years PVI Settings,32417,Private & Voluntary 3 Year Olds,470100,24-Aug-12,1900097905,"18,432.08",Old Hall Pre School,400017
WARRINGTON BOROUGH COUNCIL,http://statistics.data.gov.uk/id/local-authority/00EU,Neighbourhood & Community Services,NCS,Care Purchase Budget,54490,CP ExternalOther Exp,440800,16-Aug-12,1900096733,"25,000.00",Old Rectory Private Nursing Home,104990
WARRINGTON BOROUGH COUNCIL,http://statistics.data.gov.uk/id/local-authority/00EU,Neighbourhood & Community Services,NCS,Care Purchase Budget,54490,CP ExternalOther Exp,440800,21-Aug-12,1900096882,"6,415.85",Old Rectory Private Nursing Home,104990
WARRINGTON BOROUGH COUNCIL,http://statistics.data.gov.uk/id/local-authority/00EU,Children & Young People,CHL,Fostering Team,31105,Agency Supply - GF,180000,07-Aug-12,1900096014,630,Oldfield Consltancy Heswall Ltd,109051
WARRINGTON BOROUGH COUNCIL,http://statistics.data.gov.uk/id/local-authority/00EU,Children & Young People,CHL,Foster Allowances,31106,Agency Supply - GF,180000,13-Aug-12,1900096437,570,Oldfield Consltancy Heswall Ltd,109051
WARRINGTON BOROUGH COUNCIL,http://statistics.data.gov.uk/id/local-authority/00EU,Children & Young People,CHL,Fostering Team,31105,Agency Supply - GF,180000,16-Aug-12,1900096754,630,Oldfield Consltancy Heswall Ltd,109051
WARRINGTON BOROUGH COUNCIL,http://statistics.data.gov.uk/id/local-authority/00EU,Children & Young People,CHL,Fostering Team,31105,Agency Supply - GF,180000,24-Aug-12,1900097103,780,Oldfield Consltancy Heswall Ltd,109051
WARRINGTON BOROUGH COUNCIL,http://statistics.data.gov.uk/id/local-authority/00EU,Neighbourhood & Community Services,NCS,Care Purchase - Learning Disability,54450,CP-LongStayExternal,441150,15-Aug-12,1900096695,"16,209.52",Oliver House Priory,107946
WARRINGTON BOROUGH COUNCIL,http://statistics.data.gov.uk/id/local-authority/00EU,Neighbourhood & Community Services,NCS,Care Purchase - OP & OT West,54470,CP-LongStayExternal,441150,15-Aug-12,1900096657,"1,904.00",Orchard Care Homes,102524
WARRINGTON BOROUGH COUNCIL,http://statistics.data.gov.uk/id/local-authority/00EU,Neighbourhood & Community Services,NCS,Neighbourhood Co-o Central,51309,Payment of Grants,470050,09-Aug-12,1900096302,900,Orford Ladybirds,107548
WARRINGTON BOROUGH COUNCIL,http://statistics.data.gov.uk/id/local-authority/00EU,Children & Young People,CHL,DSG Early Years PVI Settings,32417,Private & Voluntary 3 Year Olds,470100,24-Aug-12,1900097906,"9,482.58",Oughtrington Pre-School,400044
WARRINGTON BOROUGH COUNCIL,http://statistics.data.gov.uk/id/local-authority/00EU,Neighbourhood & Community Services,NCS,Care Purchase - Learning Disability,54450,CP-Domicil.External,440950,15-Aug-12,1900096643,649.56,P S S,105048
WARRINGTON BOROUGH COUNCIL,http://statistics.data.gov.uk/id/local-authority/00EU,Neighbourhood & Community Services,NCS,Care Purchase - Learning Disability,54450,CP-Domicil.External,440950,29-Aug-12,1900097674,649.56,P S S,105048
WARRINGTON BOROUGH COUNCIL,http://statistics.data.gov.uk/id/local-authority/00EU,Children & Young People,CYP,Secondary,81002,Contract Works,492550,30-Aug-12,1900097816,"3,950.00",P3 Plant Ltd,110843
WARRINGTON BOROUGH COUNCIL,http://statistics.data.gov.uk/id/local-authority/00EU,Neighbourhood & Community Services,NCS,Contracting and Commissioning,53160,Other Advertising & Publicity,450050,09-Aug-12,1900096308,"1,297.00",Pannone LLP Office,110046
WARRINGTON BOROUGH COUNCIL,http://statistics.data.gov.uk/id/local-authority/00EU,Neighbourhood & Community Services,NCS,Care Purchase - Learning Disability,54450,CP-LongStayExternal,441150,07-Aug-12,1900095982,"10,471.32",Pendleton Care Limited,101213
WARRINGTON BOROUGH COUNCIL,http://statistics.data.gov.uk/id/local-authority/00EU,Neighbourhood & Community Services,NCS,Care Purchase - Learning Disability,54450,CP-LongStayExternal,441150,29-Aug-12,1900097761,"10,471.32",Pendleton Care Limited,101213
WARRINGTON BOROUGH COUNCIL,http://statistics.data.gov.uk/id/local-authority/00EU,Children & Young People,CHL,Woolston Playbarn,32033,Furniture & Fittings,400150,22-Aug-12,1900096939,"1,695.00",Peros Ltd,110502
WARRINGTON BOROUGH COUNCIL,http://statistics.data.gov.uk/id/local-authority/00EU,Neighbourhood & Community Services,NCS,Care Purchase - Mental Health Team 2,54240,CP-LongStayExternal,441150,21-Aug-12,1900096872,"2,621.71",Phoenix House,100085
WARRINGTON BOROUGH COUNCIL,http://statistics.data.gov.uk/id/local-authority/00EU,Neighbourhood & Community Services,NCS,Care Purchase - Mental Health Team 2,54240,CP-LongStayExternal,441150,21-Aug-12,1900096873,"1,522.29",Phoenix House,100085
WARRINGTON BOROUGH COUNCIL,http://statistics.data.gov.uk/id/local-authority/00EU,Neighbourhood & Community Services,NCS,Care Purchase - Mental Health Team 2,54240,CP-LongStayExternal,441150,21-Aug-12,1900096874,"2,621.72",Phoenix House,100085
WARRINGTON BOROUGH COUNCIL,http://statistics.data.gov.uk/id/local-authority/00EU,Assistant Chief Executive,CEX,CRT Apprenticeships,22470,"Campaigns,  Projects and Events",491950,10-Aug-12,1900096363,"1,260.00",Pink Ladies,101485
WARRINGTON BOROUGH COUNCIL,http://statistics.data.gov.uk/id/local-authority/00EU,Assistant Chief Executive,CEX,CRT Apprenticeships,22470,"Campaigns,  Projects and Events",491950,24-Aug-12,1900097111,"1,050.00",Pink Ladies,101485
WARRINGTON BOROUGH COUNCIL,http://statistics.data.gov.uk/id/local-authority/00EU,Children & Young People,CHL,DSG Early Years PVI Settings,32417,Private & Voluntary 3 Year Olds,470100,24-Aug-12,1900097908,"14,673.54",Play Days Pre-School,400016
WARRINGTON BOROUGH COUNCIL,http://statistics.data.gov.uk/id/local-authority/00EU,Assistant Chief Executive,CEX,Coroners Service,11100,Removal Bodies & Exc,440350,24-Aug-12,1900097068,588.74,Pope Funeral Services,105037
WARRINGTON BOROUGH COUNCIL,http://statistics.data.gov.uk/id/local-authority/00EU,Environment & Regeneration,ER1,Transport Holding Account,41311,Road Fund Licences,300200,14-Aug-12,1900096570,539.17,Post Office Counters Ltd,100004
WARRINGTON BOROUGH COUNCIL,http://statistics.data.gov.uk/id/local-authority/00EU,Environment & Regeneration,ER1,Transport Holding Account,41311,Road Fund Licences,300200,14-Aug-12,1900096570,539.17,Post Office Counters Ltd,100004
WARRINGTON BOROUGH COUNCIL,http://statistics.data.gov.uk/id/local-authority/00EU,Environment & Regeneration,ER1,Transport Holding Account,41311,Road Fund Licences,300200,14-Aug-12,1900096570,539.17,Post Office Counters Ltd,100004
WARRINGTON BOROUGH COUNCIL,http://statistics.data.gov.uk/id/local-authority/00EU,Environment & Regeneration,ER1,Transport Holding Account,41311,Road Fund Licences,300200,14-Aug-12,1900096570,539.17,Post Office Counters Ltd,100004
WARRINGTON BOROUGH COUNCIL,http://statistics.data.gov.uk/id/local-authority/00EU,Environment & Regeneration,ER1,Transport Holding Account,41311,Road Fund Licences,300200,14-Aug-12,1900096570,539.17,Post Office Counters Ltd,100004
WARRINGTON BOROUGH COUNCIL,http://statistics.data.gov.uk/id/local-authority/00EU,Neighbourhood & Community Services,NCS,Care Purchase - Learning Disability,54450,CP-LongStayExternal,441150,15-Aug-12,1900096685,"3,508.00",Potens Ltd TA Heath Lodge,102481
WARRINGTON BOROUGH COUNCIL,http://statistics.data.gov.uk/id/local-authority/00EU,Neighbourhood & Community Services,NCS,Care Purchase - PD,54440,CP-Domicil.External,440950,07-Aug-12,1900095917,555.71,Premier Care Cheshire Ltd,105142
WARRINGTON BOROUGH COUNCIL,http://statistics.data.gov.uk/id/local-authority/00EU,Neighbourhood & Community Services,NCS,Care Purchase - Mental Health Team 2,54240,CP-Domicil.External,440950,07-Aug-12,1900095917,969.68,Premier Care Cheshire Ltd,105142
WARRINGTON BOROUGH COUNCIL,http://statistics.data.gov.uk/id/local-authority/00EU,Neighbourhood & Community Services,NCS,Care Purchase - Learning Disability,54450,CP-Domicil.External,440950,07-Aug-12,1900095917,"1,104.34",Premier Care Cheshire Ltd,105142
WARRINGTON BOROUGH COUNCIL,http://statistics.data.gov.uk/id/local-authority/00EU,Neighbourhood & Community Services,NCS,Care Purchase Budget,54490,CP-Domicil.External,440950,07-Aug-12,1900095917,"2,960.30",Premier Care Cheshire Ltd,105142
WARRINGTON BOROUGH COUNCIL,http://statistics.data.gov.uk/id/local-authority/00EU,Neighbourhood & Community Services,NCS,Care Purchase - OP & OT South,54480,CP-Domicil.External,440950,07-Aug-12,1900095917,"9,554.35",Premier Care Cheshire Ltd,105142
WARRINGTON BOROUGH COUNCIL,http://statistics.data.gov.uk/id/local-authority/00EU,Neighbourhood & Community Services,NCS,Care Purchase - PD,54440,CP-Domicil.External,440950,07-Aug-12,1900095917,"13,042.70",Premier Care Cheshire Ltd,105142
WARRINGTON BOROUGH COUNCIL,http://statistics.data.gov.uk/id/local-authority/00EU,Neighbourhood & Community Services,NCS,Care Purchase - Learning Disability,54450,CP-Domicil.External,440950,07-Aug-12,1900095917,"16,327.32",Premier Care Cheshire Ltd,105142
WARRINGTON BOROUGH COUNCIL,http://statistics.data.gov.uk/id/local-authority/00EU,Neighbourhood & Community Services,NCS,Care Purchase - OP & OT West,54470,CP-Domicil.External,440950,07-Aug-12,1900095917,"19,780.29",Premier Care Cheshire Ltd,105142
WARRINGTON BOROUGH COUNCIL,http://statistics.data.gov.uk/id/local-authority/00EU,Neighbourhood & Community Services,NCS,Care Purchase -OP & OT East,54430,CP-Domicil.External,440950,07-Aug-12,1900095917,"19,827.73",Premier Care Cheshire Ltd,105142
WARRINGTON BOROUGH COUNCIL,http://statistics.data.gov.uk/id/local-authority/00EU,Neighbourhood & Community Services,NCS,Care Purchase - Mental Health Team 1,54230,CP-Domicil.External,440950,31-Aug-12,1900097852,551.74,Premier Care Cheshire Ltd,105142
WARRINGTON BOROUGH COUNCIL,http://statistics.data.gov.uk/id/local-authority/00EU,Neighbourhood & Community Services,NCS,Care Purchase - PD,54440,Supporting People - External,441250,31-Aug-12,1900097852,615.44,Premier Care Cheshire Ltd,105142
WARRINGTON BOROUGH COUNCIL,http://statistics.data.gov.uk/id/local-authority/00EU,Neighbourhood & Community Services,NCS,Care Purchase - Mental Health Team 2,54240,CP-Domicil.External,440950,31-Aug-12,1900097852,939.68,Premier Care Cheshire Ltd,105142
WARRINGTON BOROUGH COUNCIL,http://statistics.data.gov.uk/id/local-authority/00EU,Neighbourhood & Community Services,NCS,Care Purchase - Learning Disability,54450,CP-Domicil.External,440950,31-Aug-12,1900097852,995.74,Premier Care Cheshire Ltd,105142
WARRINGTON BOROUGH COUNCIL,http://statistics.data.gov.uk/id/local-authority/00EU,Neighbourhood & Community Services,NCS,Care Purchase Budget,54490,CP - Cont Care - External,441350,31-Aug-12,1900097852,"3,251.64",Premier Care Cheshire Ltd,105142
WARRINGTON BOROUGH COUNCIL,http://statistics.data.gov.uk/id/local-authority/00EU,Neighbourhood & Community Services,NCS,Care Purchase - OP & OT South,54480,CP-Domicil.External,440950,31-Aug-12,1900097852,"9,881.16",Premier Care Cheshire Ltd,105142
WARRINGTON BOROUGH COUNCIL,http://statistics.data.gov.uk/id/local-authority/00EU,Neighbourhood & Community Services,NCS,Care Purchase - PD,54440,CP-Domicil.External,440950,31-Aug-12,1900097852,"12,109.59",Premier Care Cheshire Ltd,105142
WARRINGTON BOROUGH COUNCIL,http://statistics.data.gov.uk/id/local-authority/00EU,Neighbourhood & Community Services,NCS,Care Purchase - OP & OT Central,54420,CP-Domicil.External,440950,31-Aug-12,1900097852,"16,976.06",Premier Care Cheshire Ltd,105142
WARRINGTON BOROUGH COUNCIL,http://statistics.data.gov.uk/id/local-authority/00EU,Neighbourhood & Community Services,NCS,Care Purchase -OP & OT East,54430,CP-Domicil.External,440950,31-Aug-12,1900097852,"17,896.76",Premier Care Cheshire Ltd,105142
WARRINGTON BOROUGH COUNCIL,http://statistics.data.gov.uk/id/local-authority/00EU,Neighbourhood & Community Services,NCS,Care Purchase - OP & OT West,54470,CP-Domicil.External,440950,31-Aug-12,1900097852,"18,524.66",Premier Care Cheshire Ltd,105142
WARRINGTON BOROUGH COUNCIL,http://statistics.data.gov.uk/id/local-authority/00EU,Environment & Regeneration,ER0,Or Rm C'way & F'way,44260,Environmental Works,531050,15-Aug-12,1900096595,"3,525.00",Premier Traffic Management Ltd,110803
WARRINGTON BOROUGH COUNCIL,http://statistics.data.gov.uk/id/local-authority/00EU,Children & Young People,CYP,Secondary,81002,ICT Comms - Equipment Purchase,450100,13-Aug-12,1900096445,"2,926.10",Probrand Ltd,102886
WARRINGTON BOROUGH COUNCIL,http://statistics.data.gov.uk/id/local-authority/00EU,Neighbourhood & Community Services,NCS,Care Purchase - Learning Disability,54450,CP-LongStayExternal,441150,01-Aug-12,1900095659,"11,237.84",Progress Adult Services Ltd,101817
WARRINGTON BOROUGH COUNCIL,http://statistics.data.gov.uk/id/local-authority/00EU,Neighbourhood & Community Services,NCS,Care Purchase - Learning Disability,54450,CP-Domicil.External,440950,01-Aug-12,1900095660,687.12,Progress Adult Services Ltd,101817
WARRINGTON BOROUGH COUNCIL,http://statistics.data.gov.uk/id/local-authority/00EU,Neighbourhood & Community Services,NCS,Care Purchase - Learning Disability,54450,CP-LongStayExternal,441150,01-Aug-12,1900095660,"11,237.84",Progress Adult Services Ltd,101817
WARRINGTON BOROUGH COUNCIL,http://statistics.data.gov.uk/id/local-authority/00EU,Neighbourhood & Community Services,NCS,Care Purchase - OP & OT South,54480,CP-LongStayExternal,441150,01-Aug-12,1900095658,"17,538.48",Progress Care and Education Ltd,108888
WARRINGTON BOROUGH COUNCIL,http://statistics.data.gov.uk/id/local-authority/00EU,Children & Young People,CHL,DSG Early Years PVI Settings,32417,Private & Voluntary 3 Year Olds,470100,24-Aug-12,1900097909,"9,467.98",Puddleducks Day Nursery,400001
WARRINGTON BOROUGH COUNCIL,http://statistics.data.gov.uk/id/local-authority/00EU,Children & Young People,CHL,Agency Placements,30904,CP ExternalOther Exp,440800,15-Aug-12,1900096577,"11,071.34",Quality Time Care Ltd,103207
WARRINGTON BOROUGH COUNCIL,http://statistics.data.gov.uk/id/local-authority/00EU,Children & Young People,CHL,Agency Placements,30904,CP ExternalOther Exp,440800,20-Aug-12,1900096822,"11,237.50",Quality Time Care Ltd,103207
WARRINGTON BOROUGH COUNCIL,http://statistics.data.gov.uk/id/local-authority/00EU,Children & Young People,CHL,Agency Placements,30904,CP ExternalOther Exp,440800,20-Aug-12,1900096823,"11,071.34",Quality Time Care Ltd,103207
WARRINGTON BOROUGH COUNCIL,http://statistics.data.gov.uk/id/local-authority/00EU,Children & Young People,CHL,DSG Early Years PVI Settings,32417,Private & Voluntary 3 Year Olds,470100,24-Aug-12,1900097910,"7,320.60",Rainbow Day Nursery,400153
WARRINGTON BOROUGH COUNCIL,http://statistics.data.gov.uk/id/local-authority/00EU,Children & Young People,CHL,EIG Funding - 2 Year Old,31601,Payment of Grants,470050,24-Aug-12,1900097956,712.95,Rainbow Day Nursery,400153
WARRINGTON BOROUGH COUNCIL,http://statistics.data.gov.uk/id/local-authority/00EU,Neighbourhood & Community Services,NCS,Care Purchase - Learning Disability,54450,CP-LongStayExternal,441150,01-Aug-12,1900095640,"2,797.20",Redacted Personal Data,100583
WARRINGTON BOROUGH COUNCIL,http://statistics.data.gov.uk/id/local-authority/00EU,Neighbourhood & Community Services,NCS,Care Purchase - Learning Disability,54450,CP-LongStayExternal,441150,01-Aug-12,1900095641,"2,797.20",Redacted Personal Data,460030
WARRINGTON BOROUGH COUNCIL,http://statistics.data.gov.uk/id/local-authority/00EU,Neighbourhood & Community Services,NCS,Care Purchase - Learning Disability,54450,CP Adult Placement,443450,01-Aug-12,1900095680,556.06,Redacted Personal Data,460225
WARRINGTON BOROUGH COUNCIL,http://statistics.data.gov.uk/id/local-authority/00EU,Neighbourhood & Community Services,NCS,Care Purchase - Learning Disability,54450,CP Adult Placement,443450,01-Aug-12,1900095681,684.59,Redacted Personal Data,460225
WARRINGTON BOROUGH COUNCIL,http://statistics.data.gov.uk/id/local-authority/00EU,Neighbourhood & Community Services,NCS,Care Purchase - Learning Disability,54450,CP Adult Placement,443450,01-Aug-12,1900095725,519.44,Redacted Personal Data,107988
WARRINGTON BOROUGH COUNCIL,http://statistics.data.gov.uk/id/local-authority/00EU,Neighbourhood & Community Services,NCS,Care Purchase - PD,54440,Direct Payments,552000,01-Aug-12,1900095784,"1,124.43",Redacted Personal Data,460638
WARRINGTON BOROUGH COUNCIL,http://statistics.data.gov.uk/id/local-authority/00EU,Neighbourhood & Community Services,NCS,Supporting People Grant Payments,53260,People with Mental Health Problems,535200,06-Aug-12,1900095875,"4,934.35",Redacted Personal Data,106573
WARRINGTON BOROUGH COUNCIL,http://statistics.data.gov.uk/id/local-authority/00EU,Neighbourhood & Community Services,NCS,Supporting People Grant Payments,53260,Learning Disability,535000,06-Aug-12,1900095886,"1,582.24",Redacted Personal Data,100849
WARRINGTON BOROUGH COUNCIL,http://statistics.data.gov.uk/id/local-authority/00EU,Neighbourhood & Community Services,NCS,Supporting People Grant Payments,53260,People with Mental Health Problems,535200,06-Aug-12,1900095887,"4,934.35",Redacted Personal Data,106573
WARRINGTON BOROUGH COUNCIL,http://statistics.data.gov.uk/id/local-authority/00EU,Neighbourhood & Community Services,NCS,Supporting People Grant Payments,53260,People with Mental Health Problems,535200,06-Aug-12,1900095891,"2,000.81",Redacted Personal Data,440091
WARRINGTON BOROUGH COUNCIL,http://statistics.data.gov.uk/id/local-authority/00EU,Children & Young People,CHL,Special Schools,33208,Statemented - Spec Unit Other LA Trans,300950,07-Aug-12,1900095951,750,Redacted Personal Data,102978
WARRINGTON BOROUGH COUNCIL,http://statistics.data.gov.uk/id/local-authority/00EU,Children & Young People,CHL,Foster Allowances,31106,Fostering Allowance,550050,07-Aug-12,1900096040,510,Redacted Personal Data,460083
WARRINGTON BOROUGH COUNCIL,http://statistics.data.gov.uk/id/local-authority/00EU,Neighbourhood & Community Services,NCS,Supporting People Grant Payments,53260,People with Mental Health Problems,535200,07-Aug-12,1900096044,"4,427.15",Redacted Personal Data,100735
WARRINGTON BOROUGH COUNCIL,http://statistics.data.gov.uk/id/local-authority/00EU,Neighbourhood & Community Services,NCS,Administration,51010,Gen. Personal Needs,490850,08-Aug-12,1900096194,"16,223.69",Redacted Personal Data,102113
WARRINGTON BOROUGH COUNCIL,http://statistics.data.gov.uk/id/local-authority/00EU,Neighbourhood & Community Services,NCS,Administration,51010,Gen. Personal Needs,490850,09-Aug-12,1900096300,"9,085.00",Redacted Personal Data,102113
WARRINGTON BOROUGH COUNCIL,http://statistics.data.gov.uk/id/local-authority/00EU,Children & Young People,CHL,Legal Fees - Safeguarding,30100,Legal Costs Incurred,440200,09-Aug-12,1900096303,"17,975.00",Redacted Personal Data,104162
WARRINGTON BOROUGH COUNCIL,http://statistics.data.gov.uk/id/local-authority/00EU,Neighbourhood & Community Services,NCS,Care Purchase - Learning Disability,54450,Direct Payments,552000,08-Aug-12,1900096313,"3,105.78",Redacted Personal Data,101701
WARRINGTON BOROUGH COUNCIL,http://statistics.data.gov.uk/id/local-authority/00EU,Neighbourhood & Community Services,NCS,Care Purchase - Learning Disability,54450,Direct Payments,552000,08-Aug-12,1900096314,"3,105.78",Redacted Personal Data,101704
WARRINGTON BOROUGH COUNCIL,http://statistics.data.gov.uk/id/local-authority/00EU,Children & Young People,CHL,Child Disability,32212,Direct Payments,552000,08-Aug-12,1900096315,"1,216.14",Redacted Personal Data,460177
WARRINGTON BOROUGH COUNCIL,http://statistics.data.gov.uk/id/local-authority/00EU,Neighbourhood & Community Services,NCS,Care Purchase - Learning Disability,54450,Direct Payments,552000,08-Aug-12,1900096317,504,Redacted Personal Data,460631
WARRINGTON BOROUGH COUNCIL,http://statistics.data.gov.uk/id/local-authority/00EU,Neighbourhood & Community Services,NCS,Care Purchase - OP & OT South,54480,Direct Payments,552000,08-Aug-12,1900096318,686.56,Redacted Personal Data,460650
WARRINGTON BOROUGH COUNCIL,http://statistics.data.gov.uk/id/local-authority/00EU,Children & Young People,CHL,CiC Team 2,31101,Legal Costs Incurred,440200,15-Aug-12,1900096573,574.85,Redacted Personal Data,108301
WARRINGTON BOROUGH COUNCIL,http://statistics.data.gov.uk/id/local-authority/00EU,Children & Young People,CHL,CIN Team 1,31001,Residence Orders,550350,15-Aug-12,1900096618,"2,500.00",Redacted Personal Data,460628
